Workbook

Sheet PISA JUNIO 2019 (hidden)

Sheet ANEXO AySA NOTAS MONTOS (hidden)
C1: ANEXO AySA - NOTAS EN CAMPOS CORRESPONDIENTES A "MONTOS ORIGINAL", "MODIFICACIONES MONTO ORIGINAL" Y "MONTO VIGENTE"
A4: DIRECCION | B4: NOTA | C4: OC | D4: CONTRATISTA | E4: Revisión | F4: Monto revisiones | G4: Monto original con IVA Total OC | H4: Monto Revisiones con IVA - Total OC | I4: Monto vigente con IVA Total OC | J4: Monto estimado inversiones sobre el monto vigente con IVA | K4: Observaciones
A5: DRCF | B5: NOTA 1 | C5: 17305 | D5: COMPANIA SUDAMERICANA DE GAS S.A. | E5: Rev. 1 - ítems 13 al 24;Rev. 1 - ítems 25 al 30 | F5: 3.389.147,7; 282.283,89 | G5: =+I5-H5 -> 13669562.39 | H5: =(3389147.7+282283.89)*1.21 -> 4442432.224 | I5: 18111994.61
B6: NOTA 2 | C6: 17306 | D6: CONSTRUCCIONES ZUBDESA S.A. | E6: Rev. 1 Items 9 al 16. Rev 2 Items 17 al 20 | F6: $1.503.267,90;$ 117.073,47 | G6: 6063180.53 | H6: =(1503267.9+117073.47)*1.21 -> 1960613.058 | I6: 8023793.588
B7: NOTA 3 | C7: 20690 | D7: CONSTRUCCIONES ZUBDESA S.A. | E7: Rev. 1 ítems 25 al 32; Rev. 2 ítems 33 a 40; Rev 3 ítems 41 a 48; Rev. 4 ítems 49, 50 y 51- Se reduce monto ítems 9, 11, 17, 18 y 40;Rev. 6 items 52,53,54. | F7: $654.958,02;$756.289,58; $1.303.101,49;0;21.041.820,68 | G7: 55992515.5 | H7: =(654958.02+756289.58+1303101.49+21041820.68)*1.21 -> 28744965.42 | I7: 84737480.92
B8: NOTA 4 | C8: 20691 | D8: COMPANIA SUDAMERICANA DE GAS S.A. | E8: Rev. 1 ítem 25 a 27; Rev. 2 ítems 28 al 35;Rev. 3 ítems 51 al 58; Rev. 4 ítems 45 a 50;Rev. 5 ítems 51 a 58 | F8: $12.000.000;1.316.956,80;$1.587.171,06;$43.441.043;$3.085.787,72 | G8: 93613715.81 | H8: =(12000000+1316956.8+1587171.06+43441043+3085787.72)*1.21 -> 74331459.88 | I8: 167945175.7
A9: DRO | B9: NOTA 5 | C9: 3997 | D9: Construcciones Zubdesa S.A. | E9: Rev 1. Items 9, 10 y 11;Rev.2 ítems n° 12, 13 y 14; Rev. 4 ítems N° 15 al 18;Rev. 5 Items 19 a 22. | F9: $ 1.022.139; $ 326.643,00.-;$ 13.640.216,00;$ 346.776,00 | G9: 26210235.92 | H9: =(1022139+326643+13640216+346776)*1.21 -> 18556286.54 | I9: 44766522.46
B10: NOTA 6 | C10: 17310 | D10: Construcciones Zubdesa S.A. | E10: Rev. 2 ítems 17 al 22;Rev. 3 ítems 23 al 30 | F10: $ 2.235.000.-; $201.975 | G10: 13447670.17 | H10: =(2235000+201975)*1.21 -> 2948739.75 | I10: 16396409.92 | J10: 8721442.84
B11: NOTA 7 | C11: 11530 | D11: APCO SA | E11: Sin revision | F11: Sin revision | G11: =+I11 -> 332095.2085 | H11: 0 | I11: 332095.2085
B12: NOTA 8 | C12: 17605 | D12: Rowing SA | E12: Sin revision | F12: Sin revision | G12: =+I12 -> 542789.5319 | H12: 0 | I12: 542789.5319
B13: NOTA 9 | C13: 20694 | D13: Construcciones Zubdesa S.A. | E13: Rev. 1 ítem 41 a 60;Rev. 2 ítems 63 al 72;Rev. 3 ítems 73 y 74.;Rev. 4 ítems 77 y 78; Rev. 5 ítem 79 y 80 | F13: $1.325.141.;$ 907.443;$ 2.137.676;$ 1.554.174; $ 11.642.103 | G13: 95550462.38 | H13: 21255509.77 | I13: =+G13+H13 -> 116805972.1 | J13: 54760237.24
B14: NOTA 26 | C14: 20695 | D14: C&E Construcciones S.A. | E14: Rev. 1 ítem 33 a 48;Rev. 2 ítems 49 al 56;Rev. 3 ítems 57 y 58.;Rev. 4 ítems 59 y 60 | F14: $695.535; $447.219; $1.029.435; $809.920 | G14: 67316984.45 | H14: 3608351.89 | I14: =+G14+H14 -> 70925336.34 | J14: 37356369.23
A15: DRSE | B15: NOTA 10 | C15: 4000 | D15: APCO S.A. | E15: Rev. 1 Items 4, 5 y 6;Rev.2 Items 7 a 9;Rev. 3 Items 10 a 12; Rev 4 Items 13 a 15;Rev 5 Ítems 16 a 27 | F15: 11315457;$ 444,822.00;$12.850.000,00;$ 1.430.000,00;$ 539.479,53 | G15: =+I15-H15 -> 20464913.92 | H15: =(11315457+444822+12850000+1430000+539479.53)*1.21 -> 32161507.82 | I15: 52626421.74
B16: NOTA 11 | C16: 4003 | D16: TORASSO-SAUCEDAL UTE | E16: Rev. 1 Items 4 y 5;Rev. 2 items 6 a 8 ;Rev. 4 Items 9 a 11 ;Rev. 5 Items 12 a 13 | F16: $ 2781951;$ 287.705,00;$ 5.232.000,00;$ 2.137.000,00 | G16: 16575913.9 | H16: =(2781951+287705+5232000+2137000)*1.21 -> 12630773.76 | I16: 29206687.66
B17: NOTA 12 | C17: 17312 | D17: COMPANIA SUDAMERICANA DE GAS S.A. | E17: Rev. 1 ítems 16 al 21; Rev. 2 ítems 22 a 27. | F17: $2.967.163,70.;$303.347,72.- | G17: 11967560.33 | H17: =(2967163.7+303347.72)*1.21 -> 3957318.818 | I17: 15924879.15
B18: NOTA 13 | C18: 17313 | D18: TORASSO-SAUCEDAL UTE | E18: Rev. 1 ítems 11 al 14;Rev. 3 ítems 15 al 18 | F18: $275.000,00.;$54.340,16. | G18: 3465915.082 | H18: =(275000+54340.16)*1.21 -> 398501.5936 | I18: 3864416.676
B19: NOTA 14 | C19: 20696 | D19: COMPANIA SUDAMERICANA DE GAS S.A. | E19: Rev. 1 ítems 25 al 36;Rev. 2 ítems 37 al 42;Rev. 3 ítems 43 al 48; Rev. 4 ítems 49 a 55 con reducción de items varios; Rev. 5 ítems 56 al 61 | F19: $1.204.899,11;$995.179,10;$2.122.439,11;0;$1.752.592,62 | G19: 81107297.86 | H19: =(1204899.11+995179.1+2122439.11+1752592.62)*1.21 -> 7350883.027 | I19: 88458180.89
B20: NOTA 15 | C20: 20697 | D20: TORASSO-SAUCEDAL UTE | E20: Rev. ítems 25 al 32; Rev. 2 items 23 a 26; Rev.3 Items 27 a 30; Rev 4 items 31 al 34 | F20: $175.746,23.-;$184.978,74;$ 391.702,67;$287.356,05.- | G20: 25347685.29 | H20: =(175746.23+184978.74+391702.67+287356.05)*1.21 -> 1258138.265 | I20: 26605823.56
B21: NOTA 16 | C21: 31162 | D21: COMPANIA SUDAMERICANA DE GAS S.A. | E21: Sin revision | F21: Sin revision | G21: =+I21 -> 11164859.27 | H21: 0 | I21: 11164859.27 | J21: =(391483.65+947823.78+2868174.91+1892036.4)*1.21 -> 7380417.675
A22: DRSO | B22: NOTA 17 | C22: 17314 | D22: Torasso Saucedal | E22: 12393394.75 | H22: =(1300000+171305.42)*1.21 -> 1780279.558 | I22: 12393394.75
B23: NOTA 18 | C23: 20698 | D23: Torasso Saucedal UTE | E23: Rev. 2 items 58 a 69;Rev.3 ítems 70 a 77;Rev. 4 ítems 78 a 89;Rev. 5 ítems 90 a 104;Rev. 6 ítems 105 a 123; | F23: $736.227,31.-; $646.216,20.-; $1.214.270,49.-; $730.100,63;$ 12.962.410.- | G23: 66144806.19 | H23: =+I23-G23 -> 100575608.3 | I23: 166720414.5 | J23: 83003589.33
B24: -NOTA 18.1 | C24: 20698 | D24: Torasso Saucedal UTE | J24: 15982036.49 | K24: Inversiones - Municipios Almirante Brown - Esteban Echeverria
B25: -NOTA 18.2 | C25: 20698 | D25: Torasso Saucedal UTE | J25: 10977150.2 | K25: Inversiones - Municipios Almirante Brown - Esteban Echeverria - Ezeiza
B26: -NOTA 18.3 | C26: 20698 | D26: Torasso Saucedal UTE | J26: 7409965.04 | K26: Inversiones - Municipio de Ezeiza
B27: -NOTA 18.4 | C27: 20698 | D27: Torasso Saucedal UTE | J27: 32807109.18 | K27: Inversiones - Municipio de Lomas de Zamora
B28: -NOTA 18.5 | C28: 20698 | D28: Torasso Saucedal UTE | J28: 15827328.42 | K28: Inversiones - Región Sudoeste
B29: NOTA 19 | C29: 26334 | D29: APCO | E29: 287004.9094 | H29: 0 | I29: 287004.9094
A31: A+T | B31: NOTA 20 | C31: Cada proyecto de inversión de la Dirección de Desarrollo de la Comunidad incluye varios módulos, cuyo plazos de obra varía de acuerdo a la complejidad de las tareas, tipo de suelo, cantidad de metros. La duración promedio de cada módulo es de 8 a 12 meses
B34: NOTA 21 | C34: En 2012 los cargos en concepto de mano de obra no tienen IVA
A37: DI M&M | B37: NOTA 22 | C37: Proyectos 1060571/1060572/1060581/1060584/1060587/1060590/1060593 | G37: 5074689 | H37: =+I37-G37 -> 626367 | I37: 5701056 | K37: Este monto vigente fue prorrateado en función del monto de ejecución.
A40: A+T | B40: NOTA 23 | C40: Para el cálculo del monto contractual vigente, la Dirección de Desarrollo de la Comunidad (A+T), adiciona al monto del convenio, el monto ejecutado de materiales y contratistas con IVA, contratistas sin IVA (Sgbatos) por capacitaciones y mano de obra
E43: MONTO OC S/IVA | F43: MONTO OC C/IVA
A44: DRSO | B44: NOTA 26 | C44: 36943 | D44: TORASSO Construcciones S.R.L.-CyCO Asociados S.A.-CS Tarsa S.A. (UTE) | E44: 72151336.5 | F44: =+E44*1.21 -> 87303117.16
C46: 36942 | D46: TORASSO Construcciones S.R.L.-CyCO Asociados S.A.-CS Tarsa S.A. (UTE) | E46: 30080386.21 | F46: =+E46*1.21 -> 36397267.31
C48: 36941 | D48: TORASSO Construcciones S.R.L.-CyCO Asociados S.A.-CS Tarsa S.A. (UTE) | E48: 120679757.4 | F48: =+E48*1.21 -> 146022506.4
D51: N°OC | E51: CONTRATISTA | F51: MONTO OC S/IVA | G51: MONTO OC C/IVA | H51: VIGENCIA ORDEN DE COMPRA
A52: DRSE | B52: NOTA 27 | C52: 1659 - 1679-1680 | D52: 39632 | E52: COMPANIA SUDAMERICANA DE GAS S.A. | F52: 175166909.6 | G52: =F52*1.21 -> 211951960.6 | H52: 1/10/14 AL 30/09/17
D54: 39631 | E54: APCO S.A. | F54: 78685842.1 | G54: =F54*1.21 -> 95209868.94 | H54: 1/10/14 AL 30/09/17
C58: NOTA 24
C60: N° DE ORDEN: 298
C62: PROYECTO: N960502 - NUEVAS PERFORACIONES POR ADMINISTRACION OBRA CIVIL
C63: PROYECTO: N960503 - NUEVAS PERFORACIONES POR ADMINISTRACION OBRA ELECTROMECÁNICA
C65: Municipio | D65: Barrio / Localidad | E65: Localización exacta
C66: Almirante Brown | D66: Ministro Rivadavia | E66: Estanislao Cevallos a 650 mts R. Argentina
C67: Almirante Brown | D67: Ministro Rivadavia | E67: Calle Rivera a 700 mts Av. Espora
C68: Almirante Brown | D68: Burzaco | E68: Villarino a 700 mts. de Av. Argentina
C69: Esteban Echeverría | D69: Monte Grande | E69: Subtte. Gonzalez y Vias Metropolitano
C70: Esteban Echeverría | D70: Monte Grande | E70: Tte. Grande y Vias Metropolitano
C71: Esteban Echeverría | D71: Monte Grande | E71: Casacuberta e/ Av. Valette y J. V González
C72: Esteban Echeverría | D72: Monte Grande | E72: Lima e/ Av. Valette y Francia
C73: La Matanza | D73: Virrey del Pino | E73: Balleirini y Areco
C74: La Matanza | D74: Virrey del Pino | E74: Areco y California
C75: La Matanza | D75: Virrey del Pino | E75: Chivilcoy y California
C76: La Matanza | D76: Virrey del Pino | E76: Nahuel Huapi y Esperanza
C77: La Matanza | D77: Virrey del Pino | E77: Loefler e/ Villarroel y Fernandez
C78: La Matanza | D78: Virrey del Pino | E78: Pedro de Angelis s/n e/ Caldas y Nuñez
C79: La Matanza | D79: Virrey del Pino | E79: P. de Angelis y Nahuel Huapi
C80: La Matanza | D80: Virrey del Pino | E80: Nazarre Alejo y Paraná
C81: La Matanza | D81: Virrey del Pino | E81: Navarro y Paraná
C82: La Matanza | D82: Virrey del Pino | E82: California y Patagonia
C83: La Matanza | D83: Gonzalez Catán | E83: Barrientos e Iberá
C84: La Matanza | D84: Gonzalez Catán | E84: J. Nuwbery e/ Barrientos y Barragán
C85: La Matanza | D85: Rafael Castillo | E85: Esquiro e/ Eufrates y Chavarria
C88: NOTA 25
C90: N° DE ORDEN: 1274
C92: PROYECTO: 1054012 - INSTRUMENTACION - LP2
C94: INSTRUMENTOS | D94: CANTIDAD | E94: Estación Elevadora | F94: Partido | G94: Direcciòn
C95: Medidores de nivel para tanques de hipoclorito | D95: 4 | E95: EE Floresta | F95: Capital Federal | G95: Florentino Ameghino 1452
D96: 3 | E96: EE Lanús | F96: Lanús | G96: Salta 350 - Lanús
D97: 4 | E97: EE Constitución | F97: Capital Federal | G97: Pavon 1859. Capital
D98: 3 | E98: EE Centro | F98: Capital Federal | G98: Ayacucho 750
D99: 2 | E99: EE Devoto | F99: Capital Federal | G99: Navarro 4150
C100: Medidores de Temperatura sin contacto | D100: 1 | E100: EE Tres de Febrero | F100: Tres de Febrero | G100: M de Alvear 2300. J. Ingenieros
D101: 1 | E101: EE Caballito | F101: Capital Federal | G101: Av. Pedro Goyena 458
D102: 1 | E102: EE Centro | F102: Capital Federal | G102: Ayacucho 750
D103: 1 | E103: EE La Matanza | F103: La Matanza | G103: Av. San Martín y Nazca (Lomas del Mirador)
D104: 1 | E104: EE Devoto | F104: Capital Federal | G104: Navarro 4150
C105: Medidores de presión lineal con display digital | D105: 38 | E105: EE Devoto | F105: Capital Federal | G105: Navarro 4150
D106: 12 | E106: EE Centro | F106: Capital Federal | G106: Ayacucho 750
D107: 15 | E107: EE Caballito | F107: Capital Federal | G107: Av. Pedro Goyena 458
D108: 1 | E108: EE Constitución | F108: Capital Federal | G108: Pavon 1859. Capital
C109: Luxómetro digital | D109: 1 | E109: Oficina Técnica de EE | F109: Capital Federal | G109: Av. de los Ombúes 209
C110: Decibelímetro digital | D110: 1 | E110: Oficina Técnica de EE | F110: Capital Federal | G110: Av. de los Ombúes 209
C111: Medidores de nivel para cámaras de aspiración con display digital. | D111: 1 | E111: EE Floresta | F111: Capital Federal | G111: Florentino Ameghino 1452
D112: 1 | E112: EE Constitución | F112: Capital Federal | G112: Pavon 1859. Capital
D113: 1 | E113: EE Centro | F113: Capital Federal | G113: Ayacucho 750
D114: 1 | E114: EE Lanús | F114: Lanús | G114: Salta 350 - Lanús
D115: 1 | E115: EE Devoto | F115: Capital Federal | G115: Navarro 4150
D116: 1 | E116: EE Tres de Febrero | F116: Tres de Febrero | G116: M de Alvear 2300. J. Ingenieros
D117: 1 | E117: EE Morón | F117: Morón | G117: Derqui 1, y Acceso Oeste. Morón
D118: 1 | E118: EE Villa Adelina | F118: Vte. López | G118: Caxaraville 3530. Carapachay
D119: 1 | E119: EE Saveedra | F119: Capital Federal | G119: Mariano Acha 3465.
D120: 1 | E120: EE La Matanza | F120: La Matanza | G120: Av. San Martín y Nazca (Lomas del Mirador)
C121: Provisión de monitores de caudal electrónico para la protección de las bombas de EE Lanús y EE Quilmes. | D121: 5 | E121: EE Lanús | F121: Lanús | G121: Salta 350 - Lanús
D122: 5 | E122: EE Quilmes | F122: Quilmes | G122: Coronel Lynch 1600 - Avellaneda

Sheet POR JURISDICCION (hidden)
A4: INVERSIÓN EN LA CMR AL 30 DE JUNIO DE 2019
B6: RECURSOS NETOS DEVENGADOS EN LA CMR
B8: CONCEPTO | C8: DEVENGADO 2016 | D8: DEVENGADO 2017 | E8: DEVENGADO TOTAL 2018 | F8: DEVENGADO 1° SEMESTRE 2019
B10: TOTAL DE RECURSOS DEVENGADOS | C10: 8074389911 | D10: 1.546516175e+10 | E10: 2.110637671e+10 | F10: 1.2234075e+10
B11: TRANSFERENCIAS ENTRE JURISDICCIONES* | C11: -322947260 | D11: -2524242732 | E11: -2906354246 | F11: -2544026064
B13: RECURSOS NETOS DEVENGADOS EN LA CMR | C13: 7751442651 | D13: 1.294091902e+10 | E13: 1.820002247e+10 | F13: 9690048931
B15: *NOTA: Con el objetivo de reflejar los recursos netos devengados en la CMR, este concepto contempla aquellos recursos devengados por una Jurisdicción en concepto de transferencias a otra a cargo de su ejecución y que, por ende, deben ser deducidos para evitar duplicaciones.
B18: RECURSOS DEVENGADOS EN LA CMR - DETALLE POR JURISDICCIÓN
B20: NIVEL / SUBJURISDICCIÓN / PROGRAMA | C20: DEVENGADO 2016 | D20: DEVENGADO 2017 | E20: DEVENGADO 2018 | F20: DEVENGADO 1° SEMESTRE 2019
B21: 1. ESTADO NACIONAL | C21: 5945097035 | D21: 1.053848635e+10 | E21: 1.567017352e+10 | F21: 9241117840
B22: 2. PROVINCIA DE BS AS | C22: 745104337.5 | D22: 2015901532 | E22: 1530497713 | F22: 1265412010
B23: 3. CABA | C23: 703659556.6 | D23: 1887831924 | E23: 2146145174 | F23: 1121822089
B24: 4. ACUMAR | C24: 680528982.1 | D24: 1022941939 | E24: 1759560309 | F24: 605723056.2
B25: TOTAL DE RECURSOS DEVENGADOS | C25: 8074389911 | D25: 1.546516175e+10 | E25: 2.110637671e+10 | F25: 1.2234075e+10

Sheet Total de obras
B2: Inversiones Cuenca Matanza Riachuelo - Ejecución 1° Semestre 2019
B6: ID | C6: NIVEL | D6: LA | E6: LA PROPUESTA | F6: CLASIFICACION | G6: AGRUPAMIENTO | H6: TIPO DE ACCIONES | I6: AGRUPAMIENTO POR OBRA/ACTIVIDAD | J6: DENOMINACIÓN | K6: NAT | L6: JURISDICCIÓN | M6: SAF | N6: SUBJ./ SECRET./ ENTIDAD | O6: PROGRAMA | P6: SUB0PROG | Q6: PROYECTO | R6: ACTIVIDAD | S6: OBRA | T6: F. FINANC. | U6: INC | V6: PPAL | W6: PARC | X6: SUB PARC | Y6: FI | Z6: FU | AA6: UG | AB6: TIPO DE ASIG | AC6: OBRA/ACT | AD6: ENTE EJECUTOR | AE6: MUNICIPIO | AF6: LOCALIDAD/ COMUNA | AG6: DIRECCIÓN DE LA OBRA | AH6: FECHA DE INICIO | AI6: FECHA DE FIN | AJ6: MONTO ORIGINAL | AK6: MODIFICACIONES MONTO ORIGINAL | AL6: OTRAS MODIFICACIONES MONTO ORIGINAL | AM6: MONTO VIGENTE | AN6: DEVENGADO ACUM 2006-2009 | AO6: DEVENGADO 2010 | AP6: DEVENGADO 2011 | AQ6: DEVENGADO 2012 | AR6: DEVENGADO 2013 | AS6: DEVENGADO 2014 | AT6: DEVENGADO 2015 | AU6: DEVENGADO 2016 | AV6: DEVENGADO 2017 | AW6: DEVENGADO 2018 | AX6: DEVENGADO 1° SEM. 2019 | AY6: PRESUPUESTO 2019 | AZ6: A MOSTRAR | BA6: ESTADO | BB6: AVANCE FINANCIERO | BC6: AVANCE FÍSICO | BD6: OBSERVACIONES
B7: 6 | C7: 1. ESTADO NACIONAL | D7: 09. EXPANSIÓN DE LA RED DE AGUA POTABLE Y SANEAMIENTO DE CLOACAS | E7: - | F7: - | G7: - | H7: EXPANSIÓN DE REDES | I7: SISTEMA LA LATA- ESTEBAN ECHEVERRIA | J7: IMPULSIÓN DE POZOS AMPLIACIÓN BATERIA LA LATA 2A. ETAPA FASE A | K7: 2 | L7: 91. OBLIGACIONES DEL TESORO | M7: 356 | N7: AYSA | O7: 95. ASISTENCIA FINANCIERA A EMPRESAS PÚBLICAS Y ENTE BINACIONAL | P7: 5 | Q7: N960011 | R7: 5 | S7: - | T7: 11 | U7: 5 | V7: 5 | W7: 7 | X7: 753 | Y7: 3 | Z7: 8 | AA7: 96 | AB7: 2 | AC7: SA021 | AD7: - | AE7: ESTEBAN ECHEVERRÍA | AF7: MONTE GRANDE | AG7: TRAMO 1: COMIENZA EN LA INTERSECCIÓN DE LAS CALLES SARGENTO CABRAL Y ESC.F VAZQUEZ CONTINUANDO POR ESTA ÚLTIMA HASTA HASTA MARTÍN FIERRO. TRAMO 2: COMIENZA EN LA CALLE PEDRO DREYER Y MARTÍN FIERRO CONTINUANDO HASTA LA CONEXIÓN DEL POZO S10 CON CAÑERÍA EXISTENTE. TRAMO 3: COMIENZA EN MARTÍN FIERRO Y DAIREAUX CONTINUANDO POR ESTA HASTA VENTURA AVILA. TRAMO 4: COMIENZA EN MAIPÚ Y VENTURA AVILA CONTINUANDO POR ESTA HASTA DAIREAUX. TRAMO 5: COMIENZA EN AVILA Y VILLEGAS, SIGUE POR VILLEGAS LUEGO DOBLA EN C. COLÓN Y CONTINÚA HASTA AZUL FINALIZANDO EN NAVARRO. TRAMO 6: COMIENZA EN AZUL Y C COLÓN AVANZANDO POR ESTA ÚLTIMA HASTA MAIPÚ. | AH7: 2009-11-27 | AI7: 2012-10-20 | AJ7: 8500250 | AK7: -39118 | AL7: 546402.17 | AM7: 9007534.17 | AN7: 2974515.16 | AO7: 2304178.921 | AP7: 1675768.265 | AQ7: 1881588.142 | AR7: 171484.0193 | AS7: 0 | AT7: 0 | AU7: 0 | AV7: 0 | AW7: 0 | AX7: 0 | AY7: 0 | AZ7: - | BA7: FINALIZADO | BB7: 1.000000039 | BC7: 1 | BD7: -
B8: 7 | C8: 1. ESTADO NACIONAL | D8: 09. EXPANSIÓN DE LA RED DE AGUA POTABLE Y SANEAMIENTO DE CLOACAS | E8: - | F8: - | G8: - | H8: EXPANSIÓN DE REDES DE AGUA | I8: REDES DE AGUA ALMIRANTE BROWN | J8: NUEVAS PERFORACIONES POR ADMINISTRACION OBRA ELECTROMECANICA | K8: 2 | L8: 91. OBLIGACIONES DEL TESORO | M8: 356 | N8: AYSA | O8: 95. ASISTENCIA FINANCIERA A EMPRESAS PÚBLICAS Y ENTE BINACIONAL | P8: 5 | Q8: N960503 | R8: 77 | S8: - | T8: 22 Y RECURSOS PROPIOS | U8: 5 | V8: 5 | W8: 7 | X8: 753 | Y8: 3 | Z8: 8 | AA8: 2 | AB8: 2 | AC8: SIN P3 | AD8: - | AE8: ALMIRANTE BROWN - ESTEBAN ECHEVERRÍA - LA MATANZA | AF8: ALMIRANTE BROWN (MTRO. RIVADAVIA - BURZACO) / ESTEBAN ECHEVERRÍA (MONTE GRANDE) / LA MATANZA (GONZALEZ CATÁN, RAFAEL CASTILLO, VIRREY DEL PINO) | AG8: NOTA 24 | AH8: 2009-05-31 | AI8: Año 2016 | AJ8: 1946191.143 | AK8: 0 | AL8: 9135490.808 | AM8: 11081681.95 | AN8: 955646.3477 | AO8: 677080.5591 | AP8: 4838814.224 | AQ8: 735596.9407 | AR8: 1152574.683 | AS8: 153590.019 | AT8: 148391.4476 | AU8: 286083.5791 | AV8: 777238.6237 | AW8: 1356665.528 | AX8: 0 | AY8: 0 | AZ8: - | BA8: FINALIZADO | BB8: 1 | BC8: 1 | BD8: EN 2018 SE MODIFICA EL CÓDIGO DE ACTIVIDAD DE LA APERTURA PROGRAMÁTICA DE 5 A 77, UG DE 96 A 2 Y FF DE 11 A 22. EL PROYECTO TAMBIÉN SERÁ FINANCIADO CON RECURSOS PROPIOS DE AYSA
B9: 8 | C9: 1. ESTADO NACIONAL | D9: 09. EXPANSIÓN DE LA RED DE AGUA POTABLE Y SANEAMIENTO DE CLOACAS | E9: - | F9: - | G9: - | H9: EXPANSIÓN DE REDES | I9: SONDEOS | J9: EJECUCIÓN DE 30 SONDEOS | K9: 2 | L9: 91. OBLIGACIONES DEL TESORO | M9: 356 | N9: AYSA | O9: 95. ASISTENCIA FINANCIERA A EMPRESAS PÚBLICAS Y ENTE BINACIONAL | P9: 5 | Q9: N960516 | R9: 5 | S9: - | T9: 11 | U9: 5 | V9: 5 | W9: 7 | X9: 753 | Y9: 3 | Z9: 8 | AA9: 96 | AB9: 2 | AC9: VA003 / SA323 | AD9: - | AE9: ÁREA DE LA CONCESIÓN DE AYSA-PARTIDOS VARIOS:ALMIRANTE BROWN, EZEIZA, ESTEBAN ECHEVERRÍA, HURLINGHAM Y TRES DE FEBRERO | AF9: ÁREA DE LA CONCESIÓN DE AYSA | AG9: LAS UBICACIONES DE LOS SONDEOS DE RECONOCIMIENTO ESTARÁN DENTRO DEL ÁREA DE CONCESIÓN BAJO LA CUAL AYSA PRESTA EL SERVICIO DE AGUA, Y SUS UBICACIONES DEFINITIVAS SERÁN DETERMINADAS POR LA INSPECCIÓN DE OBRA EN CADA CASO PARTICULAR. | AH9: 2009-07-13 | AI9: 2011-09-20 | AJ9: 1344236.19 | AK9: 43802 | AL9: 1371333 | AM9: 2759371.19 | AN9: 468867.7521 | AO9: 1922322.692 | AP9: 102012.801 | AQ9: 266168.0325 | AR9: 0 | AS9: 0 | AT9: 0 | AU9: 0 | AV9: 0 | AW9: 0 | AX9: 0 | AY9: 0 | AZ9: - | BA9: FINALIZADO | BB9: 1.000000032 | BC9: 1 | BD9: -
B10: 9 | C10: 1. ESTADO NACIONAL | D10: 09. EXPANSIÓN DE LA RED DE AGUA POTABLE Y SANEAMIENTO DE CLOACAS | E10: - | F10: - | G10: - | H10: EXPANSIÓN DE REDES DE AGUA | I10: PERFORACIONES ACUÍFERO PUELCHE | J10: EJECUCION DE 25 PERFORACIONES AL PUELCHE ZONA SUR OBRA ELECTROMECANICA | K10: 2 | L10: 91. OBLIGACIONES DEL TESORO | M10: 356 | N10: AYSA | O10: 95. ASISTENCIA FINANCIERA A EMPRESAS PÚBLICAS Y ENTE BINACIONAL | P10: 5 | Q10: N760533 | R10: 77 | S10: - | T10: 22 Y RECURSOS PROPIOS | U10: 5 | V10: 5 | W10: 7 | X10: 753 | Y10: 3 | Z10: 8 | AA10: 2 | AB10: 2 | AC10: SA5981 | AD10: - | AE10: CUENCA MATANZA RIACHUELO | AF10: ÁREA DE LA CONCESIÓN DE AYSA | AG10: LA UBICACIÓN DE LOS POZOS DE EXPLOTACIÓN ESTARÁ DENTRO DEL ÁREA DE CONCESIÓN BAJO LA CUAL AYSA PRESTA EL SERVICIO DE AGUA. | AH10: 2007-10-29 | AI10: 2008-09-10 | AJ10: 4949469.89 | AK10: 577853.5169 | AL10: 11312276.8 | AM10: 16839600.21 | AN10: 2348645.707 | AO10: 469995.7746 | AP10: 732222.4734 | AQ10: 719017.3479 | AR10: 683861.3265 | AS10: 674570.9586 | AT10: 676403.8303 | AU10: 1588445.154 | AV10: 3373073.815 | AW10: 5573363.818 | AX10: 0 | AY10: 0 | AZ10: - | BA10: FINALIZADO | BB10: 1 | BC10: 1 | BD10: LA EJECUCIÓN DEL AÑO CORRESPONDE A ENERGÍA ELECTRICA-EN 2018 SE MODIFICA EL CÓDIGO DE ACTIVIDAD DE LA APERTURA PROGRAMÁTICA DE 5 A 77, UG DE 96 A 2 Y FF DE 11 A 22. EL PROYECTO TAMBIÉN SERÁ FINANCIADO CON RECURSOS PROPIOS DE AYSA
B11: 10 | C11: 1. ESTADO NACIONAL | D11: 09. EXPANSIÓN DE LA RED DE AGUA POTABLE Y SANEAMIENTO DE CLOACAS | E11: - | F11: - | G11: - | H11: EXPANSIÓN DE REDES DE AGUA | I11: REDES DE AGUA LA MATANZA | J11: CONVENIO CON ESTADO MAYOR CONJUNTO | K11: 2 | L11: 91. OBLIGACIONES DEL TESORO | M11: 356 | N11: AYSA | O11: 95. ASISTENCIA FINANCIERA A EMPRESAS PÚBLICAS Y ENTE BINACIONAL | P11: 5 | Q11: N960511 | R11: 77 | S11: - | T11: 22 Y RECURSOS PROPIOS | U11: 5 | V11: 5 | W11: 7 | X11: 753 | Y11: 3 | Z11: 8 | AA11: 2 | AB11: 2 | AC11: VA005 | AD11: - | AE11: LA MATANZA | AF11: LA MATANZA | AG11: LAS OBRAS SE DESARROLLAN EN EL PARTIDO DE LA MATANZA | AH11: 2009-09-14 | AI11: 2010-09-14 | AJ11: 1313747.654 | AK11: 0 | AL11: 1392121.199 | AM11: 2705868.853 | AN11: 859913.3862 | AO11: 520101.9956 | AP11: 85779.2958 | AQ11: 52582.0114 | AR11: 73651.4295 | AS11: 57331.131 | AT11: 62769.5123 | AU11: 99141.5194 | AV11: 301490.8842 | AW11: 593107.5271 | AX11: 0 | AY11: 0 | AZ11: - | BA11: FINALIZADO | BB11: 1 | BC11: 1 | BD11: LA EJECUCIÓN DEL AÑO CORRESPONDE A ENERGÍA ELECTRICA-EN 2018 SE MODIFICA EL CÓDIGO DE ACTIVIDAD DE LA APERTURA PROGRAMÁTICA DE 5 A 77, UG DE 96 A 2 Y FF DE 11 A 22.EL PROYECTO TAMBIÉN SERÁ FINANCIADO CON RECURSOS PROPIOS DE AYSA
B12: 11 | C12: 1. ESTADO NACIONAL | D12: 09. EXPANSIÓN DE LA RED DE AGUA POTABLE Y SANEAMIENTO DE CLOACAS | E12: - | F12: - | G12: - | H12: EXPANSIÓN DE REDES | I12: BATERÍA VIRREY DEL PINO-LA MATANZA | J12: EJECUCIÓN BAT. V. DEL PINO - 2DA ETAPA - FASE B - 11 PERFORACIONES - LA MATANZA - OBRA CIVIL | K12: 2 | L12: 91. OBLIGACIONES DEL TESORO | M12: 356 | N12: AYSA | O12: 95. ASISTENCIA FINANCIERA A EMPRESAS PÚBLICAS Y ENTE BINACIONAL | P12: 5 | Q12: N960512 | R12: 5 | S12: - | T12: 11 | U12: 5 | V12: 5 | W12: 7 | X12: 753 | Y12: 3 | Z12: 8 | AA12: 96 | AB12: 2 | AC12: OA41718 | AD12: - | AE12: LA MATANZA | AF12: VIRREY DEL PINO | AG12: LA UBICACIÓN DE LOS POZOS DE EXPLOTACIÓN ES LA SIGUIENTE: S1 - SAENZ A 400 M DE AROMA; S2 - SAENZ ENTRE AROMA Y SALVADOR DEL CARRIL A 200 M DE AROMA; S3 - SAENZ ENTRE SALVADOR DEL CARRIL Y CARBAJAL A 100 M DE CARBAJAL; S4 - URIEN Y SAENZ; S8 - BALLERINI Y ARECO; S35 - NAHUEL HUAPI Y ANGELIS; S36 - FERNANDEZ Y ANGELIS; S37 - ANGELIS ENTRE VILLARROEL Y ESTEBAN FERNANSEZ A 200 M DE VILLARROEL; S46 - NAZARRE ALEJO A 700 M DE PARANÁ; S51 - PARANÁ ENTRE NAZARRE ALEJO Y ARECO A 450 M DE NAZARRE ALEJO; S52 – PARANÁ Y NAVARRO. | AH12: 2009-10-30 | AI12: 2011-03-02 | AJ12: 1709681.5 | AK12: 0 | AL12: 126530.9858 | AM12: 1836212.486 | AN12: 57814.2356 | AO12: 1469174.292 | AP12: 184319.1427 | AQ12: 10642.8333 | AR12: 1760.0418 | AS12: 112501.9401 | AT12: 0 | AU12: 0 | AV12: 0 | AW12: 0 | AX12: 0 | AY12: 0 | AZ12: - | BA12: FINALIZADO | BB12: 1 | BC12: 1 | BD12: -
B13: 12 | C13: 1. ESTADO NACIONAL | D13: 09. EXPANSIÓN DE LA RED DE AGUA POTABLE Y SANEAMIENTO DE CLOACAS | E13: - | F13: - | G13: - | H13: EXPANSIÓN DE REDES DE AGUA | I13: PERFORACIONES ACUÍFERO PUELCHE | J13: EJECUCION DE 10 PERFORACIONES AL ACUIFERO PUELCHE ZONA SUR OBRA ELECTROMECANICA | K13: 2 | L13: 91. OBLIGACIONES DEL TESORO | M13: 356 | N13: AYSA | O13: 95. ASISTENCIA FINANCIERA A EMPRESAS PÚBLICAS Y ENTE BINACIONAL | P13: 5 | Q13: N860565 | R13: 77 | S13: - | T13: 22 Y RECURSOS PROPIOS | U13: 5 | V13: 5 | W13: 7 | X13: 753 | Y13: 3 | Z13: 8 | AA13: 2 | AB13: 2 | AC13: SA6211 | AD13: - | AE13: CUENCA MATANZA RIACHUELO | AF13: ÁREA DE LA CONCESIÓN DE AYSA | AG13: LA UBICACIÓN DE LOS POZOS DE EXPLOTACIÓN ESTARÁN DENTRO DEL ÁREA DE CONCESIÓN BAJO LA CUAL AYSA PRESTA EL SERVICIO DE AGUA Y SUS UBICACIONES DEFINITIVAS SERÁN DETERMINADAS POR LA INSPECCIÓN DE OBRA EN CADA CASO PARTICULAR. | AH13: 2009-11-24 | AI13: 2011-09-20 | AJ13: 1370773.087 | AK13: 296397.7038 | AL13: 328632.3547 | AM13: 1995803.146 | AN13: 1028243.637 | AO13: 714441.475 | AP13: 56181.4132 | AQ13: 9059.8597 | AR13: 16408.1808 | AS13: 5862.1838 | AT13: 5843.4772 | AU13: 14484.6559 | AV13: 64914.7818 | AW13: 80363.481 | AX13: 0 | AY13: 0 | AZ13: - | BA13: FINALIZADO | BB13: 1 | BC13: 1 | BD13: EN 2018 SE MODIFICA EL CÓDIGO DE ACTIVIDAD DE LA APERTURA PROGRAMÁTICA DE 5 A 77, UG DE 96 A 2 Y FF DE 11 A 22. EL PROYECTO TAMBIÉN SERÁ FINANCIADO CON RECURSOS PROPIOS DE AYSA
B14: 13 | C14: 1. ESTADO NACIONAL | D14: 09. EXPANSIÓN DE LA RED DE AGUA POTABLE Y SANEAMIENTO DE CLOACAS | E14: - | F14: - | G14: - | H14: EXPANSIÓN DE REDES | I14: SISTEMA VIRREY DEL PINO- LA MATANZA | J14: POZOS BATERIA VIRREY DEL PINO SEGUNDA ETAPA OBRA CIVIL | K14: 2 | L14: 91. OBLIGACIONES DEL TESORO | M14: 356 | N14: AYSA | O14: 95. ASISTENCIA FINANCIERA A EMPRESAS PÚBLICAS Y ENTE BINACIONAL | P14: 5 | Q14: N860527 | R14: 5 | S14: - | T14: 11 | U14: 5 | V14: 5 | W14: 7 | X14: 753 | Y14: 3 | Z14: 8 | AA14: 96 | AB14: 2 | AC14: OA41717 | AD14: - | AE14: LA MATANZA | AF14: VIRREY DEL PINO | AG14: LA UBICACIÓN DE LOS POZOS DE EXPLOTACIÓN ES LA SIGUIENTE: S16 – ARECO E/ GUEVARA Y HERRERA; S17 – ARECO Y AVALOS; S26 - ARECO E/ QUERANDÍES Y MASSOTTI; S27 – ARECO Y PAVÓN; S39 - ARECO A 650 M DE A. SAN JUAN; S41 - ARECO Y PARANÁ A 50M DE PARANÁ; S42 - ANTONIO SAN JUAN A 700M DE ARECO; S43 - ANTONIO SAN JUAN A 1400M DE ARECO; S44 - ANTONIO SAN JUAN A 2100M DE ARECO; S45 - ANTONIO SAN JUAN A 2800M DE ARECO. | AH14: 2009-11-27 | AI14: 2010-08-20 | AJ14: 2126370.57 | AK14: 676870.4426 | AL14: 566825.347 | AM14: 3370066.36 | AN14: 2768148.412 | AO14: 558141.0197 | AP14: 39553.1818 | AQ14: 4223.747 | AR14: 0 | AS14: -0.61 | AT14: 0 | AU14: 0 | AV14: 0 | AW14: 0 | AX14: 0 | AY14: 0 | AZ14: - | BA14: FINALIZADO | BB14: 0.9999998205 | BC14: 1 | BD14: -
B15: 14 | C15: 1. ESTADO NACIONAL | D15: 09. EXPANSIÓN DE LA RED DE AGUA POTABLE Y SANEAMIENTO DE CLOACAS | E15: - | F15: - | G15: - | H15: EXPANSIÓN DE REDES | I15: SISTEMA VIRREY DEL PINO- LA MATANZA | J15: BATERIA VIRREY DEL PINO ETAPA I (20 POZOS) LA MATANZA (OBRA ELECTROMECANICA) | K15: 2 | L15: 91. OBLIGACIONES DEL TESORO | M15: 356 | N15: AYSA | O15: 95. ASISTENCIA FINANCIERA A EMPRESAS PÚBLICAS Y ENTE BINACIONAL | P15: 5 | Q15: N760519 | R15: 5 | S15: - | T15: 11 | U15: 5 | V15: 5 | W15: 7 | X15: 753 | Y15: 3 | Z15: 8 | AA15: 96 | AB15: 2 | AC15: OA4991 | AD15: - | AE15: LA MATANZA | AF15: VIRREY DEL PINO | AG15: LA UBICACIÓN DE LOS POZOS ES LA SIGUIENTE: S5 – URIEN (A 100 M LÍNEA ALTA TENSIÓN); S7 – CURUMALAL Y VILELA; S10 – BALLEIRINI Y CHIVILCOY; S12 – URIEN ENTRE D. DE VILLARROEL Y SIN NOMBRE (A 20 M PORTÓN EL CORTIJO); S14 – ARECO ENTRE ISRAEL Y G. DEL RÍO (A 500 M DE URIEN); S15 – ARECO J J.A. NELLY (A 800 M TRANQUERA EL CIMARRÓN); S18 – ESPERANZA; S19 – ESPERANZA Y SIN NOMBRE; S21 – QUERANDÍES Y J.F. CALDAS; S22 – QUERANDÍES ENTRE NUÑEZ Y CALDAS (A 400 M SIN NOMBRE FRENTE TRANQUERA LA LOBÍA); S23 – N. HUAPI ENTRE M. ECHENAGOCIA Y A. PILLADO; S24 - J.F. CALDAS ENTRE M. ECHENAGOCIA Y J.A. DE LA PEÑA; S25 – J.F. CALDAS Y PLANES; S28 – ARECO Y H. PLAZA; S29 – ARECO Y LOEFLER (A 200M DE LOEFLER); S38 – ARECO Y REMEDIOS (A 100 M DE REMEDIOS); S40 – ARECO; S56 – N. HUAPI Y PLANES; S58 – URIEN Y SIN NOMBRE; S60 – CALIFORNIA Y SOLOM. | AH15: 2007-10-29 | AI15: 2008-05-16 | AJ15: 1315445.644 | AK15: -125797.2144 | AL15: 1490228.22 | AM15: 2679876.649 | AN15: 2440170.204 | AO15: 43305.1861 | AP15: 3130.7782 | AQ15: 11018.5141 | AR15: 182251.9666 | AS15: 0 | AT15: 0 | AU15: 0 | AV15: 0 | AW15: 0 | AX15: 0 | AY15: 0 | AZ15: - | BA15: FINALIZADO | BB15: 1 | BC15: 1 | BD15: -
B16: 15 | C16: 1. ESTADO NACIONAL | D16: 09. EXPANSIÓN DE LA RED DE AGUA POTABLE Y SANEAMIENTO DE CLOACAS | E16: - | F16: - | G16: - | H16: EXPANSIÓN DE REDES | I16: SISTEMA GLEW-ALMIRANTE BROWN | J16: NUEVAS PERFORACIONES POR ADMINISTRACION OBRA CIVIL | K16: 2 | L16: 91. OBLIGACIONES DEL TESORO | M16: 356 | N16: AYSA | O16: 95. ASISTENCIA FINANCIERA A EMPRESAS PÚBLICAS Y ENTE BINACIONAL | P16: 5 | Q16: N960502 | R16: 5 | S16: - | T16: 11 | U16: 5 | V16: 5 | W16: 7 | X16: 753 | Y16: 3 | Z16: 8 | AA16: 96 | AB16: 2 | AC16: SIN P3 | AD16: - | AE16: ALMIRANTE BROWN - ESTEBAN ECHEVERRÍA - LA MATANZA | AF16: ALMIRANTE BROWN (MTRO. RIVADAVIA - BURZACO) / ESTEBAN ECHEVERRÍA (MONTE GRANDE) / LA MATANZA (GONZALEZ CATÁN, RAFAEL CASTILLO, VIRREY DEL PINO) | AG16: NOTA 24 | AH16: 2009-05-31 | AI16: Año 2016 | AJ16: 2768661.155 | AK16: 0 | AL16: 518341.9941 | AM16: 3287003.149 | AN16: 1602221.548 | AO16: 1227623.553 | AP16: 409998.1061 | AQ16: 27041.7553 | AR16: -330.814 | AS16: 20449 | AT16: 0 | AU16: 0 | AV16: 0 | AW16: 0 | AX16: 0 | AY16: 0 | AZ16: - | BA16: FINALIZADO | BB16: 1 | BC16: 1 | BD16: -
B17: 16 | C17: 1. ESTADO NACIONAL | D17: 09. EXPANSIÓN DE LA RED DE AGUA POTABLE Y SANEAMIENTO DE CLOACAS | E17: - | F17: - | G17: - | H17: EXPANSIÓN DE REDES | I17: ACUÍFERO PUELCHE | J17: EJECUCION DE 10 PERFORACIONES AL ACUIFERO PUELCHE ZONA SUR OBRA CIVIL | K17: 2 | L17: 91. OBLIGACIONES DEL TESORO | M17: 356 | N17: AYSA | O17: 95. ASISTENCIA FINANCIERA A EMPRESAS PÚBLICAS Y ENTE BINACIONAL | P17: 5 | Q17: N860564 | R17: 5 | S17: - | T17: 11 | U17: 5 | V17: 5 | W17: 7 | X17: 753 | Y17: 3 | Z17: 8 | AA17: 96 | AB17: 2 | AC17: SA621 | AD17: - | AE17: ÁREA DE LA CONCESIÓN DE AYSA-PARTIDOS VARIOS: ITUZAINGÓ, LA MATANZA Y EZEIZA. | AF17: ÁREA DE LA CONCESIÓN DE AYSA | AG17: LA UBICACIÓN DE LOS POZOS DE EXPLOTACIÓN ESTARÁN DENTRO DEL ÁREA DE CONCESIÓN BAJO LA CUAL AYSA PRESTA EL SERVICIO DE AGUA Y SUS UBICACIONES DEFINITIVAS SERÁN DETERMINADAS POR LA INSPECCIÓN DE OBRA EN CADA CASO PARTICULAR. | AH17: 2009-11-24 | AI17: 2011-09-20 | AJ17: 2658815.837 | AK17: 160418.3636 | AL17: 328394.7865 | AM17: 3147628.987 | AN17: 2837347.598 | AO17: 301640.2224 | AP17: 8641.1666 | AQ17: 0 | AR17: 0 | AS17: 0 | AT17: 0 | AU17: 0 | AV17: 0 | AW17: 0 | AX17: 0 | AY17: 0 | AZ17: - | BA17: FINALIZADO | BB17: 1 | BC17: 1 | BD17: -
B18: 17 | C18: 1. ESTADO NACIONAL | D18: 09. EXPANSIÓN DE LA RED DE AGUA POTABLE Y SANEAMIENTO DE CLOACAS | E18: - | F18: - | G18: - | H18: EXPANSIÓN DE REDES | I18: SISTEMA GLEW-ALMIRANTE BROWN | J18: IMPULSIÓN DE POZOS BATERÍA GLEW ETAPA 2 | K18: 2 | L18: 91. OBLIGACIONES DEL TESORO | M18: 356 | N18: AYSA | O18: 95. ASISTENCIA FINANCIERA A EMPRESAS PÚBLICAS Y ENTE BINACIONAL | P18: 5 | Q18: C960521 | R18: 5 | S18: - | T18: 11 | U18: 5 | V18: 5 | W18: 7 | X18: 753 | Y18: 3 | Z18: 8 | AA18: 96 | AB18: 2 | AC18: SA604 | AD18: - | AE18: ALMIRANTE BROWN | AF18: GLEW | AG18: EL RECORRIDO COMIENZA EN LA CALLE RIVERA, CONTINUANDO POR AV. JUAN B. JUSTO, AV. ZEBALLOS, AV. ESPORA, AV. REP. ARGENTINA CONTINUANDO POR AV. JUAN B. JUSTO HASTA EL CRUCE CON AV. ESPORA. | AH18: 2009-12-29 | AI18: 2013-09-30 | AJ18: 20171479.05 | AK18: 5733619.629 | AL18: 1317334.49 | AM18: 27222433.17 | AN18: 6051570.883 | AO18: 14654376.62 | AP18: 616006.8376 | AQ18: 1610821.042 | AR18: 4278186.01 | AS18: 11471.2114 | AT18: 0 | AU18: 0 | AV18: 0 | AW18: 0 | AX18: 0 | AY18: 0 | AZ18: - | BA18: FINALIZADO | BB18: 1 | BC18: 1 | BD18: -
B19: 18 | C19: 1. ESTADO NACIONAL | D19: 09. EXPANSIÓN DE LA RED DE AGUA POTABLE Y SANEAMIENTO DE CLOACAS | E19: - | F19: - | G19: - | H19: EXPANSIÓN DE REDES | I19: SISTEMA VIRREY DEL PINO- LA MATANZA | J19: BATERIA VIRREY DEL PINO ETAPA I (20 POZOS) LA MATANZA (OBRA CIVIL) | K19: 2 | L19: 91. OBLIGACIONES DEL TESORO | M19: 356 | N19: AYSA | O19: 95. ASISTENCIA FINANCIERA A EMPRESAS PÚBLICAS Y ENTE BINACIONAL | P19: 5 | Q19: N760518 | R19: 5 | S19: - | T19: 11 | U19: 5 | V19: 5 | W19: 7 | X19: 753 | Y19: 3 | Z19: 8 | AA19: 96 | AB19: 2 | AC19: OA499 | AD19: - | AE19: LA MATANZA | AF19: VIRREY DEL PINO | AG19: LA UBICACIÓN DE LOS POZOS ES LA SIGUIENTE: S5 – URIEN (A 100 M LÍNEA ALTA TENSIÓN); S7 – CURUMALAL Y VILELA; S10 – BALLEIRINI Y CHIVILCOY; S12 – URIEN ENTRE D. DE VILLARROEL Y SIN NOMBRE (A 20 M PORTÓN EL CORTIJO); S14 – ARECO ENTRE ISRAEL Y G. DEL RÍO (A 500 M DE URIEN); S15 – ARECO J J.A. NELLY (A 800 M TRANQUERA EL CIMARRÓN); S18 – ESPERANZA; S19 – ESPERANZA Y SIN NOMBRE; S21 – QUERANDÍES Y J.F. CALDAS; S22 – QUERANDÍES ENTRE NUÑEZ Y CALDAS (A 400 M SIN NOMBRE FRENTE TRANQUERA LA LOBÍA); S23 – N. HUAPI ENTRE M. ECHENAGOCIA Y A. PILLADO; S24 - J.F. CALDAS ENTRE M. ECHENAGOCIA Y J.A. DE LA PEÑA; S25 – J.F. CALDAS Y PLANES; S28 – ARECO Y H. PLAZA; S29 – ARECO Y LOEFLER (A 200M DE LOEFLER); S38 – ARECO Y REMEDIOS (A 100 M DE REMEDIOS); S40 – ARECO; S56 – N. HUAPI Y PLANES; S58 – URIEN Y SIN NOMBRE; S60 – CALIFORNIA Y SOLOM. | AH19: 2007-10-29 | AI19: 2010-03-01 | AJ19: 3864996.859 | AK19: 507710.5913 | AL19: 629804.032 | AM19: 5002511.482 | AN19: 4730679.005 | AO19: 1721.7574 | AP19: 263538 | AQ19: 6572.72 | AR19: 0 | AS19: 0 | AT19: 0 | AU19: 0 | AV19: 0 | AW19: 0 | AX19: 0 | AY19: 0 | AZ19: - | BA19: FINALIZADO | BB19: 1 | BC19: 1 | BD19: -
B20: 19 | C20: 1. ESTADO NACIONAL | D20: 09. EXPANSIÓN DE LA RED DE AGUA POTABLE Y SANEAMIENTO DE CLOACAS | E20: - | F20: - | G20: - | H20: EXPANSIÓN DE REDES | I20: SISTEMA VIRREY DEL PINO- LA MATANZA | J20: BATERIA VIRREY DEL PINO ETAPA I (12 POZOS) LA MATANZA (OBRA CIVIL) | K20: 2 | L20: 91. OBLIGACIONES DEL TESORO | M20: 356 | N20: AYSA | O20: 95. ASISTENCIA FINANCIERA A EMPRESAS PÚBLICAS Y ENTE BINACIONAL | P20: 5 | Q20: N760520 | R20: 5 | S20: - | T20: 11 | U20: 5 | V20: 5 | W20: 7 | X20: 753 | Y20: 3 | Z20: 8 | AA20: 96 | AB20: 2 | AC20: OA492 | AD20: - | AE20: LA MATANZA | AF20: VIRREY DEL PINO | AG20: LA UBICACIÓN DE LOS POZOS ES: S30 – LOEFLER ENTRE E. FERNANDEZ Y D. DE VILLARROEL; S31 – LOEFLER ENTRE N. HUAPI Y E. FERNANDEZ; S32 – LOEFLER ENTRE F.J. NUÑEZ Y N. HUAPI; S33 – P. DE ANGELIS Y J.F. CALDAS; S34 – P. DE ANGELIS Y F. J. NUÑEZ; S47 – NAVARRO A 700 M DE PARANÁ; S48 – MURULLO A 400 M DE PARANÁ; S49 – PARANÁ A 750M DE ARECO; S50 – PARANÁ E/ NAVARRO Y ARECO (A 700M DE ARECO); S53 – PARANÁ E/ NAVARRO Y MURILLO (A 200M DE MURILLO); S54 – PARANÁ E/ MURILLO Y CALLE SIN NOMBRE (A 550M DE MURILLO); S55 – SIN NOMBRE A 650M DE PARANÁ. | AH20: 2007-12-20 | AI20: 2010-05-01 | AJ20: 2234862.704 | AK20: -566614.2746 | AL20: 269459.3891 | AM20: 1937707.818 | AN20: 1894496.407 | AO20: 43211.4111 | AP20: 0 | AQ20: 0 | AR20: 0 | AS20: 0 | AT20: 0 | AU20: 0 | AV20: 0 | AW20: 0 | AX20: 0 | AY20: 0 | AZ20: - | BA20: FINALIZADO | BB20: 1 | BC20: 1 | BD20: -
B21: 20 | C21: 1. ESTADO NACIONAL | D21: 09. EXPANSIÓN DE LA RED DE AGUA POTABLE Y SANEAMIENTO DE CLOACAS | E21: - | F21: - | G21: - | H21: EXPANSIÓN DE REDES | I21: ACUÍFERO PUELCHE | J21: EJECUCION POZO AL HIPOPUELCHE REBOMBEO TEMPERLEY OBRA ELECTROMECANICA | K21: 2 | L21: 91. OBLIGACIONES DEL TESORO | M21: 356 | N21: AYSA | O21: 95. ASISTENCIA FINANCIERA A EMPRESAS PÚBLICAS Y ENTE BINACIONAL | P21: 5 | Q21: N760530 | R21: 5 | S21: - | T21: 11 | U21: 5 | V21: 5 | W21: 7 | X21: 753 | Y21: 3 | Z21: 8 | AA21: 96 | AB21: 2 | AC21: SA60011E | AD21: - | AE21: LOMAS DE ZAMORA | AF21: TEMPERLEY | AG21: LA UBICACIÓN DEL POZO SERÁ EN LOS ALREDEDORES DEL REBOMBEO TEMPERLEY, EN LOMAS DE ZAMORA. | AH21: 2008-04-21 | AI21: 2008-05-21 | AJ21: 166878.0091 | AK21: 0 | AL21: 0 | AM21: 166878.0091 | AN21: 166878.0091 | AO21: 0 | AP21: 0 | AQ21: 0 | AR21: 0 | AS21: 0 | AT21: 0 | AU21: 0 | AV21: 0 | AW21: 0 | AX21: 0 | AY21: 0 | AZ21: - | BA21: FINALIZADO | BB21: 1 | BC21: 1 | BD21: -
B22: 21 | C22: 1. ESTADO NACIONAL | D22: 09. EXPANSIÓN DE LA RED DE AGUA POTABLE Y SANEAMIENTO DE CLOACAS | E22: - | F22: - | G22: - | H22: EXPANSIÓN DE REDES | I22: ACUÍFERO PUELCHE | J22: EJECUCION DE 25 PERFORACIONES AL PUELCHE ZONA SUR OBRA CIVIL | K22: 2 | L22: 91. OBLIGACIONES DEL TESORO | M22: 356 | N22: AYSA | O22: 95. ASISTENCIA FINANCIERA A EMPRESAS PÚBLICAS Y ENTE BINACIONAL | P22: 5 | Q22: N760532 | R22: 5 | S22: - | T22: 11 | U22: 5 | V22: 5 | W22: 7 | X22: 753 | Y22: 3 | Z22: 8 | AA22: 96 | AB22: 2 | AC22: SA598 | AD22: - | AE22: ÁREA DE LA CONCESIÓN DE AYSA-PARTIDOS VARIOS: TIGRE, ALMIRANTE BROWN, ESTEBAN ECHEVERRÍA, SAN MARTÍN, MORÓN Y EZEIZA. | AF22: ÁREA DE LA CONCESIÓN DE AYSA | AG22: LA UBICACIÓN DE LOS POZOS DE EXPLOTACIÓN ESTARÁ DENTRO DEL ÁREA DE CONCESIÓN BAJO LA CUAL AYSA PRESTA EL SERVICIO DE AGUA. | AH22: 2007-10-29 | AI22: 2008-09-10 | AJ22: 5951771.692 | AK22: 0 | AL22: 1653.465 | AM22: 5953425.157 | AN22: 5851016.831 | AO22: 0 | AP22: 93938.3258 | AQ22: 8470 | AR22: 0 | AS22: 0 | AT22: 0 | AU22: 0 | AV22: 0 | AW22: 0 | AX22: 0 | AY22: 0 | AZ22: - | BA22: FINALIZADO | BB22: 1 | BC22: 1 | BD22: -
B23: 22 | C23: 1. ESTADO NACIONAL | D23: 09. EXPANSIÓN DE LA RED DE AGUA POTABLE Y SANEAMIENTO DE CLOACAS | E23: - | F23: - | G23: - | H23: EXPANSIÓN DE REDES | I23: SISTEMA GLEW-ALMIRANTE BROWN | J23: BATERÍA DE POZOS GLEW- 2DA ETAPA OBRA CIVIL | K23: 2 | L23: 91. OBLIGACIONES DEL TESORO | M23: 356 | N23: AYSA | O23: 95. ASISTENCIA FINANCIERA A EMPRESAS PÚBLICAS Y ENTE BINACIONAL | P23: 5 | Q23: N860556 | R23: 5 | S23: - | T23: 11 | U23: 5 | V23: 5 | W23: 7 | X23: 753 | Y23: 3 | Z23: 8 | AA23: 96 | AB23: 2 | AC23: SA6021 | AD23: - | AE23: ALMIRANTE BROWN | AF23: GLEW | AG23: LOS POZOS SE UBICAN DENTRO DE LAS INMEDIACIONES DE LAS CALLES ZEBALLOS Y AV. REP. ARGENTINA, Y RIVERA Y ESPORA. | AH23: 2009-01-22 | AI23: 2010-11-01 | AJ23: 744448.87 | AK23: 955091.3449 | AL23: 140377.0731 | AM23: 1839917.288 | AN23: 1758855.25 | AO23: 81062.0382 | AP23: 0 | AQ23: 0 | AR23: 0 | AS23: 0 | AT23: 0 | AU23: 0 | AV23: 0 | AW23: 0 | AX23: 0 | AY23: 0 | AZ23: - | BA23: FINALIZADO | BB23: 1 | BC23: 1 | BD23: -
B24: 23 | C24: 1. ESTADO NACIONAL | D24: 09. EXPANSIÓN DE LA RED DE AGUA POTABLE Y SANEAMIENTO DE CLOACAS | E24: - | F24: - | G24: - | H24: EXPANSIÓN DE REDES | I24: SISTEMA GLEW-ALMIRANTE BROWN | J24: BATERÍA DE POZOS GLEW- 2DA ETAPA OBRA ELECTROMECÁNICA | K24: 2 | L24: 91. OBLIGACIONES DEL TESORO | M24: 356 | N24: AYSA | O24: 95. ASISTENCIA FINANCIERA A EMPRESAS PÚBLICAS Y ENTE BINACIONAL | P24: 5 | Q24: N860557 | R24: 5 | S24: - | T24: 11 | U24: 5 | V24: 5 | W24: 7 | X24: 753 | Y24: 3 | Z24: 8 | AA24: 96 | AB24: 2 | AC24: SA6022 | AD24: - | AE24: ALMIRANTE BROWN | AF24: GLEW | AG24: LOS POZOS SE UBICAN DENTRO DE LAS INMEDIACIONES DE LAS CALLES ZEBALLOS Y AV. REP. ARGENTINA, Y RIVERA Y ESPORA. | AH24: 2009-09-15 | AI24: 2010-11-01 | AJ24: 225674.68 | AK24: 310323.9084 | AL24: 682875.5516 | AM24: 1218874.14 | AN24: 744118.7941 | AO24: 473945.2509 | AP24: 810.095 | AQ24: 0 | AR24: 0 | AS24: 0 | AT24: 0 | AU24: 0 | AV24: 0 | AW24: 0 | AX24: 0 | AY24: 0 | AZ24: - | BA24: FINALIZADO | BB24: 1 | BC24: 1 | BD24: -
B25: 24 | C25: 1. ESTADO NACIONAL | D25: 09. EXPANSIÓN DE LA RED DE AGUA POTABLE Y SANEAMIENTO DE CLOACAS | E25: - | F25: - | G25: - | H25: EXPANSIÓN DE REDES | I25: SISTEMA VIRREY DEL PINO- LA MATANZA | J25: EJECUCIÓN BAT. V. DEL PINO - 2DA ETAPA - FASE B - 11 PERFORACIONES - LA MATANZA - OBRA ELECTRO | K25: 2 | L25: 91. OBLIGACIONES DEL TESORO | M25: 356 | N25: AYSA | O25: 95. ASISTENCIA FINANCIERA A EMPRESAS PÚBLICAS Y ENTE BINACIONAL | P25: 5 | Q25: N960513 | R25: 5 | S25: - | T25: 11 | U25: 5 | V25: 5 | W25: 7 | X25: 753 | Y25: 3 | Z25: 8 | AA25: 96 | AB25: 2 | AC25: OA417181 | AD25: - | AE25: LA MATANZA | AF25: VIRREY DEL PINO | AG25: LA UBICACIÓN DE LOS POZOS DE EXPLOTACIÓN ES LA SIGUIENTE: S1 - SAENZ A 400 M DE AROMA; S2 - SAENZ ENTRE AROMA Y SALVADOR DEL CARRIL A 200 M DE AROMA; S3 - SAENZ ENTRE SALVADOR DEL CARRIL Y CARBAJAL A 100 M DE CARBAJAL; S4 - URIEN Y SAENZ; S8 - BALLERINI Y ARECO; S35 - NAHUEL HUAPI Y ANGELIS; S36 - FERNANDEZ Y ANGELIS; S37 - ANGELIS ENTRE VILLARROEL Y ESTEBAN FERNANSEZ A 200 M DE VILLARROEL; S46 - NAZARRE ALEJO A 700 M DE PARANÁ; S51 - PARANÁ ENTRE NAZARRE ALEJO Y ARECO A 450 M DE NAZARRE ALEJO; S52 – PARANÁ Y NAVARRO. | AH25: 2009-10-30 | AI25: 2011-03-02 | AJ25: 1258002.999 | AK25: 0 | AL25: 52995.3622 | AM25: 1310998.361 | AN25: 168250.5 | AO25: 297562.8612 | AP25: 0 | AQ25: 824736 | AR25: 0 | AS25: 20449 | AT25: 0 | AU25: 0 | AV25: 0 | AW25: 0 | AX25: 0 | AY25: 0 | AZ25: - | BA25: FINALIZADO | BB25: 1 | BC25: 1 | BD25: -
B26: 25 | C26: 1. ESTADO NACIONAL | D26: 09. EXPANSIÓN DE LA RED DE AGUA POTABLE Y SANEAMIENTO DE CLOACAS | E26: - | F26: - | G26: - | H26: EXPANSIÓN DE REDES | I26: SISTEMA VIRREY DEL PINO- LA MATANZA | J26: IMPULSION BATERIA VIRREY DEL PINO | K26: 2 | L26: 91. OBLIGACIONES DEL TESORO | M26: 356 | N26: AYSA | O26: 95. ASISTENCIA FINANCIERA A EMPRESAS PÚBLICAS Y ENTE BINACIONAL | P26: 5 | Q26: N860513 | R26: 5 | S26: - | T26: 11 | U26: 5 | V26: 5 | W26: 7 | X26: 753 | Y26: 3 | Z26: 8 | AA26: 96 | AB26: 2 | AC26: OA455 | AD26: - | AE26: LA MATANZA | AF26: VIRREY DEL PINO | AG26: LA TRAZA DEL CONDUCTO SE DESARROLLA POR LOS SIGUIENTES TRAMOS: - ISRAEL E/ BRAGADO Y CIUDADELA; - LÁZARO GRIVEO E/ CIUDADELA Y RUTA NACIONAL N°3; - CIUDADELA E/ ISRAEL Y ESPERANZA; - ESPERANZA E/ MANZANARES Y ARECO. | AH26: 2008-12-16 | AI26: 2010-02-28 | AJ26: 31329538.86 | AK26: 6358256.309 | AL26: 780370.7087 | AM26: 38468165.88 | AN26: 36559163.54 | AO26: 1729624.88 | AP26: 179377.4664 | AQ26: 0 | AR26: 0 | AS26: 0 | AT26: 0 | AU26: 0 | AV26: 0 | AW26: 0 | AX26: 0 | AY26: 0 | AZ26: - | BA26: FINALIZADO | BB26: 1 | BC26: 1 | BD26: -
B27: 26 | C27: 1. ESTADO NACIONAL | D27: 09. EXPANSIÓN DE LA RED DE AGUA POTABLE Y SANEAMIENTO DE CLOACAS | E27: - | F27: - | G27: - | H27: EXPANSIÓN DE REDES | I27: SISTEMA AGUA MONTE GRANDE- ESTEBAN ECHEVERRÍA | J27: PRIMARIAS MONTE GRANDE SUR - FASE A | K27: 2 | L27: 91. OBLIGACIONES DEL TESORO | M27: 356 | N27: AYSA | O27: 95. ASISTENCIA FINANCIERA A EMPRESAS PÚBLICAS Y ENTE BINACIONAL | P27: 5 | Q27: N960010 | R27: 5 | S27: - | T27: 11 | U27: 5 | V27: 5 | W27: 7 | X27: 753 | Y27: 3 | Z27: 8 | AA27: 96 | AB27: 2 | AC27: SA022 | AD27: - | AE27: ESTEBAN ECHEVERRÍA | AF27: MONTE GRANDE | AG27: EL RECORRIDO COMIENZA EN AZUL. Y NAVARRO, SIGUIENDO POR ESTA HASTA LA ALTURA DE PEHUAJÓ, DONDE DOBLA HASTA LA CALLE GRAL. LAVALLE CONTINUANDO PARA LUEGO DOBLA EN BOLÍVAR, DORREGO, FRAGA Y GRAL. PAZ, FINALIZANDO EN EL CRUCE CON AV. PEDRO DREYER. | AH27: 2009-11-02 | AI27: 2011-06-20 | AJ27: 11231091.38 | AK27: 39607.0873 | AL27: 709579.2836 | AM27: 11980277.75 | AN27: 4068960.315 | AO27: 6993891.319 | AP27: 917426.114 | AQ27: 0 | AR27: 0 | AS27: 0 | AT27: 0 | AU27: 0 | AV27: 0 | AW27: 0 | AX27: 0 | AY27: 0 | AZ27: - | BA27: FINALIZADO | BB27: 1 | BC27: 1 | BD27: -
B28: 27 | C28: 1. ESTADO NACIONAL | D28: 09. EXPANSIÓN DE LA RED DE AGUA POTABLE Y SANEAMIENTO DE CLOACAS | E28: - | F28: - | G28: - | H28: EXPANSIÓN DE REDES | I28: SISTEMA AGUA EZEIZA | J28: RED SECUNDARIA EZEIZA CENTRO | K28: 2 | L28: 91. OBLIGACIONES DEL TESORO | M28: 356 | N28: AYSA | O28: 95. ASISTENCIA FINANCIERA A EMPRESAS PÚBLICAS Y ENTE BINACIONAL | P28: 5 | Q28: C960105 | R28: 5 | S28: - | T28: 11 | U28: 5 | V28: 5 | W28: 7 | X28: 753 | Y28: 3 | Z28: 8 | AA28: 96 | AB28: 2 | AC28: SA428 | AD28: - | AE28: EZEIZA | AF28: LA UNIÓN | AG28: LA RED SECUNDARIA DE PROVISIÓN DE AGUA POTABLE ES LA DELIMITADA POR LAS CALLES: J. DE GARAY; MARINOS DEL FOURNIER; VICENTE LÓPEZ Y PLANES; E. MITRE; URUGUAYANA; LAMADRID; CONQUISTA DEL DESIERTO Y ALTO PERÚ. | AH28: 2009-12-04 | AI28: 2011-06-01 | AJ28: 18404525.33 | AK28: 20095.3412 | AL28: 1053572.579 | AM28: 19478193.25 | AN28: 5489868.276 | AO28: 10480216.12 | AP28: 3508108.847 | AQ28: 0 | AR28: 0 | AS28: 0 | AT28: 0 | AU28: 0 | AV28: 0 | AW28: 0 | AX28: 0 | AY28: 0 | AZ28: - | BA28: FINALIZADO | BB28: 1 | BC28: 1 | BD28: -
B29: 28 | C29: 1. ESTADO NACIONAL | D29: 09. EXPANSIÓN DE LA RED DE AGUA POTABLE Y SANEAMIENTO DE CLOACAS | E29: - | F29: - | G29: - | H29: EXPANSIÓN DE REDES | I29: SISTEMA UNIÓN-EZEIZA | J29: IMPULSIÓN E INTERCONEXIÓN DE POZOS BATERÍA UNIÓN - ETAPA 1 - FASE A | K29: 2 | L29: 91. OBLIGACIONES DEL TESORO | M29: 356 | N29: AYSA | O29: 95. ASISTENCIA FINANCIERA A EMPRESAS PÚBLICAS Y ENTE BINACIONAL | P29: 5 | Q29: C960522 | R29: 5 | S29: - | T29: 11 | U29: 5 | V29: 5 | W29: 7 | X29: 753 | Y29: 3 | Z29: 8 | AA29: 96 | AB29: 2 | AC29: SA105 | AD29: - | AE29: EZEIZA | AF29: LA UNIÓN/CANNING | AG29: LA TRAZA DE LA INTERCONEXIÓN INCLUYE EL SIGUIENTE RECORRIDO: DE LAS CALLES SGTO. CABRAL EN EL S16, LUEGO SIGUE POR LACARRA Y POR D. LAURE HASTA LAS ESQUINA DE D. LAURE Y R.N. N°205. | AH29: 2009-12-01 | AI29: 2011-03-01 | AJ29: 21292342.68 | AK29: 1492318.809 | AL29: 818906.5346 | AM29: 23603568.02 | AN29: 11336132.61 | AO29: 11201040.45 | AP29: 1066394.961 | AQ29: 0 | AR29: 0 | AS29: 0 | AT29: 0 | AU29: 0 | AV29: 0 | AW29: 0 | AX29: 0 | AY29: 0 | AZ29: - | BA29: FINALIZADO | BB29: 1 | BC29: 1 | BD29: -
B30: 29 | C30: 1. ESTADO NACIONAL | D30: 09. EXPANSIÓN DE LA RED DE AGUA POTABLE Y SANEAMIENTO DE CLOACAS | E30: - | F30: - | G30: - | H30: EXPANSIÓN DE REDES | I30: SISTEMA VIRREY DEL PINO- LA MATANZA | J30: ACUEDUCTO LOS CEDROS-VIRREY DEL PINO | K30: 2 | L30: 91. OBLIGACIONES DEL TESORO | M30: 356 | N30: AYSA | O30: 95. ASISTENCIA FINANCIERA A EMPRESAS PÚBLICAS Y ENTE BINACIONAL | P30: 5 | Q30: N760007 | R30: 5 | S30: - | T30: 11 | U30: 5 | V30: 5 | W30: 7 | X30: 753 | Y30: 3 | Z30: 8 | AA30: 96 | AB30: 2 | AC30: OA456 | AD30: - | AE30: LA MATANZA | AF30: VIRREY DEL PINO | AG30: EL ACUEDUCTO SE EXTIENDE DESDE SU EMPALME CON LA IMPULSIÓN LA MATANZA – LOS CEDROS, EN LA ESQUINA DE ANDALGALÁ Y MONTGOLDFIER, HASTA LA BATERÍA DE POZOS DE VIRREY DEL PINO EN ESPERANZA Y CIUDADELA (ALTURA KM 41,4 APROXIMADAMENTE DE LA RUTA NAC. N° 3) | AH30: 2009-01-13 | AI30: 2011-05-20 | AJ30: 95467597.61 | AK30: 35826597.41 | AL30: 4773379.88 | AM30: 136067574.9 | AN30: 81635608.9 | AO30: 41878225.57 | AP30: 6692302.207 | AQ30: 5636563.062 | AR30: 2971000.047 | AS30: -2746124.887 | AT30: 0 | AU30: 0 | AV30: 0 | AW30: 0 | AX30: 0 | AY30: 0 | AZ30: - | BA30: FINALIZADO | BB30: 1 | BC30: 1 | BD30: -
B31: 30 | C31: 1. ESTADO NACIONAL | D31: 09. EXPANSIÓN DE LA RED DE AGUA POTABLE Y SANEAMIENTO DE CLOACAS | E31: - | F31: - | G31: - | H31: EXPANSIÓN DE REDES | I31: SISTEMA VIRREY DEL PINO- LA MATANZA | J31: VINCULACIÓN ACUEDUCTO LOS CEDROS-VIRREY DEL PINO CON RED LAFERRERE I | K31: 2 | L31: 91. OBLIGACIONES DEL TESORO | M31: 356 | N31: AYSA | O31: 95. ASISTENCIA FINANCIERA A EMPRESAS PÚBLICAS Y ENTE BINACIONAL | P31: 5 | Q31: N860024 | R31: 5 | S31: - | T31: 11 | U31: 5 | V31: 5 | W31: 7 | X31: 753 | Y31: 3 | Z31: 8 | AA31: 96 | AB31: 2 | AC31: OA482 | AD31: - | AE31: LA MATANZA | AF31: LAFERRERE | AG31: LA TRAZA DE LA VINCULACIÓN RECORRE LOS SIGUIENTES TRAMOS: - CALDERÓN DE LA BARCA E/ JOSÉ HERNÁNDEZ Y E. SÁENZ; - CHOPIN E/ CALDERÓN DE LA BARCA Y PEDRO RAULET; - E. SÁENZ E/ CALDERÓN DE LA BARCA Y R. GUTIÉRREZ; - RISSO PATRÓN E/ E. SÁENZ Y TAFI; - SALVIGNY E/ E. SÁENZ Y GARMENDIA; - R. GUTIÉRREZ E/ MARCOS PÁZ Y GARMENDIA. | AH31: 2008-07-28 | AI31: 2010-11-20 | AJ31: 9346277.354 | AK31: 855378.7418 | AL31: 359477.7263 | AM31: 10561133.82 | AN31: 9738485.205 | AO31: 818862.176 | AP31: 3786.4409 | AQ31: 0 | AR31: 0 | AS31: 0 | AT31: 0 | AU31: 0 | AV31: 0 | AW31: 0 | AX31: 0 | AY31: 0 | AZ31: - | BA31: FINALIZADO | BB31: 1 | BC31: 1 | BD31: -
B32: 31 | C32: 1. ESTADO NACIONAL | D32: 09. EXPANSIÓN DE LA RED DE AGUA POTABLE Y SANEAMIENTO DE CLOACAS | E32: - | F32: - | G32: - | H32: EXPANSIÓN DE REDES | I32: SISTEMA VIRREY DEL PINO- LA MATANZA | J32: VINCULACIÓN ACUEDUCTO LOS CEDROS-VIRREY DEL PINO CON RED LAFERRERE II | K32: 2 | L32: 91. OBLIGACIONES DEL TESORO | M32: 356 | N32: AYSA | O32: 95. ASISTENCIA FINANCIERA A EMPRESAS PÚBLICAS Y ENTE BINACIONAL | P32: 5 | Q32: N860025 | R32: 5 | S32: - | T32: 11 | U32: 5 | V32: 5 | W32: 7 | X32: 753 | Y32: 3 | Z32: 8 | AA32: 96 | AB32: 2 | AC32: OA483 | AD32: - | AE32: LA MATANZA | AF32: LAFERRERE / ISIDRO CASANOVA | AG32: SANTA CATALINA DESDE RN N°3 HASTA INCA, POR INCA HASTA MARTÍN GARCÍA, POR MARTÍN GARCÍA HASTA FARDMAN Y POR ÉSTA ÚLTIMA HASTA LURO. DESDE SANTA CATALINA E INCA HASTA ROONEY Y POR ESTA HASTA FARDMAN. DESDE FARDMAN Y ROONEY HASTA ROONEY Y MARTÍN CORONADO Y POR ESTA HASTA COLEGIALES. DESDE MARTÍN CORONADO Y RECUERO HASTA RECUERO Y MAGNASCO. DESDE MARTÍN CORONADO Y COLEGIALES HASTA COLEGIALES Y RUTA 21. | AH32: 2008-12-16 | AI32: 2011-08-15 | AJ32: 6198830 | AK32: 1868797.096 | AL32: 299918.5134 | AM32: 8367545.609 | AN32: 7831259.404 | AO32: 291751.57 | AP32: 244534.6475 | AQ32: 0 | AR32: 0 | AS32: 0 | AT32: 0 | AU32: 0 | AV32: 0 | AW32: 0 | AX32: 0 | AY32: 0 | AZ32: - | BA32: FINALIZADO | BB32: 1 | BC32: 1 | BD32: -
B33: 32 | C33: 1. ESTADO NACIONAL | D33: 09. EXPANSIÓN DE LA RED DE AGUA POTABLE Y SANEAMIENTO DE CLOACAS | E33: - | F33: - | G33: - | H33: EXPANSIÓN DE REDES | I33: SISTEMA VIRREY DEL PINO- LA MATANZA | J33: VINCULACIÓN ACUEDUCTO LOS CEDROS-VIRREY DEL PINO CON RED CATAN I | K33: 2 | L33: 91. OBLIGACIONES DEL TESORO | M33: 356 | N33: AYSA | O33: 95. ASISTENCIA FINANCIERA A EMPRESAS PÚBLICAS Y ENTE BINACIONAL | P33: 5 | Q33: N760022 | R33: 5 | S33: - | T33: 11 | U33: 5 | V33: 5 | W33: 7 | X33: 753 | Y33: 3 | Z33: 8 | AA33: 96 | AB33: 2 | AC33: OA480 /OA034 | AD33: - | AE33: LA MATANZA | AF33: GONZÁLEZ CATAN | AG33: A. PAREJA E/ C. LORENZINI Y BARILOCHE; POR BARILOCHE HASTA MARCOS PAZ. MARCOS PAZ E/ C. LORENZINI Y CNEL. CONDE; POR CNEL. CONDE HASTA SAENZ. MANZONI E/ CNEL. CONDE Y GRAL. RIVAS. J. ESTIVAO E/ CNEL. CONDE Y GRAL. RIVAS. GRAL. RIVAS E/ RN N°3 Y DUNGENES. M. ACOSTA E/ RN N°3 Y VILLANUEVA. VILLANUEVA E/ GRAL. RIVAS Y D. SCARLATTI. ALBATEIROS E/ GRAL. RIVAS Y M. ACOSTA. | AH33: 2007-10-31 | AI33: 2010-08-20 | AJ33: 6697168.694 | AK33: 71052.047 | AL33: 380760.0412 | AM33: 7148980.782 | AN33: 6592986.302 | AO33: 556439.7355 | AP33: 445.2558 | AQ33: 0 | AR33: 0 | AS33: 0 | AT33: 0 | AU33: 0 | AV33: 0 | AW33: 0 | AX33: 0 | AY33: 0 | AZ33: - | BA33: FINALIZADO | BB33: 1 | BC33: 1 | BD33: INCLUYE OA034 VINCULACION LMO79 A BATERIA MARIA ELENA
B34: 33 | C34: 1. ESTADO NACIONAL | D34: 09. EXPANSIÓN DE LA RED DE AGUA POTABLE Y SANEAMIENTO DE CLOACAS | E34: - | F34: - | G34: - | H34: EXPANSIÓN DE REDES | I34: SISTEMA VIRREY DEL PINO- LA MATANZA | J34: BATERIA VIRREY DEL PINO ETAPA I (12 POZOS) LA MATANZA (OBRA ELECTROMECANICA) | K34: 2 | L34: 91. OBLIGACIONES DEL TESORO | M34: 356 | N34: AYSA | O34: 95. ASISTENCIA FINANCIERA A EMPRESAS PÚBLICAS Y ENTE BINACIONAL | P34: 5 | Q34: N760521 | R34: 5 | S34: - | T34: 11 | U34: 5 | V34: 5 | W34: 7 | X34: 753 | Y34: 3 | Z34: 8 | AA34: 96 | AB34: 2 | AC34: OA4921 | AD34: - | AE34: LA MATANZA | AF34: VIRREY DEL PINO | AG34: LA UBICACIÓN DE LOS POZOS ES: S30 – LOEFLER ENTRE E. FERNANDEZ Y D. DE VILLARROEL; S31 – LOEFLER ENTRE N. HUAPI Y E. FERNANDEZ; S32 – LOEFLER ENTRE F.J. NUÑEZ Y N. HUAPI; S33 – P. DE ANGELIS Y J.F. CALDAS; S34 – P. DE ANGELIS Y F. J. NUÑEZ; S47 – NAVARRO A 700 M DE PARANÁ; S48 – MURULLO A 400 M DE PARANÁ; S49 – PARANÁ A 750M DE ARECO; S50 – PARANÁ E/ NAVARRO Y ARECO (A 700M DE ARECO); S53 – PARANÁ E/ NAVARRO Y MURILLO (A 200M DE MURILLO); S54 – PARANÁ E/ MURILLO Y CALLE SIN NOMBRE (A 550M DE MURILLO); S55 – SIN NOMBRE A 650M DE PARANÁ. | AH34: 2007-12-20 | AI34: 2010-05-01 | AJ34: 741737.2963 | AK34: -439606.6488 | AL34: 230220.166 | AM34: 532350.8135 | AN34: 463956.834 | AO34: 68393.9795 | AP34: 0 | AQ34: 0 | AR34: 0 | AS34: 0 | AT34: 0 | AU34: 0 | AV34: 0 | AW34: 0 | AX34: 0 | AY34: 0 | AZ34: - | BA34: FINALIZADO | BB34: 1 | BC34: 1 | BD34: -
B35: 34 | C35: 1. ESTADO NACIONAL | D35: 09. EXPANSIÓN DE LA RED DE AGUA POTABLE Y SANEAMIENTO DE CLOACAS | E35: - | F35: - | G35: - | H35: EXPANSIÓN DE REDES | I35: SISTEMA LA LATA- ESTEBAN ECHEVERRIA | J35: IMPULSION POZOS AMPLIACION BATERIA LA LATA | K35: 2 | L35: 91. OBLIGACIONES DEL TESORO | M35: 356 | N35: AYSA | O35: 95. ASISTENCIA FINANCIERA A EMPRESAS PÚBLICAS Y ENTE BINACIONAL | P35: 5 | Q35: N860008 | R35: 5 | S35: - | T35: 11 | U35: 5 | V35: 5 | W35: 7 | X35: 753 | Y35: 3 | Z35: 8 | AA35: 96 | AB35: 2 | AC35: SA582 | AD35: - | AE35: ESTEBAN ECHEVERRÍA | AF35: MONTE GRANDE | AG35: VENTURA AVILA DESDE MAIPÚ HASTA JUANA DE ARCO; JUANA DE ARCO DESDE VENTURA AVILA HASTA MARTÍN FIERRO; POR MARTÍN FIERRO APROXIMADAMENTE 200M. | AH35: 2008-04-10 | AI35: 2012-04-20 | AJ35: 4253150 | AK35: 585970.4268 | AL35: 486758.316 | AM35: 5325878.743 | AN35: 5503649.208 | AO35: 16223.196 | AP35: 277280.9985 | AQ35: 0 | AR35: 115733.7291 | AS35: 0 | AT35: 0 | AU35: 0 | AV35: 0 | AW35: 0 | AX35: 0 | AY35: 0 | AZ35: - | BA35: FINALIZADO | BB35: 1 | BC35: 1 | BD35: -
B36: 35 | C36: 1. ESTADO NACIONAL | D36: 09. EXPANSIÓN DE LA RED DE AGUA POTABLE Y SANEAMIENTO DE CLOACAS | E36: - | F36: - | G36: - | H36: EXPANSIÓN DE REDES | I36: SISTEMA VIRREY DEL PINO- LA MATANZA | J36: CONDUCTO BATERIA VIRREY DEL PINO | K36: 2 | L36: 91. OBLIGACIONES DEL TESORO | M36: 356 | N36: AYSA | O36: 95. ASISTENCIA FINANCIERA A EMPRESAS PÚBLICAS Y ENTE BINACIONAL | P36: 5 | Q36: N860012 | R36: 5 | S36: - | T36: 11 | U36: 5 | V36: 5 | W36: 7 | X36: 753 | Y36: 3 | Z36: 8 | AA36: 96 | AB36: 2 | AC36: OA4561 | AD36: - | AE36: LA MATANZA | AF36: VIRREY DEL PINO | AG36: LA TRAZA DEL CONDUCTO SE DESARROLLA POR LOS SIGUIENTES TRAMOS: - ISRAEL E/ BRAGADO Y CIUDADELA; - LÁZARO GRIVEO E/ CIUDADELA Y RUTA NACIONAL N°3; - CIUDADELA E/ ISRAEL Y ESPERANZA; - ESPERANZA E/ MANZANARES Y ARECO. | AH36: 2008-12-16 | AI36: 2010-08-20 | AJ36: 12791192.95 | AK36: 1023866.257 | AL36: 441376.8909 | AM36: 14256436.09 | AN36: 13130846.13 | AO36: 1125589.964 | AP36: 0 | AQ36: 0 | AR36: 0 | AS36: 0 | AT36: 0 | AU36: 0 | AV36: 0 | AW36: 0 | AX36: 0 | AY36: 0 | AZ36: - | BA36: FINALIZADO | BB36: 1 | BC36: 1 | BD36: -
B37: 36 | C37: 1. ESTADO NACIONAL | D37: 09. EXPANSIÓN DE LA RED DE AGUA POTABLE Y SANEAMIENTO DE CLOACAS | E37: - | F37: - | G37: - | H37: EXPANSIÓN DE REDES | I37: SISTEMA VIRREY DEL PINO- LA MATANZA | J37: VINCULACION ACUEDUCTO LOS CEDROS-VIRREY DEL PINO CON RED VIRREY DEL PINO | K37: 2 | L37: 91. OBLIGACIONES DEL TESORO | M37: 356 | N37: AYSA | O37: 95. ASISTENCIA FINANCIERA A EMPRESAS PÚBLICAS Y ENTE BINACIONAL | P37: 5 | Q37: N860019 | R37: 5 | S37: - | T37: 11 | U37: 5 | V37: 5 | W37: 7 | X37: 753 | Y37: 3 | Z37: 8 | AA37: 96 | AB37: 2 | AC37: OA477 | AD37: - | AE37: LA MATANZA | AF37: VIRREY DEL PINO | AG37: H. WAST (LUEGO C. RICHET) E/ BANDA Y R. CABRIA. MARANTA E/ URIEN Y CORRALES. EL MORAL E/ J. PENA Y CORRALES. CORRALES E/ J. VERNE Y ARENAS. ACOYTE E/ CORRALES Y M. HERRERA. L. GRIVEO E/ H. WAST Y RP N°3. MONTECARLO E/ EL MORAL Y NOEL. | AH37: 2008-01-14 | AI37: 2008-09-10 | AJ37: 6043597.89 | AK37: 765565.8384 | AL37: 270316.541 | AM37: 7079480.269 | AN37: 7078117.059 | AO37: 1363.2102 | AP37: 0 | AQ37: 0 | AR37: 0 | AS37: 0 | AT37: 0 | AU37: 0 | AV37: 0 | AW37: 0 | AX37: 0 | AY37: 0 | AZ37: - | BA37: FINALIZADO | BB37: 1 | BC37: 1 | BD37: -
B38: 37 | C38: 1. ESTADO NACIONAL | D38: 09. EXPANSIÓN DE LA RED DE AGUA POTABLE Y SANEAMIENTO DE CLOACAS | E38: - | F38: - | G38: - | H38: EXPANSIÓN DE REDES | I38: SISTEMA VIRREY DEL PINO- LA MATANZA | J38: VINCULACIÓN ACUEDUCTO LOS CEDROS-VIRREY DEL PINO CON RED CATAN II | K38: 2 | L38: 91. OBLIGACIONES DEL TESORO | M38: 356 | N38: AYSA | O38: 95. ASISTENCIA FINANCIERA A EMPRESAS PÚBLICAS Y ENTE BINACIONAL | P38: 5 | Q38: N860023 | R38: 5 | S38: - | T38: 11 | U38: 5 | V38: 5 | W38: 7 | X38: 753 | Y38: 3 | Z38: 8 | AA38: 96 | AB38: 2 | AC38: OA481 | AD38: - | AE38: LA MATANZA | AF38: VIRREY DEL PINO | AG38: LA TRAZA DE LA VINCULACIÓN SE DESARROLLA POR LOS SIGUIENTES TRAMOS: - ECHAURRI E/ ENCINA Y SARAZA; - SARAZA E/ ECHAURRI Y DONIZETTI; - MARCO PÁZ E/ ECHAURRI Y RIGLOS; RAFAEL OBLIGADO E/ DONIZETTI Y APIPE; - DE LUCA PATRÓN E/ APIPE Y RIGLOS; - APIPE E/ DE LUCA PATRÓN Y SAN MARTÍN; - SAN MARTÍN E/ APIPE Y CAROLA LORENZINO; - GRAL. MOSCONI E/ APIPE Y ATALCO; - ATALCO E/ RUTA NACIONAL N°3 Y SARAZA; - SANTO TOMÉ E/ INFANTA ISABEL Y ATALCO; - SAENZ E/ ATALCO Y CAROLA LORENZINI. | AH38: 2008-07-24 | AI38: 2010-08-31 | AJ38: 8990575.662 | AK38: 113942.4572 | AL38: 354074.2051 | AM38: 9458592.325 | AN38: 8836060.816 | AO38: 622531.5085 | AP38: 0 | AQ38: 0 | AR38: 0 | AS38: 0 | AT38: 0 | AU38: 0 | AV38: 0 | AW38: 0 | AX38: 0 | AY38: 0 | AZ38: - | BA38: FINALIZADO | BB38: 1 | BC38: 1 | BD38: -
B39: 38 | C39: 1. ESTADO NACIONAL | D39: 09. EXPANSIÓN DE LA RED DE AGUA POTABLE Y SANEAMIENTO DE CLOACAS | E39: - | F39: - | G39: - | H39: EXPANSIÓN DE REDES | I39: SISTEMA VIRREY DEL PINO- LA MATANZA | J39: PLANTA POTABILIZADORA OSMOSIS INVERSA VIRREY DEL PINO | K39: 2 | L39: 91. OBLIGACIONES DEL TESORO | M39: 356 | N39: AYSA | O39: 95. ASISTENCIA FINANCIERA A EMPRESAS PÚBLICAS Y ENTE BINACIONAL | P39: 5 | Q39: N860551 | R39: 5 | S39: - | T39: 11 | U39: 5 | V39: 5 | W39: 7 | X39: 753 | Y39: 3 | Z39: 8 | AA39: 96 | AB39: 2 | AC39: OA493 | AD39: - | AE39: LA MATANZA | AF39: VIRREY DEL PINO | AG39: LA UBICACIÓN ES EN LA ESQUINA DE M. FRAGUEIRO Y CAÑADA DE GOMEZ. | AH39: 2008-05-14 | AI39: 2010-09-30 | AJ39: 43521576.14 | AK39: 4205123.237 | AL39: 1436776.675 | AM39: 49163476.05 | AN39: 50030664.85 | AO39: 867188.8016 | AP39: 0 | AQ39: 0 | AR39: 0 | AS39: 0 | AT39: 0 | AU39: 0 | AV39: 0 | AW39: 0 | AX39: 0 | AY39: 0 | AZ39: - | BA39: FINALIZADO | BB39: 1 | BC39: 1 | BD39: -
B40: 39 | C40: 1. ESTADO NACIONAL | D40: 09. EXPANSIÓN DE LA RED DE AGUA POTABLE Y SANEAMIENTO DE CLOACAS | E40: - | F40: - | G40: - | H40: EXPANSIÓN DE REDES | I40: SISTEMA AGUA RAFAEL CASTILLO- LA MATANZA | J40: BATERIA RAFAEL CASTILLO ETAPA 2-CASTILLO ETAPA 2-CAÑERIA DE INTERCONEXION | K40: 2 | L40: 91. OBLIGACIONES DEL TESORO | M40: 356 | N40: AYSA | O40: 95. ASISTENCIA FINANCIERA A EMPRESAS PÚBLICAS Y ENTE BINACIONAL | P40: 5 | Q40: N865119 | R40: 5 | S40: - | T40: 11 | U40: 5 | V40: 5 | W40: 7 | X40: 753 | Y40: 3 | Z40: 8 | AA40: 96 | AB40: 2 | AC40: OA310 | AD40: - | AE40: LA MATANZA | AF40: RAFAEL CASTILLO | AG40: ACASSUSO E/ SANTA ROSA Y E. DEL CAMPO; E. DEL CAMPO E/ ACASSUSO Y SEQUEIRA; LLAVALLOL E/ E. DEL CAMPO Y TRES CRUCES; TRES CRUCES E/ LLAVALLOL Y ÁFRICA; M. PITA E/ ACASSUSO Y HUALFIN. | AH40: 2008-05-27 | AI40: 2009-12-15 | AJ40: 4088009.999 | AK40: 1176277.869 | AL40: 254853.8784 | AM40: 5519141.746 | AN40: 5521467.438 | AO40: 2325.6926 | AP40: 0 | AQ40: 0 | AR40: 0 | AS40: 0 | AT40: 0 | AU40: 0 | AV40: 0 | AW40: 0 | AX40: 0 | AY40: 0 | AZ40: - | BA40: FINALIZADO | BB40: 1 | BC40: 1 | BD40: -
B41: 40 | C41: 1. ESTADO NACIONAL | D41: 09. EXPANSIÓN DE LA RED DE AGUA POTABLE Y SANEAMIENTO DE CLOACAS | E41: - | F41: - | G41: - | H41: EXPANSIÓN DE REDES | I41: SISTEMA GLEW-ALMIRANTE BROWN | J41: IMPULSION POZOS BATERIA GLEW | K41: 2 | L41: 91. OBLIGACIONES DEL TESORO | M41: 356 | N41: AYSA | O41: 95. ASISTENCIA FINANCIERA A EMPRESAS PÚBLICAS Y ENTE BINACIONAL | P41: 5 | Q41: N960009 | R41: 5 | S41: - | T41: 11 | U41: 5 | V41: 5 | W41: 7 | X41: 753 | Y41: 3 | Z41: 8 | AA41: 96 | AB41: 2 | AC41: SA603 | AD41: - | AE41: ALMIRANTE BROWN | AF41: GLEW | AG41: EL RECORRIDO COMIENZA EN LA CALLE LAPRIDA LLEGANDO A AV. REPÚBLICA ARGENTINA. CONTINÚA POR REPÚBLICA ARGENTINA HASTA 25 DE MAYO DONDE SE EMPALMA NUEVAMENTE A LA RED EXISTENTE. | AH41: 2009-09-11 | AI41: 2010-04-15 | AJ41: 5686806.751 | AK41: -317843.2356 | AL41: 138968.4637 | AM41: 5507931.979 | AN41: 5263713.517 | AO41: 244218.4624 | AP41: 0 | AQ41: 0 | AR41: 0 | AS41: 0 | AT41: 0 | AU41: 0 | AV41: 0 | AW41: 0 | AX41: 0 | AY41: 0 | AZ41: - | BA41: FINALIZADO | BB41: 1 | BC41: 1 | BD41: -
B42: 41 | C42: 1. ESTADO NACIONAL | D42: 09. EXPANSIÓN DE LA RED DE AGUA POTABLE Y SANEAMIENTO DE CLOACAS | E42: - | F42: - | G42: - | H42: EXPANSIÓN DE REDES | I42: SISTEMA AGUA EZEIZA | J42: RED SECUNDARIA LA PORTEÑA (ETAPA 2) | K42: 2 | L42: 91. OBLIGACIONES DEL TESORO | M42: 356 | N42: AYSA | O42: 95. ASISTENCIA FINANCIERA A EMPRESAS PÚBLICAS Y ENTE BINACIONAL | P42: 5 | Q42: N960104 | R42: 5 | S42: - | T42: 11 | U42: 5 | V42: 5 | W42: 7 | X42: 753 | Y42: 3 | Z42: 8 | AA42: 96 | AB42: 2 | AC42: SA0501 | AD42: - | AE42: EZEIZA | AF42: TRISTÁN SUÁREZ | AG42: LA RED SECUNDARIA DE PROVISIÓN DE AGUA POTABLE ESTA DELIMITADA POR LAS SIGUIENTES CALLES: LAS MORENAS; AV. PATRICIOS; LAS HORTENCIAS; LOS OLMOS; LOS TULIPANES Y CAMINITO. | AH42: 2009-07-27 | AI42: 2009-12-30 | AJ42: 2836785.045 | AK42: -112138.6981 | AL42: 66904.0339 | AM42: 2791550.38 | AN42: 2844797.144 | AO42: 53246.7639 | AP42: 0 | AQ42: 0 | AR42: 0 | AS42: 0 | AT42: 0 | AU42: 0 | AV42: 0 | AW42: 0 | AX42: 0 | AY42: 0 | AZ42: - | BA42: FINALIZADO | BB42: 1 | BC42: 1 | BD42: -
B43: 42 | C43: 1. ESTADO NACIONAL | D43: 09. EXPANSIÓN DE LA RED DE AGUA POTABLE Y SANEAMIENTO DE CLOACAS | E43: - | F43: - | G43: - | H43: EXPANSIÓN DE REDES | I43: SISTEMA AGUA EZEIZA | J43: RED SECUNDARIA BARRIO EL PASO | K43: 2 | L43: 91. OBLIGACIONES DEL TESORO | M43: 356 | N43: AYSA | O43: 95. ASISTENCIA FINANCIERA A EMPRESAS PÚBLICAS Y ENTE BINACIONAL | P43: 5 | Q43: N960106 | R43: 5 | S43: - | T43: 11 | U43: 5 | V43: 5 | W43: 7 | X43: 753 | Y43: 3 | Z43: 8 | AA43: 96 | AB43: 2 | AC43: SA638 | AD43: - | AE43: EZEIZA | AF43: TRISTÁN SUÁREZ | AG43: LA RED SECUNDARIA DE PROVISIÓN DE AGUA POTABLE PARA EL BARRIO EL PASO ES LA DELIMITADA POR LAS CALLES 12 DE OCTUBRE, JUAN GÁLVEZ, LOS CAMPEONES Y CAROLA LORENZINI. | AH43: 2009-09-21 | AI43: 2010-10-20 | AJ43: 2008079.712 | AK43: 138704.7684 | AL43: 63645.6975 | AM43: 2210430.178 | AN43: 1602390.694 | AO43: 607212.7149 | AP43: 826.7688 | AQ43: 0 | AR43: 0 | AS43: 0 | AT43: 0 | AU43: 0 | AV43: 0 | AW43: 0 | AX43: 0 | AY43: 0 | AZ43: - | BA43: FINALIZADO | BB43: 1 | BC43: 1 | BD43: -
B44: 43 | C44: 1. ESTADO NACIONAL | D44: 09. EXPANSIÓN DE LA RED DE AGUA POTABLE Y SANEAMIENTO DE CLOACAS | E44: - | F44: - | G44: - | H44: EXPANSIÓN DE REDES | I44: SISTEMA AGUA MORÓN | J44: INTERCONEXIÓN POZOS MERLO GOMEZ | K44: 2 | L44: 91. OBLIGACIONES DEL TESORO | M44: 356 | N44: AYSA | O44: 95. ASISTENCIA FINANCIERA A EMPRESAS PÚBLICAS Y ENTE BINACIONAL | P44: 5 | Q44: N960509 | R44: 5 | S44: - | T44: 11 | U44: 5 | V44: 5 | W44: 7 | X44: 753 | Y44: 3 | Z44: 8 | AA44: 96 | AB44: 2 | AC44: OA359 | AD44: - | AE44: MORÓN | AF44: CASTELAR | AG44: LA RED DE INTERCONEXIÓN DE POZOS PARTE DESDE EL POZO S3 EN LA INTERSECCIÓN DE LAS CALLES G.JARRY Y P.FERRE. CONTINÚA POR LA CALLE G.JARRY HASTA EL POZO S4 EN LA INTERSECCIÓN CON LA CALLE MADRID. CONTINÚA HASTA M.PASSADORE. LUEGO SIGUE POR M.PASSADORE HASTA G.MIRO. | AH44: 2009-08-05 | AI44: 2009-10-04 | AJ44: 1121457.512 | AK44: -150721.0485 | AL44: 24947.3807 | AM44: 995683.8441 | AN44: 951268.967 | AO44: 44414.8771 | AP44: 0 | AQ44: 0 | AR44: 0 | AS44: 0 | AT44: 0 | AU44: 0 | AV44: 0 | AW44: 0 | AX44: 0 | AY44: 0 | AZ44: - | BA44: FINALIZADO | BB44: 1 | BC44: 1 | BD44: -
B45: 44 | C45: 1. ESTADO NACIONAL | D45: 09. EXPANSIÓN DE LA RED DE AGUA POTABLE Y SANEAMIENTO DE CLOACAS | E45: - | F45: - | G45: - | H45: EXPANSIÓN DE REDES | I45: SISTEMA VIRREY DEL PINO- LA MATANZA | J45: VINCULACIÓN ACUEDUCTO LOS CEDROS - V. DEL PINO CON RED V. DEL PINO IV | K45: 2 | L45: 91. OBLIGACIONES DEL TESORO | M45: 356 | N45: AYSA | O45: 95. ASISTENCIA FINANCIERA A EMPRESAS PÚBLICAS Y ENTE BINACIONAL | P45: 5 | Q45: N860021 | R45: 5 | S45: - | T45: 11 | U45: 5 | V45: 5 | W45: 7 | X45: 753 | Y45: 3 | Z45: 8 | AA45: 96 | AB45: 2 | AC45: OA479 | AD45: - | AE45: LA MATANZA | AF45: VIRREY DEL PINO | AG45: CAMPANA DESDE MANZANARES HASTA ATALAYA; POR ATALAYA HASTA AVILES; POR AVILES HASTA C. DE GÓMEZ; POR C. DE GÓMEZ HASTA MOLINA. POR CABOT DESDE C. DE GÓMEZ HASTA DANEL; POR DANEL HASTA SAN LUIS; POR SAN LUIS HASTA MAGAN; POR MAGAN HASTA CAMPANA. CURUMALAL D | AH45: 2007-11-13 | AI45: 2008-09-22 | AJ45: 5936271.362 | AK45: 228724.4124 | AL45: 332719.2902 | AM45: 6497715.064 | AN45: 6497715.065 | AO45: 0 | AP45: 0 | AQ45: 0 | AR45: 0 | AS45: 0 | AT45: 0 | AU45: 0 | AV45: 0 | AW45: 0 | AX45: 0 | AY45: 0 | AZ45: - | BA45: FINALIZADO | BB45: 1 | BC45: 1 | BD45: -
B46: 45 | C46: 1. ESTADO NACIONAL | D46: 09. EXPANSIÓN DE LA RED DE AGUA POTABLE Y SANEAMIENTO DE CLOACAS | E46: - | F46: - | G46: - | H46: EXPANSIÓN DE REDES | I46: SISTEMA VIRREY DEL PINO- LA MATANZA | J46: VINCULACION ACUEDUCTO LOS CEDROS-VIRREY DEL PINO CON RED VIRREY DEL PINO II | K46: 2 | L46: 91. OBLIGACIONES DEL TESORO | M46: 356 | N46: AYSA | O46: 95. ASISTENCIA FINANCIERA A EMPRESAS PÚBLICAS Y ENTE BINACIONAL | P46: 5 | Q46: N860020 | R46: 5 | S46: - | T46: 11 | U46: 5 | V46: 5 | W46: 7 | X46: 753 | Y46: 3 | Z46: 8 | AA46: 96 | AB46: 2 | AC46: OA478 | AD46: - | AE46: LA MATANZA | AF46: VIRREY DEL PINO | AG46: DESDE SAN FRANCISCO JAVIER 3 Y SAN FRANCISCO JAVIER 32 HASTA VENIALBO Y CURUMAL | AH46: 2007-11-20 | AI46: Rescindida | AJ46: 5825785.33 | AK46: 166.012 | AL46: 302192.2486 | AM46: Contrato Rescindido | AN46: 4486481.85 | AO46: 0 | AP46: 0 | AQ46: 0 | AR46: 0 | AS46: 0 | AT46: 0 | AU46: 0 | AV46: 0 | AW46: 0 | AX46: 0 | AY46: 0 | AZ46: - | BA46: RESCINDIDA | BB46: Contrato rescindido | BC46: 0.82 | BD46: EL AVANCE FÍSICO CORRESPONDE AL CONTRATO RESCINDIDO.SE COMPLETA SU EJECUCIÓN CON LA OBRA OA4781 QUE SE ENCUENTRA FINALIZADA Y EN SERVICIO.
B47: 46 | C47: 1. ESTADO NACIONAL | D47: 09. EXPANSIÓN DE LA RED DE AGUA POTABLE Y SANEAMIENTO DE CLOACAS | E47: - | F47: - | G47: - | H47: EXPANSIÓN DE REDES DE AGUA | I47: REDES DE AGUA LA MATANZA | J47: POZOS BATERIA VIRREY DEL PINO SEGUNDA ETAPA OBRA ELECTROMECANICA | K47: 2 | L47: 91. OBLIGACIONES DEL TESORO | M47: 356 | N47: AYSA | O47: 95. ASISTENCIA FINANCIERA A EMPRESAS PÚBLICAS Y ENTE BINACIONAL | P47: 5 | Q47: N860528 | R47: 77 | S47: - | T47: 22 Y RECURSOS PROPIOS | U47: 5 | V47: 5 | W47: 7 | X47: 753 | Y47: 3 | Z47: 8 | AA47: 2 | AB47: 2 | AC47: OA417171 | AD47: - | AE47: LA MATANZA | AF47: VIRREY DEL PINO | AG47: LA UBICACIÓN DE LOS POZOS DE EXPLOTACIÓN ES LA SIGUIENTE: S16 – ARECO E/ GUEVARA Y HERRERA; S17 – ARECO Y AVALOS; S26 - ARECO E/ QUERANDÍES Y MASSOTTI; S27 – ARECO Y PAVÓN; S39 - ARECO A 650 M DE A. SAN JUAN; S41 - ARECO Y PARANÁ A 50M DE PARANÁ; S42 - ANTONIO SAN JUAN A 700M DE ARECO; S43 - ANTONIO SAN JUAN A 1400M DE ARECO; S44 - ANTONIO SAN JUAN A 2100M DE ARECO; S45 - ANTONIO SAN JUAN A 2800M DE ARECO. | AH47: 2009-11-27 | AI47: 2010-08-20 | AJ47: 1325068.761 | AK47: 233395.448 | AL47: 548178.9809 | AM47: 2106643.19 | AN47: 804880.0694 | AO47: 803580.7956 | AP47: 56196.9738 | AQ47: 10009.7977 | AR47: 16302.0638 | AS47: 27659.7772 | AT47: 24179.3937 | AU47: 68325.3604 | AV47: 72115.1046 | AW47: 223393.8542 | AX47: 0 | AY47: 0 | AZ47: - | BA47: FINALIZADO | BB47: 1 | BC47: 1 | BD47: EN 2018 SE MODIFICA EL CÓDIGO DE ACTIVIDAD DE LA APERTURA PROGRAMÁTICA DE 5 A 77, UG DE 96 A 2 Y FF DE 11 A 22. EL PROYECTO TAMBIÉN SERÁ FINANCIADO CON RECURSOS PROPIOS DE AYSA
B48: 47 | C48: 1. ESTADO NACIONAL | D48: 09. EXPANSIÓN DE LA RED DE AGUA POTABLE Y SANEAMIENTO DE CLOACAS | E48: - | F48: - | G48: - | H48: EXPANSIÓN DE REDES | I48: SISTEMA VIRREY DEL PINO- LA MATANZA | J48: CAÑERIA DE DESAGÜE PLANTA VIRREY DEL PINO | K48: 2 | L48: 91. OBLIGACIONES DEL TESORO | M48: 356 | N48: AYSA | O48: 95. ASISTENCIA FINANCIERA A EMPRESAS PÚBLICAS Y ENTE BINACIONAL | P48: 5 | Q48: N860031 | R48: 5 | S48: - | T48: 11 | U48: 5 | V48: 5 | W48: 7 | X48: 753 | Y48: 3 | Z48: 8 | AA48: 96 | AB48: 2 | AC48: OA4933 | AD48: - | AE48: LA MATANZA | AF48: VIRREY DEL PINO | AG48: LA TRAZA DE LA CAÑERÍA COMIENZA EN CAÑADA DE GÓMEZ Y M. FRAGUEIRO CONTINUANDO POR ESTA HASTA CORTINA, LUEGO ALBORADA HASTA RÍO MATANZA. | AH48: 2008-07-28 | AI48: 2011-08-30 | AJ48: 9010395.922 | AK48: 2736404.062 | AL48: 1209506.913 | AM48: 12956306.9 | AN48: 7212312.315 | AO48: 743040.067 | AP48: 4825743.284 | AQ48: 104366.9407 | AR48: 70844.29 | AS48: 0 | AT48: 0 | AU48: 0 | AV48: 0 | AW48: 0 | AX48: 0 | AY48: 0 | AZ48: - | BA48: FINALIZADO | BB48: 1 | BC48: 1 | BD48: -
B49: 48 | C49: 1. ESTADO NACIONAL | D49: 09. EXPANSIÓN DE LA RED DE AGUA POTABLE Y SANEAMIENTO DE CLOACAS | E49: - | F49: - | G49: - | H49: EXPANSIÓN DE REDES | I49: SISTEMA VIRREY DEL PINO- LA MATANZA | J49: SISTEMA DE AUTOMATIZACIÓN DE POZOS BATERÍA VIRREY DEL PINO | K49: 2 | L49: 91. OBLIGACIONES DEL TESORO | M49: 356 | N49: AYSA | O49: 95. ASISTENCIA FINANCIERA A EMPRESAS PÚBLICAS Y ENTE BINACIONAL | P49: 5 | Q49: N860017 | R49: 5 | S49: - | T49: 11 | U49: 5 | V49: 5 | W49: 7 | X49: 753 | Y49: 3 | Z49: 8 | AA49: 96 | AB49: 2 | AC49: OA457A | AD49: - | AE49: LA MATANZA | AF49: VIRREY DEL PINO | AG49: M. FRAGUEIRO Y CAÑADA DE GOMEZ. | AH49: 2008-11-10 | AI49: 2010-10-31 | AJ49: 24720019 | AK49: 6483421 | AL49: -44480.7521 | AM49: 31158959.25 | AN49: 22961263.35 | AO49: 6038513.325 | AP49: 2301829.972 | AQ49: 142647.3961 | AR49: 0 | AS49: 0 | AT49: 0 | AU49: 0 | AV49: 0 | AW49: 0 | AX49: 0 | AY49: 0 | AZ49: - | BA49: FINALIZADO | BB49: 1 | BC49: 1 | BD49: -
B50: 49 | C50: 1. ESTADO NACIONAL | D50: 09. EXPANSIÓN DE LA RED DE AGUA POTABLE Y SANEAMIENTO DE CLOACAS | E50: - | F50: - | G50: - | H50: EXPANSIÓN DE REDES | I50: SISTEMA CLOACAS AVELLANEDA | J50: IMPULSIÓN RAMAL AVELLANEDA | K50: 2 | L50: 91. OBLIGACIONES DEL TESORO | M50: 356 | N50: AYSA | O50: 95. ASISTENCIA FINANCIERA A EMPRESAS PÚBLICAS Y ENTE BINACIONAL | P50: 5 | Q50: N960341 | R50: 5 | S50: - | T50: 11 | U50: 5 | V50: 5 | W50: 7 | X50: 753 | Y50: 3 | Z50: 8 | AA50: 96 | AB50: 2 | AC50: SC439 | AD50: - | AE50: AVELLANEDA | AF50: WILDE | AG50: LA TRAZA SE DESARROLLA POR LA CALLE CENTENARIO URUGUAYO, HASTA CDRO. RIVADAVIA, POR ÉSTA A CNEL. MÉNDEZ, BISMARK, BRAGADO, POR ÉSTA HASTA LARTIGAU Y POR LARTIGAU, LUEGO DE CRUZAR LAS VÍAS DEL FFCC EX GRAL ROCA Y VOLCAR EN LA SALA N° 4 (CÁMARA N° 5), DEL ESTABLECIMIENTO WILDE. | AH50: 2009-12-15 | AI50: 2012-04-01 | AJ50: 78675335.77 | AK50: 6308560.062 | AL50: 2077310.467 | AM50: 87061206.3 | AN50: 23041419.39 | AO50: 37358889.03 | AP50: 21879261.45 | AQ50: 4781636.426 | AR50: 0 | AS50: 0 | AT50: 0 | AU50: 0 | AV50: 0 | AW50: 0 | AX50: 0 | AY50: 0 | AZ50: - | BA50: FINALIZADO | BB50: 1 | BC50: 1 | BD50: -
B51: 50 | C51: 1. ESTADO NACIONAL | D51: 09. EXPANSIÓN DE LA RED DE AGUA POTABLE Y SANEAMIENTO DE CLOACAS | E51: - | F51: - | G51: - | H51: EXPANSIÓN DE REDES | I51: SISTEMA CLOACAS EL JAGUEL-ESTEBAN ECHEVERRÍA | J51: AMPLIACION PLANTA DEPURADORA EL JAGUEL OBRA CIVIL | K51: 2 | L51: 91. OBLIGACIONES DEL TESORO | M51: 356 | N51: AYSA | O51: 95. ASISTENCIA FINANCIERA A EMPRESAS PÚBLICAS Y ENTE BINACIONAL | P51: 5 | Q51: N861607 | R51: 5 | S51: - | T51: 11 | U51: 5 | V51: 5 | W51: 7 | X51: 753 | Y51: 3 | Z51: 8 | AA51: 96 | AB51: 2 | AC51: RP355 | AD51: - | AE51: ESTEBAN ECHEVERRÍA | AF51: EL JAGÜEL | AG51: LA PLANTA DEPURADORA EL JAGÜEL SE ENCUENTRA EN NEWTON 2750. | AH51: 2010-01-25 | AI51: 2013-04-30 | AJ51: 43278551 | AK51: 58418155 | AL51: 372464.4019 | AM51: 102069170.4 | AN51: 1134107.517 | AO51: 17768598.71 | AP51: 44782393.76 | AQ51: 13909830.74 | AR51: 18634779.86 | AS51: 8183054.042 | AT51: -2058233.268 | AU51: -285360.955 | AV51: 0 | AW51: 0 | AX51: 0 | AY51: 0 | AZ51: - | BA51: FINALIZADO | BB51: 1 | BC51: 1 | BD51: -
B52: 51 | C52: 1. ESTADO NACIONAL | D52: 09. EXPANSIÓN DE LA RED DE AGUA POTABLE Y SANEAMIENTO DE CLOACAS | E52: - | F52: - | G52: - | H52: EXPANSIÓN DE REDES | I52: SISTEMA CLOACAS BERAZATEGUI | J52: INSPECCIÓN DE OBRAS PTA. BERAZATEGUI | K52: 2 | L52: 91. OBLIGACIONES DEL TESORO | M52: 356 | N52: AYSA | O52: 95. ASISTENCIA FINANCIERA A EMPRESAS PÚBLICAS Y ENTE BINACIONAL | P52: 5 | Q52: N961601 | R52: 5 | S52: - | T52: 11 | U52: 5 | V52: 5 | W52: 7 | X52: 753 | Y52: 3 | Z52: 8 | AA52: 96 | AB52: 2 | AC52: SC4972 | AD52: - | AE52: BERAZATEGUI | AF52: BERAZATEGUI | AG52: EL PREDIO SE ENCUENTRA AL NOROESTE DEL PARTIDO DE BERAZATEGUI, CERCANO AL LÍMITE CON EL PARTIDO DE QUILMES, ENTRE LA AUTOPISTA BUENOS AIRES-LA PLATA Y LA COSTA DEL RÍO DE LA PLATA. | AH52: 2009-02-21 | AI52: Año 2017 | AJ52: 2780458.758 | AK52: 39436340.47 | AL52: 0 | AM52: 42216799.23 | AN52: 2310661.363 | AO52: 4400216.51 | AP52: 6018933.71 | AQ52: 6743752.617 | AR52: 7273007.21 | AS52: 0 | AT52: 14803696.81 | AU52: 666531.0168 | AV52: 0 | AW52: 0 | AX52: 0 | AY52: 0 | AZ52: - | BA52: FINALIZADO | BB52: 1 | BC52: 1 | BD52: POR SER INSPECCIÓN AVANCE FÍSICO = ECONÓMICO
B53: 52 | C53: 1. ESTADO NACIONAL | D53: 09. EXPANSIÓN DE LA RED DE AGUA POTABLE Y SANEAMIENTO DE CLOACAS | E53: - | F53: - | G53: - | H53: EXPANSIÓN DE REDES | I53: - | J53: IMPULSIÓN RAMAL SUR | K53: 2 | L53: 91. OBLIGACIONES DEL TESORO | M53: 356 | N53: AYSA | O53: 95. ASISTENCIA FINANCIERA A EMPRESAS PÚBLICAS Y ENTE BINACIONAL | P53: 5 | Q53: N960302 | R53: 5 | S53: - | T53: 11 | U53: 5 | V53: 5 | W53: 7 | X53: 753 | Y53: 3 | Z53: 8 | AA53: 96 | AB53: 2 | AC53: SC441 | AD53: - | AE53: QUILMES | AF53: SAN FRANCISCO SOLANO | AG53: LA CAÑERÍA DE IMPULSIÓN SE INICIA A 0,50 M. HACIA EL EXTERIOR DE LA LÍNEA MUNICIPAL DEL PREDIO DE UBICACIÓN DE LA ESTACIÓN DE BOMBEO, SITUADO EN LA ESQUINA DE LAS CALLES Nº 808 Y Nº 887. A PARTIR DE ESTE PUNTO, LA TRAZA DE LA CAÑERÍA DE IMPULSIÓN SE DESARROLLA POR LAS CALLES Nº 887, 807, 886, 802, 886, AV. TOMAS FLORES Y CALLE Nº 181, DEL PARTIDO DE QUILMES. LA LÍNEA DE IMPULSIÓN FINALIZA EN UNA CÁMARA DE CARGA UBICADA EN LA ESQUINA DE LA CALLE Nº 181 Y LINIERS. | AH53: 2009-12-18 | AI53: 2013-07-05 | AJ53: 12620028.1 | AK53: 1255752.258 | AL53: 1312227.818 | AM53: 15188008.18 | AN53: 1502176.183 | AO53: 7211830.686 | AP53: 5104394.16 | AQ53: 2648553.395 | AR53: -1278946.248 | AS53: 0 | AT53: 0 | AU53: 0 | AV53: 0 | AW53: 0 | AX53: 0 | AY53: 0 | AZ53: - | BA53: FINALIZADO | BB53: 1 | BC53: 1 | BD53: -
B54: 53 | C54: 1. ESTADO NACIONAL | D54: 09. EXPANSIÓN DE LA RED DE AGUA POTABLE Y SANEAMIENTO DE CLOACAS | E54: - | F54: - | G54: - | H54: EXPANSIÓN DE REDES | I54: SISTEMA CLOACAS LOMAS DE ZAMORA | J54: ESTACIÓN DE BOMBEO CLOACAL PASCO ESTE OBRA ELECTROM. | K54: 2 | L54: 91. OBLIGACIONES DEL TESORO | M54: 356 | N54: AYSA | O54: 95. ASISTENCIA FINANCIERA A EMPRESAS PÚBLICAS Y ENTE BINACIONAL | P54: 5 | Q54: N960367 | R54: 5 | S54: - | T54: 11 | U54: 5 | V54: 5 | W54: 7 | X54: 753 | Y54: 3 | Z54: 8 | AA54: 96 | AB54: 2 | AC54: SC4302 | AD54: - | AE54: LOMAS DE ZAMORA | AF54: BANFIELD | AG54: LA EB SE EMPLAZARÁ EN UN PREDIO UBICADO EN LA ESQUINA DE ARMESTI Y COSTA RICA DE 10M. DE FRENTE POR 40M. DE FONDO. | AH54: 2011-06-13 | AI54: Rescindida | AJ54: 926789.5175 | AK54: 11495 | AL54: 78747.97 | AM54: Contrato Rescindido | AN54: 3317.5538 | AO54: 14389.562 | AP54: 176387.9436 | AQ54: 0 | AR54: 16171.7831 | AS54: 0 | AT54: 0 | AU54: 0 | AV54: 0 | AW54: 0 | AX54: 0 | AY54: 0 | AZ54: - | BA54: RESCINDIDA | BB54: Contrato rescindido | BC54: 0.05 | BD54: CONTRATO RESCINDIDO 25-10-13 - EL AVANCE FÍSICO CORRESPONDE AL CONTRATO RESCINDIDO. SE COMPLETARÁ SU EJECUCIÓN CON LA SC70037.
B55: 54 | C55: 1. ESTADO NACIONAL | D55: 09. EXPANSIÓN DE LA RED DE AGUA POTABLE Y SANEAMIENTO DE CLOACAS | E55: - | F55: - | G55: - | H55: EXPANSIÓN DE REDES | I55: SISTEMA CLOACAS ALMIRANTE BROWN | J55: COLECTOR ESTE TRAMO 4 | K55: 2 | L55: 91. OBLIGACIONES DEL TESORO | M55: 356 | N55: AYSA | O55: 95. ASISTENCIA FINANCIERA A EMPRESAS PÚBLICAS Y ENTE BINACIONAL | P55: 5 | Q55: F464105 | R55: 5 | S55: - | T55: 11 | U55: 5 | V55: 5 | W55: 7 | X55: 753 | Y55: 3 | Z55: 8 | AA55: 96 | AB55: 2 | AC55: SC3741 | AD55: - | AE55: ALMIRANTE BROWN | AF55: JOSÉ MÁRMOL | AG55: EL COLECTOR SE DESARROLLA DESDE LA INTERSECCIÓN DE LA CALLE AMENEDO Y LA AV. REP. ARGENTINA, POR LA MISMA HASTA ROSALES, SIGUIENDO POR GRAL. J. ARIAS, BOUCHARD, THORNE, AV. SAN MARTIN, THORNE, PRES. ILLIA, BALCARSE, DARDO ROCHA Y POR ESTA ÚLTIMA HASTA SU INTERSECCIÓN CON LA CALLE CERRETTI. | AH55: 2007-08-13 | AI55: 2011-02-25 | AJ55: 20502341.64 | AK55: -694222.3871 | AL55: 2409245.956 | AM55: 22217365.21 | AN55: 21527911.81 | AO55: 748377.2681 | AP55: 58923.8661 | AQ55: 0 | AR55: 0 | AS55: 0 | AT55: 0 | AU55: 0 | AV55: 0 | AW55: 0 | AX55: 0 | AY55: 0 | AZ55: - | BA55: FINALIZADO | BB55: 1 | BC55: 1 | BD55: -
B56: 55 | C56: 1. ESTADO NACIONAL | D56: 09. EXPANSIÓN DE LA RED DE AGUA POTABLE Y SANEAMIENTO DE CLOACAS | E56: - | F56: - | G56: - | H56: EXPANSIÓN DE REDES | I56: SISTEMA CLOACAS AVELLANEDA | J56: BRIO.OBRERO SUR A 3° CLOACA MÁXIMA "B" | K56: 2 | L56: 91. OBLIGACIONES DEL TESORO | M56: 356 | N56: AYSA | O56: 95. ASISTENCIA FINANCIERA A EMPRESAS PÚBLICAS Y ENTE BINACIONAL | P56: 5 | Q56: N860457 | R56: 5 | S56: - | T56: 11 | U56: 5 | V56: 5 | W56: 7 | X56: 753 | Y56: 3 | Z56: 8 | AA56: 96 | AB56: 2 | AC56: SC531 | AD56: - | AE56: AVELLANEDA | AF56: WILDE | AG56: LA RED SECUNDARIA CLOACAL SE ENCUENTRA DELIMITADA POR LAS CALLES CAMACUÁ, CONDARCO, RUTA PROVINCIAL N° 4 (CNO. GRAL BELGRANO) Y CORVALAN. | AH56: 2009-01-20 | AI56: 2010-12-01 | AJ56: 325490 | AK56: 92286.4943 | AL56: 7190.0015 | AM56: 424966.4958 | AN56: 249125.2181 | AO56: 46383.4624 | AP56: 0 | AQ56: 129457.8153 | AR56: 0 | AS56: 0 | AT56: 0 | AU56: 0 | AV56: 0 | AW56: 0 | AX56: 0 | AY56: 0 | AZ56: - | BA56: FINALIZADO | BB56: 1 | BC56: 1 | BD56: -
B57: 56 | C57: 1. ESTADO NACIONAL | D57: 09. EXPANSIÓN DE LA RED DE AGUA POTABLE Y SANEAMIENTO DE CLOACAS | E57: - | F57: - | G57: - | H57: EXPANSIÓN DE REDES | I57: - | J57: COLECTOR ESTE RAMAL SUR | K57: 2 | L57: 91. OBLIGACIONES DEL TESORO | M57: 356 | N57: AYSA | O57: 95. ASISTENCIA FINANCIERA A EMPRESAS PÚBLICAS Y ENTE BINACIONAL | P57: 5 | Q57: N960305 | R57: 5 | S57: - | T57: 11 | U57: 5 | V57: 5 | W57: 7 | X57: 753 | Y57: 3 | Z57: 8 | AA57: 96 | AB57: 2 | AC57: SC422 | AD57: - | AE57: QUILMES | AF57: SAN FRANCISCO SOLANO | AG57: EL COLECTOR COMIENZA EN LAS INTERSECCIONES DE LAS AV. DONATO ALVAREZ Y SAN MARTÍN Y FINALIZA EN LA ESTACIÓN DE BOMBEO A CONSTRUIR UBICADA EN LA CALLE Nº 809 ENTRE LAS CALLES Nº 888 Y 887. | AH57: 2009-12-09 | AI57: 2011-11-29 | AJ57: 59761900 | AK57: 1277900.654 | AL57: 2777877.828 | AM57: 63817678.48 | AN57: 13552661.27 | AO57: 15035432.86 | AP57: 35110521.82 | AQ57: 40147.9485 | AR57: 78914.5907 | AS57: 0 | AT57: 0 | AU57: 0 | AV57: 0 | AW57: 0 | AX57: 0 | AY57: 0 | AZ57: - | BA57: FINALIZADO | BB57: 1 | BC57: 1 | BD57: -
B58: 57 | C58: 1. ESTADO NACIONAL | D58: 09. EXPANSIÓN DE LA RED DE AGUA POTABLE Y SANEAMIENTO DE CLOACAS | E58: - | F58: - | G58: - | H58: EXPANSIÓN DE REDES | I58: SISTEMA CLOACAS LOMAS DE ZAMORA | J58: ESTACIÓN DE BOMBEO LOMAS ESTE ZONA OESTE OBRA CIVIL | K58: 2 | L58: 91. OBLIGACIONES DEL TESORO | M58: 356 | N58: AYSA | O58: 95. ASISTENCIA FINANCIERA A EMPRESAS PÚBLICAS Y ENTE BINACIONAL | P58: 5 | Q58: N960348 | R58: 5 | S58: - | T58: 11 | U58: 5 | V58: 5 | W58: 7 | X58: 753 | Y58: 3 | Z58: 8 | AA58: 96 | AB58: 2 | AC58: SC43201 | AD58: - | AE58: LOMAS DE ZAMORA | AF58: BANFIELD | AG58: EL PROYECTO CONSIDERA LA UBICACIÓN DE LA ESTACIÓN DE BOMBEO EN UN PREDIO UBICADO EN LA ESQUINA DE ARMESTI Y COSTA RICA DE 10M. DE FRENTE POR 40M. DE FONDO. | AH58: 2009-09-17 | AI58: 2010-11-01 | AJ58: 1153634.969 | AK58: 505892.7599 | AL58: 76638.8348 | AM58: 1736166.564 | AN58: 1000066.379 | AO58: 734456.327 | AP58: 1643.8576 | AQ58: 0 | AR58: 0 | AS58: 0 | AT58: 0 | AU58: 0 | AV58: 0 | AW58: 0 | AX58: 0 | AY58: 0 | AZ58: - | BA58: FINALIZADO | BB58: 1 | BC58: 1 | BD58: -
B59: 58 | C59: 1. ESTADO NACIONAL | D59: 09. EXPANSIÓN DE LA RED DE AGUA POTABLE Y SANEAMIENTO DE CLOACAS | E59: - | F59: - | G59: - | H59: EXPANSIÓN DE REDES | I59: SISTEMA CLOACAS LOMAS DE ZAMORA | J59: ESTACIÓN DE BOMBEO LOMAS ESTE ZONA OESTE OBRA ELECTROM. | K59: 2 | L59: 91. OBLIGACIONES DEL TESORO | M59: 356 | N59: AYSA | O59: 95. ASISTENCIA FINANCIERA A EMPRESAS PÚBLICAS Y ENTE BINACIONAL | P59: 5 | Q59: N960349 | R59: 5 | S59: - | T59: 11 | U59: 5 | V59: 5 | W59: 7 | X59: 753 | Y59: 3 | Z59: 8 | AA59: 96 | AB59: 2 | AC59: SC43202 | AD59: - | AE59: LOMAS DE ZAMORA | AF59: BANFIELD | AG59: LA EB SE EMPLAZARÁ EN UN PREDIO UBICADO EN LA ESQUINA DE ARMESTI Y COSTA RICA DE 10M. DE FRENTE POR 40M. DE FONDO. | AH59: 2009-08-25 | AI59: 2010-11-01 | AJ59: 3105081.031 | AK59: 51278.1786 | AL59: 140529.0007 | AM59: 3296888.21 | AN59: 1593236.33 | AO59: 1701379.609 | AP59: 2272.2711 | AQ59: 0 | AR59: 0 | AS59: 0 | AT59: 0 | AU59: 0 | AV59: 0 | AW59: 0 | AX59: 0 | AY59: 0 | AZ59: - | BA59: FINALIZADO | BB59: 1 | BC59: 1 | BD59: -
B60: 59 | C60: 1. ESTADO NACIONAL | D60: 09. EXPANSIÓN DE LA RED DE AGUA POTABLE Y SANEAMIENTO DE CLOACAS | E60: - | F60: - | G60: - | H60: EXPANSIÓN DE REDES | I60: SISTEMA CLOACAS AVELLANEDA | J60: COLECTOR ESTE RAMAL NORTE TRAMO II Y III (ETAPA 1A) | K60: 2 | L60: 91. OBLIGACIONES DEL TESORO | M60: 356 | N60: AYSA | O60: 95. ASISTENCIA FINANCIERA A EMPRESAS PÚBLICAS Y ENTE BINACIONAL | P60: 5 | Q60: F464112 | R60: 5 | S60: - | T60: 11 | U60: 5 | V60: 5 | W60: 7 | X60: 753 | Y60: 3 | Z60: 8 | AA60: 96 | AB60: 2 | AC60: SC3501 | AD60: - | AE60: AVELLANEDA | AF60: WILDE | AG60: DESDE RPN°14 Y JUAN DOMINGO PERÓN NORTE HASTA PERÓN Y RAPOSO, POR RAPOSO HASTA YAPEYÚ, POR YAPEYÚ HASTA CASACUBERTA Y POR ÉSTA HASTA PERÓN. | AH60: 2008-07-30 | AI60: 2011-06-21 | AJ60: 11542004.02 | AK60: 0 | AL60: 1008825.872 | AM60: 12550829.89 | AN60: 12638154.2 | AO60: 193890.4 | AP60: 106566.0915 | AQ60: 0 | AR60: 0 | AS60: 0 | AT60: 0 | AU60: 0 | AV60: 0 | AW60: 0 | AX60: 0 | AY60: 0 | AZ60: - | BA60: FINALIZADO | BB60: 1 | BC60: 1 | BD60: -
B61: 60 | C61: 1. ESTADO NACIONAL | D61: 09. EXPANSIÓN DE LA RED DE AGUA POTABLE Y SANEAMIENTO DE CLOACAS | E61: - | F61: - | G61: - | H61: EXPANSIÓN DE REDES | I61: - | J61: ESTACION DE BOMBEO CLOACAL BARRIO LAS COLONIAS-OBRA CIVIL | K61: 2 | L61: 91. OBLIGACIONES DEL TESORO | M61: 356 | N61: AYSA | O61: 95. ASISTENCIA FINANCIERA A EMPRESAS PÚBLICAS Y ENTE BINACIONAL | P61: 5 | Q61: N760320 | R61: 5 | S61: - | T61: 11 | U61: 5 | V61: 5 | W61: 7 | X61: 753 | Y61: 3 | Z61: 8 | AA61: 96 | AB61: 2 | AC61: SC518 | AD61: - | AE61: LANÚS | AF61: REMEDIOS DE ESCALADA | AG61: LA ESTACIÓN DE BOMBEO CLOACAL ESTARÁ UBICADA EN LA VEREDA OESTE DE LA ESQUINA DE LA INTERSECCIÓN DE LAS CALLES GRAL. FERRE Y CORONEL ALBARIÑOS. | AH61: 2009-10-05 | AI61: 2011-04-08 | AJ61: 776275.5 | AK61: 568372.2231 | AL61: 190065.832 | AM61: 1534713.555 | AN61: 225797.0231 | AO61: 1218113.824 | AP61: 90802.7076 | AQ61: 0 | AR61: 0 | AS61: 0 | AT61: 0 | AU61: 0 | AV61: 0 | AW61: 0 | AX61: 0 | AY61: 0 | AZ61: - | BA61: FINALIZADO | BB61: 1 | BC61: 1 | BD61: -
B62: 61 | C62: 1. ESTADO NACIONAL | D62: 09. EXPANSIÓN DE LA RED DE AGUA POTABLE Y SANEAMIENTO DE CLOACAS | E62: - | F62: - | G62: - | H62: EXPANSIÓN DE REDES | I62: SISTEMA CLOACAS AVELLANEDA | J62: RED SECUNDARIA BARRIO WILDE | K62: 2 | L62: 91. OBLIGACIONES DEL TESORO | M62: 356 | N62: AYSA | O62: 95. ASISTENCIA FINANCIERA A EMPRESAS PÚBLICAS Y ENTE BINACIONAL | P62: 5 | Q62: N860429 | R62: 5 | S62: - | T62: 11 | U62: 5 | V62: 5 | W62: 7 | X62: 753 | Y62: 3 | Z62: 8 | AA62: 96 | AB62: 2 | AC62: SC328 | AD62: - | AE62: AVELLANEDA | AF62: WILDE | AG62: EL ÁREA PROYECTADA SE ENCUENTRA DELIMITADA POR LAS CALLES ROBLES Y BAHIA BLANCA AL NORESTE, BAHIA BLANCA Y ORTEGA AL NOROESTE, ORTEGA Y AV LAS FLORES AL SUDOESTE, Y LA AV. LAS FLORES Y ROBLES AL SUDESTE. | AH62: 2008-02-20 | AI62: 2012-04-24 | AJ62: 10910764.64 | AK62: 2089317.329 | AL62: 1166994.277 | AM62: 14167076.25 | AN62: 4384344.105 | AO62: 7086858.995 | AP62: 1127925.252 | AQ62: 1567947.895 | AR62: 0 | AS62: 0 | AT62: 0 | AU62: 0 | AV62: 0 | AW62: 0 | AX62: 0 | AY62: 0 | AZ62: - | BA62: FINALIZADO | BB62: 1 | BC62: 1 | BD62: -
B63: 62 | C63: 1. ESTADO NACIONAL | D63: 09. EXPANSIÓN DE LA RED DE AGUA POTABLE Y SANEAMIENTO DE CLOACAS | E63: - | F63: - | G63: - | H63: EXPANSIÓN DE REDES | I63: SISTEMA CLOACAS ESTEBAN ECHEVERRÍA | J63: COLECTORES Y COLECTORAS DN 315 Y DN 440 BARRIO LUIS GUILLON | K63: 2 | L63: 91. OBLIGACIONES DEL TESORO | M63: 356 | N63: AYSA | O63: 95. ASISTENCIA FINANCIERA A EMPRESAS PÚBLICAS Y ENTE BINACIONAL | P63: 5 | Q63: N960353 | R63: 5 | S63: - | T63: 11 | U63: 5 | V63: 5 | W63: 7 | X63: 753 | Y63: 3 | Z63: 8 | AA63: 96 | AB63: 2 | AC63: SC02905 | AD63: - | AE63: ESTEBAN ECHEVERRÍA | AF63: LUIS GUILLÓN | AG63: EL RECORRIDO DE LOS COLECTORES Y COLECTORAS SE DIVIDEN EN 2 TRAMOS. EL PRIMERO COMIENZA SU RECORRIDO EN LA CALLE AVELLANEDA Y GAMARRA CONTINUANDO POR ESTA ÚLTIMA HASTA SAN MARTÍN CONTINUANDO POR ESTA HASTA MONTEGRANDE PARA LUEGO FINALIZAR EN TTE. G. FORD. EL SEGUNDO TRAMO COMIENZA EN AVELLANEDA Y ALMAFUERTE CONTINUANDO POR SU RECORRIDO POR LAS SIGUIENTES CALLES: SAN MARTÍN, CORONADO, INDEPENDENCIA, TTE. A. GRANDE, TTE. G. FORD, LACARMON, DR. E. CARDEZA, CONTINUANDO POR CAMINO DE CINTURA HASTA F. SALAS. | AH63: 2009-09-21 | AI63: 2011-03-01 | AJ63: 6918256.881 | AK63: 1283197.062 | AL63: 487119.0049 | AM63: 8688572.948 | AN63: 2775962.156 | AO63: 4958038.876 | AP63: 827462.372 | AQ63: 0 | AR63: 23511.1954 | AS63: 103598.3487 | AT63: 0 | AU63: 0 | AV63: 0 | AW63: 0 | AX63: 0 | AY63: 0 | AZ63: - | BA63: FINALIZADO | BB63: 1 | BC63: 1 | BD63: -
B64: 63 | C64: 1. ESTADO NACIONAL | D64: 09. EXPANSIÓN DE LA RED DE AGUA POTABLE Y SANEAMIENTO DE CLOACAS | E64: - | F64: - | G64: - | H64: EXPANSIÓN DE REDES | I64: SISTEMA CLOACAS AVELLANEDA | J64: FIDEICOMISO IMPULSION ESTE AVELLANEDA | K64: 2 | L64: 91. OBLIGACIONES DEL TESORO | M64: 356 | N64: AYSA | O64: 95. ASISTENCIA FINANCIERA A EMPRESAS PÚBLICAS Y ENTE BINACIONAL | P64: 5 | Q64: F464101 | R64: 5 | S64: - | T64: 11 | U64: 5 | V64: 5 | W64: 7 | X64: 753 | Y64: 3 | Z64: 8 | AA64: 96 | AB64: 2 | AC64: SC364 | AD64: - | AE64: AVELLANEDA | AF64: WILDE | AG64: LA IMPULSIÓN TIENE COMO TRAZA: CNEL. LINCH E/ CRISÓLOGO LARRALDE Y BRAGADO; BRAGADO E/ CNEL. LINCH Y LAS FLORES; LAS FLORES E/ BRAGADO Y AV. R. FRANCO. | AH64: 2004-11-15 | AI64: 2009-12-16 | AJ64: 9388238.75 | AK64: 884441 | AL64: 1516330.691 | AM64: 11789010.44 | AN64: 1947594.474 | AO64: 145938.1 | AP64: 0 | AQ64: 0 | AR64: 0 | AS64: 0 | AT64: 0 | AU64: 0 | AV64: 0 | AW64: 0 | AX64: 0 | AY64: 0 | AZ64: - | BA64: FINALIZADO | BB64: 1 | BC64: 1 | BD64: -
B65: 64 | C65: 1. ESTADO NACIONAL | D65: 09. EXPANSIÓN DE LA RED DE AGUA POTABLE Y SANEAMIENTO DE CLOACAS | E65: - | F65: - | G65: - | H65: EXPANSIÓN DE REDES | I65: SISTEMA CLOACAS AVELLANEDA | J65: EST BOMBEO CLOACAL IMPULSION ESTE AVELLANEDA OBRA CIVIL | K65: 2 | L65: 91. OBLIGACIONES DEL TESORO | M65: 356 | N65: AYSA | O65: 95. ASISTENCIA FINANCIERA A EMPRESAS PÚBLICAS Y ENTE BINACIONAL | P65: 5 | Q65: F464129 | R65: 5 | S65: - | T65: 11 | U65: 5 | V65: 5 | W65: 7 | X65: 753 | Y65: 3 | Z65: 8 | AA65: 96 | AB65: 2 | AC65: SC365 | AD65: - | AE65: AVELLANEDA | AF65: WILDE | AG65: LA UBICACIÓN DE LA ESTACIÓN DE BOMBEO CLOACAL ES EN LA ESQUINA DE CRISOLOGO LARRALDE Y YAPEYÚ. | AH65: 2009-02-13 | AI65: 2010-10-05 | AJ65: 1512500 | AK65: 6438023.502 | AL65: 1378397.031 | AM65: 9328920.533 | AN65: 7103158.106 | AO65: 1870041.787 | AP65: 0 | AQ65: 355720.64 | AR65: 0 | AS65: 0 | AT65: 0 | AU65: 0 | AV65: 0 | AW65: 0 | AX65: 0 | AY65: 0 | AZ65: - | BA65: FINALIZADO | BB65: 1 | BC65: 1 | BD65: -
B66: 65 | C66: 1. ESTADO NACIONAL | D66: 09. EXPANSIÓN DE LA RED DE AGUA POTABLE Y SANEAMIENTO DE CLOACAS | E66: - | F66: - | G66: - | H66: EXPANSIÓN DE REDES | I66: SISTEMA CLOACAS AVELLANEDA | J66: EST BOMBEO CLOACAL IMPULSION ESTE AVELLANEDA OBRA ELECTROMECANICA | K66: 2 | L66: 91. OBLIGACIONES DEL TESORO | M66: 356 | N66: AYSA | O66: 95. ASISTENCIA FINANCIERA A EMPRESAS PÚBLICAS Y ENTE BINACIONAL | P66: 5 | Q66: F464130 | R66: 5 | S66: - | T66: 11 | U66: 5 | V66: 5 | W66: 7 | X66: 753 | Y66: 3 | Z66: 8 | AA66: 96 | AB66: 2 | AC66: SC3651 | AD66: - | AE66: AVELLANEDA | AF66: WILDE | AG66: LA UBICACIÓN DE LA ESTACIÓN DE BOMBEO CLOACAL ES EN LA ESQUINA DE CRISOLOGO LARRALDE Y YAPEYÚ. | AH66: 2009-02-13 | AI66: 2010-10-05 | AJ66: 1512500 | AK66: 7486039.217 | AL66: 838856.1918 | AM66: 9837395.408 | AN66: 7867883.587 | AO66: 1969511.821 | AP66: 0 | AQ66: 0 | AR66: 0 | AS66: 0 | AT66: 0 | AU66: 0 | AV66: 0 | AW66: 0 | AX66: 0 | AY66: 0 | AZ66: - | BA66: FINALIZADO | BB66: 1 | BC66: 1 | BD66: -
B67: 66 | C67: 1. ESTADO NACIONAL | D67: 09. EXPANSIÓN DE LA RED DE AGUA POTABLE Y SANEAMIENTO DE CLOACAS | E67: - | F67: - | G67: - | H67: EXPANSIÓN DE REDES | I67: SISTEMA CLOACAS AVELLANEDA | J67: ESTACION DE BOMBEO CLOACAL WILDE-OBRA CIVIL | K67: 2 | L67: 91. OBLIGACIONES DEL TESORO | M67: 356 | N67: AYSA | O67: 95. ASISTENCIA FINANCIERA A EMPRESAS PÚBLICAS Y ENTE BINACIONAL | P67: 5 | Q67: N760306 | R67: 5 | S67: - | T67: 11 | U67: 5 | V67: 5 | W67: 7 | X67: 753 | Y67: 3 | Z67: 8 | AA67: 96 | AB67: 2 | AC67: SC436 | AD67: - | AE67: AVELLANEDA | AF67: WILDE | AG67: LA ESTACIÓN DE BOMBEO CLOACAL ESTARÁ UBICADA EN LA VEREDA ESTE DEL BOULEVAR CENTRAL DE LA AV. LAS FLORES EN SU INTERSECCIÓN CON LA CALLE PINO. | AH67: 2009-10-05 | AI67: 2010-07-19 | AJ67: 324885 | AK67: 32909.4348 | AL67: 177013.8282 | AM67: 534808.263 | AN67: 267939.3992 | AO67: 266868.8638 | AP67: 0 | AQ67: 0 | AR67: 0 | AS67: 0 | AT67: 0 | AU67: 0 | AV67: 0 | AW67: 0 | AX67: 0 | AY67: 0 | AZ67: - | BA67: FINALIZADO | BB67: 1 | BC67: 1 | BD67: -
B68: 67 | C68: 1. ESTADO NACIONAL | D68: 09. EXPANSIÓN DE LA RED DE AGUA POTABLE Y SANEAMIENTO DE CLOACAS | E68: - | F68: - | G68: - | H68: EXPANSIÓN DE REDES | I68: - | J68: ESTACION DE BOMBEO CLOACAL BARRIO LAS COLONIAS-OBRA ELECTROMECANICA | K68: 2 | L68: 91. OBLIGACIONES DEL TESORO | M68: 356 | N68: AYSA | O68: 95. ASISTENCIA FINANCIERA A EMPRESAS PÚBLICAS Y ENTE BINACIONAL | P68: 5 | Q68: N760321 | R68: 5 | S68: - | T68: 11 | U68: 5 | V68: 5 | W68: 7 | X68: 753 | Y68: 3 | Z68: 8 | AA68: 96 | AB68: 2 | AC68: SC5181 | AD68: - | AE68: LANÚS | AF68: LAS COLONIAS | AG68: LA ESTACIÓN DE BOMBEO CLOACAL ESTARÁ UBICADA EN LA VEREDA OESTE DE LA ESQUINA DE LA INTERSECCIÓN DE LAS CALLES GRAL. FERRE Y CORONEL ALBARIÑOS. | AH68: 2009-10-05 | AI68: 2011-04-08 | AJ68: 1052034.5 | AK68: 33428.5127 | AL68: 166268.52 | AM68: 1251731.533 | AN68: 755259.6634 | AO68: 495815.2265 | AP68: 656.6428 | AQ68: 0 | AR68: 0 | AS68: 0 | AT68: 0 | AU68: 0 | AV68: 0 | AW68: 0 | AX68: 0 | AY68: 0 | AZ68: - | BA68: FINALIZADO | BB68: 1 | BC68: 1 | BD68: -
B69: 68 | C69: 1. ESTADO NACIONAL | D69: 09. EXPANSIÓN DE LA RED DE AGUA POTABLE Y SANEAMIENTO DE CLOACAS | E69: - | F69: - | G69: - | H69: EXPANSIÓN DE REDES | I69: SISTEMA CLOACAS AVELLANEDA | J69: ESTACION DE BOMBEO CLOACAL WILDE-OBRA ELECTROMECANICA | K69: 2 | L69: 91. OBLIGACIONES DEL TESORO | M69: 356 | N69: AYSA | O69: 95. ASISTENCIA FINANCIERA A EMPRESAS PÚBLICAS Y ENTE BINACIONAL | P69: 5 | Q69: N760322 | R69: 5 | S69: - | T69: 11 | U69: 5 | V69: 5 | W69: 7 | X69: 753 | Y69: 3 | Z69: 8 | AA69: 96 | AB69: 2 | AC69: SC4361 | AD69: - | AE69: AVELLANEDA | AF69: WILDE | AG69: LA ESTACIÓN DE BOMBEO CLOACAL ESTARÁ UBICADA EN LA VEREDA ESTE DEL BOULEVAR CENTRAL DE LA AV. LAS FLORES EN SU INTERSECCIÓN CON LA CALLE PINO. | AH69: 2009-10-05 | AI69: 2010-07-19 | AJ69: 1111385 | AK69: -5059.5666 | AL69: 150354.5274 | AM69: 1256679.961 | AN69: 655118.9986 | AO69: 601560.9622 | AP69: 0 | AQ69: 0 | AR69: 0 | AS69: 0 | AT69: 0 | AU69: 0 | AV69: 0 | AW69: 0 | AX69: 0 | AY69: 0 | AZ69: - | BA69: FINALIZADO | BB69: 1 | BC69: 1 | BD69: -
B70: 69 | C70: 1. ESTADO NACIONAL | D70: 09. EXPANSIÓN DE LA RED DE AGUA POTABLE Y SANEAMIENTO DE CLOACAS | E70: - | F70: - | G70: - | H70: EXPANSIÓN DE REDES | I70: SISTEMA CLOACAS EZEIZA | J70: OBRAS PRIMARIAS SPEGAZZINI | K70: 2 | L70: 91. OBLIGACIONES DEL TESORO | M70: 356 | N70: AYSA | O70: 95. ASISTENCIA FINANCIERA A EMPRESAS PÚBLICAS Y ENTE BINACIONAL | P70: 5 | Q70: N860325 | R70: 5 | S70: - | T70: 11 | U70: 5 | V70: 5 | W70: 7 | X70: 753 | Y70: 3 | Z70: 8 | AA70: 96 | AB70: 2 | AC70: SC538 | AD70: - | AE70: EZEIZA | AF70: CARLOS SPEGAZZINI | AG70: LA ESTACIÓN DE BOMBEO SPEGAZZINI ESTARÁ UBICADA EN RUTA 205 Y LAS ANTILLAS. LA IMPULSIÓN SE INICIA A LA SALIDA DE LA ESTACIÓN DE BOMBEO SPEGAZZINI PARA CONTINUAR POR LA RUTA NACIONAL Nº 205 HASTA ESQUINA CALLE CONCEPCIÓN. CRUZA EL ARROYO AGUIRRE Y CONTINÚA HASTA LA CALLE LOS CRISANTEMOS (KM 39) DONDE DESCARGA EN LA ESTACIÓN DE BOMBEO PDA. UNIÓN. LA ESTACIÓN PARADA UNIÓN ESTARÁ UBICADA EN LA RUTA 205 Y CALLE LOS CRISANTEMOS. LA IMPULSIÓN SE INICIA A LA SALIDA DE LA ESTACIÓN DE BOMBEO PDA UNIÓN CONTINUANDO POR LA RUTA NACIONAL Nº 205 HASTA ESQUINA CALLE SANTIAGO DEL ESTERO, LUEGO POR LA RUTA NACIONAL Nº 205 HASTA LA CALLE VENEZUELA, CONTINUA POR CALLE BELGRANO HASTA LA CALLE BALCARCE. | AH70: 2008-07-08 | AI70: 2010-05-20 | AJ70: 11274684.8 | AK70: 3611595.186 | AL70: 505414.5437 | AM70: 15391694.53 | AN70: 13947685.51 | AO70: 1444009.015 | AP70: 0 | AQ70: 0 | AR70: 0 | AS70: 0 | AT70: 0 | AU70: 0 | AV70: 0 | AW70: 0 | AX70: 0 | AY70: 0 | AZ70: - | BA70: FINALIZADO | BB70: 1 | BC70: 1 | BD70: -
B71: 70 | C71: 1. ESTADO NACIONAL | D71: 09. EXPANSIÓN DE LA RED DE AGUA POTABLE Y SANEAMIENTO DE CLOACAS | E71: - | F71: - | G71: - | H71: EXPANSIÓN DE REDES | I71: SISTEMA CLOACAS AVELLANEDA | J71: RED SECUNDARIA BARRIO VILLA GONNET | K71: 2 | L71: 91. OBLIGACIONES DEL TESORO | M71: 356 | N71: AYSA | O71: 95. ASISTENCIA FINANCIERA A EMPRESAS PÚBLICAS Y ENTE BINACIONAL | P71: 5 | Q71: N860430 | R71: 5 | S71: - | T71: 11 | U71: 5 | V71: 5 | W71: 7 | X71: 753 | Y71: 3 | Z71: 8 | AA71: 96 | AB71: 2 | AC71: SC428 | AD71: - | AE71: AVELLANEDA | AF71: WILDE | AG71: LA RED SECUNDARIA CLOACAL ESTA DELIMITADA POR LAS SIGUIENTES CALLES: CAMINO GRAL. BELGRANO, CNEL. LYNCH, CAXARAVILLE, ESTEBAN ECHEVERRÍA, M. RAPOSO, AV. F. ONSARI, CAXARAVILLE, PAYSANDÚ, A. FERNANDEZ, HILARIO ASCASUBI. | AH71: 2008-04-10 | AI71: 2010-12-30 | AJ71: 4686893.86 | AK71: 1625419.686 | AL71: 196236.1608 | AM71: 6508549.707 | AN71: 4284020.839 | AO71: 1990156.805 | AP71: 0 | AQ71: 0 | AR71: 0 | AS71: 234372.0632 | AT71: 0 | AU71: 0 | AV71: 0 | AW71: 0 | AX71: 0 | AY71: 0 | AZ71: - | BA71: FINALIZADO | BB71: 1 | BC71: 1 | BD71: -
B72: 71 | C72: 1. ESTADO NACIONAL | D72: 09. EXPANSIÓN DE LA RED DE AGUA POTABLE Y SANEAMIENTO DE CLOACAS | E72: - | F72: - | G72: - | H72: EXPANSIÓN DE REDES | I72: - | J72: RED SECUNDARIA BARRIO CAÑADA DE RUIZ | K72: 2 | L72: 91. OBLIGACIONES DEL TESORO | M72: 356 | N72: AYSA | O72: 95. ASISTENCIA FINANCIERA A EMPRESAS PÚBLICAS Y ENTE BINACIONAL | P72: 5 | Q72: N860443 | R72: 5 | S72: - | T72: 11 | U72: 5 | V72: 5 | W72: 7 | X72: 753 | Y72: 3 | Z72: 8 | AA72: 96 | AB72: 2 | AC72: OC360 | AD72: - | AE72: MORÓN | AF72: MORÓN | AG72: ÁREA DELIMITADA POR AV. CAÑADA DE RUIZ, AZCUÉNAGA, MENDOZA, MUNILLO, SALDIAS Y SARMIENTO. | AH72: 2008-10-07 | AI72: 2009-06-30 | AJ72: 2431359.516 | AK72: 204152.3132 | AL72: 88100.8139 | AM72: 2723612.643 | AN72: 2722249.385 | AO72: 1363.2586 | AP72: 0 | AQ72: 0 | AR72: 0 | AS72: 0 | AT72: 0 | AU72: 0 | AV72: 0 | AW72: 0 | AX72: 0 | AY72: 0 | AZ72: - | BA72: FINALIZADO | BB72: 1 | BC72: 1 | BD72: -
B73: 72 | C73: 1. ESTADO NACIONAL | D73: 09. EXPANSIÓN DE LA RED DE AGUA POTABLE Y SANEAMIENTO DE CLOACAS | E73: - | F73: - | G73: - | H73: EXPANSIÓN DE REDES | I73: SISTEMA CLOACAS AVELLANEDA | J73: COLECTOR RAMAL AVELLANEDA | K73: 2 | L73: 91. OBLIGACIONES DEL TESORO | M73: 356 | N73: AYSA | O73: 95. ASISTENCIA FINANCIERA A EMPRESAS PÚBLICAS Y ENTE BINACIONAL | P73: 5 | Q73: N960317 | R73: 5 | S73: - | T73: 11 | U73: 5 | V73: 5 | W73: 7 | X73: 753 | Y73: 3 | Z73: 8 | AA73: 96 | AB73: 2 | AC73: SC421 | AD73: - | AE73: AVELLANEDA | AF73: WILDE | AG73: EL DESARROLLO DEL COLECTOR SE HARÁ DESDE ARREDONDO Y SUIPACHA POR ÉSTA HASTA CASACUBERTA; POR ÉSTA HASTA SAN LORENZO; POR ÉSTA HASTA CARABELAS Y FINALMENTE POR CARABELAS HASTA CENTENARIO URUGUAYO LLEGANDO A LA CÁMARA DE LLEGADA A LA ESTACIÓN RAMAL AVELLANEDA. | AH73: 2009-09-25 | AI73: 2010-12-13 | AJ73: 14883641.3 | AK73: 1462846.041 | AL73: 976834.4399 | AM73: 17323321.78 | AN73: 6244078.724 | AO73: 11187962.45 | AP73: 108719.3954 | AQ73: 0 | AR73: 0 | AS73: 0 | AT73: 0 | AU73: 0 | AV73: 0 | AW73: 0 | AX73: 0 | AY73: 0 | AZ73: - | BA73: FINALIZADO | BB73: 1 | BC73: 1 | BD73: -
B74: 73 | C74: 1. ESTADO NACIONAL | D74: 09. EXPANSIÓN DE LA RED DE AGUA POTABLE Y SANEAMIENTO DE CLOACAS | E74: - | F74: - | G74: - | H74: EXPANSIÓN DE REDES | I74: SISTEMA CLOACAS LOMAS DE ZAMORA | J74: IMPULSIÓN LOMAS ESTE ZONA OESTE | K74: 2 | L74: 91. OBLIGACIONES DEL TESORO | M74: 356 | N74: AYSA | O74: 95. ASISTENCIA FINANCIERA A EMPRESAS PÚBLICAS Y ENTE BINACIONAL | P74: 5 | Q74: N960347 | R74: 5 | S74: - | T74: 11 | U74: 5 | V74: 5 | W74: 7 | X74: 753 | Y74: 3 | Z74: 8 | AA74: 96 | AB74: 2 | AC74: SC433 | AD74: - | AE74: LOMAS DE ZAMORA | AF74: BANFIELD | AG74: LA TRAZA DE LA IMPULSIÓN COMIENZA EN LA ESQUINA DE ARMESTI Y COSTA RICA, CONTINUANDO POR ESTA HASTA DINAMARCA, LUEGO VASCONCELLOS, RETOMANDO POR DINAMARCA HASTA EL LITORAL. | AH74: 2009-09-07 | AI74: 2010-10-20 | AJ74: 1107150 | AK74: 64055.3551 | AL74: 59304.1328 | AM74: 1230509.488 | AN74: 357310.6768 | AO74: 873198.8111 | AP74: 0 | AQ74: 0 | AR74: 0 | AS74: 0 | AT74: 0 | AU74: 0 | AV74: 0 | AW74: 0 | AX74: 0 | AY74: 0 | AZ74: - | BA74: FINALIZADO | BB74: 1 | BC74: 1 | BD74: -
B75: 74 | C75: 1. ESTADO NACIONAL | D75: 09. EXPANSIÓN DE LA RED DE AGUA POTABLE Y SANEAMIENTO DE CLOACAS | E75: - | F75: - | G75: - | H75: EXPANSIÓN DE REDES | I75: SISTEMA CLOACAS ALMIRANTE BROWN | J75: TERRENO PARA ESTACIÓN DE BOMBEO CALZADA 2 | K75: 2 | L75: 91. OBLIGACIONES DEL TESORO | M75: 356 | N75: AYSA | O75: 95. ASISTENCIA FINANCIERA A EMPRESAS PÚBLICAS Y ENTE BINACIONAL | P75: 5 | Q75: N960368 | R75: 5 | S75: - | T75: 11 | U75: 5 | V75: 5 | W75: 7 | X75: 753 | Y75: 3 | Z75: 8 | AA75: 96 | AB75: 2 | AC75: SIN P3 | AD75: - | AE75: ALMIRANTE BROWN | AF75: RAFAEL CALZADA | AG75: LA EB ESTARÁ SITUADA EN EL LOTE 8 DE LA MANZANA 58 UBICADA SOBRE LA CALLE M.ARIN ENTRE FRIAS Y 30 DE SEPTIEMBRE. | AH75: 2010-03-25 | AI75: No aplica - compra de terreno | AJ75: 192150.299 | AK75: 0 | AL75: 0 | AM75: 192150.299 | AN75: 2178 | AO75: 189972.299 | AP75: 0 | AQ75: 0 | AR75: 0 | AS75: 0 | AT75: 0 | AU75: 0 | AV75: 0 | AW75: 0 | AX75: 0 | AY75: 0 | AZ75: - | BA75: FINALIZADO | BB75: 1 | BC75: 1 | BD75: -
B76: 75 | C76: 1. ESTADO NACIONAL | D76: 09. EXPANSIÓN DE LA RED DE AGUA POTABLE Y SANEAMIENTO DE CLOACAS | E76: - | F76: - | G76: - | H76: EXPANSIÓN DE REDES | I76: SISTEMA CLOACAS ESTEBAN ECHEVERRÍA | J76: RED SECUNDARIA BARRIO LUIS GUILLON CUENCA 2 | K76: 2 | L76: 91. OBLIGACIONES DEL TESORO | M76: 356 | N76: AYSA | O76: 95. ASISTENCIA FINANCIERA A EMPRESAS PÚBLICAS Y ENTE BINACIONAL | P76: 5 | Q76: N960405 | R76: 5 | S76: - | T76: 11 | U76: 5 | V76: 5 | W76: 7 | X76: 753 | Y76: 3 | Z76: 8 | AA76: 96 | AB76: 2 | AC76: SC02902 / UCS00201 | AD76: - | AE76: ESTEBAN ECHEVERRÍA | AF76: LUIS GUILLÓN | AG76: ÁREA DELIMITADA POR LAS CALLES F. SALAS, CAMINO DE CINTURA, VARISCO Y JUJUY. | AH76: 2009-04-03 | AI76: 2009-12-19 | AJ76: 8204997.61 | AK76: 2572864.297 | AL76: 224406.5395 | AM76: 11002268.45 | AN76: 10861657.35 | AO76: 13606.5226 | AP76: 0 | AQ76: 0 | AR76: 23510.9776 | AS76: 103493.599 | AT76: 0 | AU76: 0 | AV76: 0 | AW76: 0 | AX76: 0 | AY76: 0 | AZ76: - | BA76: FINALIZADO | BB76: 1 | BC76: 1 | BD76: INCLUYE UCS00201 RED SECUNDARIA CLOACAL VILLA DE MAYO 1 - RESTO 1
B77: 76 | C77: 1. ESTADO NACIONAL | D77: 09. EXPANSIÓN DE LA RED DE AGUA POTABLE Y SANEAMIENTO DE CLOACAS | E77: - | F77: - | G77: - | H77: EXPANSIÓN DE REDES | I77: SISTEMA CLOACAS ESTEBAN ECHEVERRÍA | J77: RED SECUNDARIA BARRIO LUIS GUILLON CUENCA 3 | K77: 2 | L77: 91. OBLIGACIONES DEL TESORO | M77: 356 | N77: AYSA | O77: 95. ASISTENCIA FINANCIERA A EMPRESAS PÚBLICAS Y ENTE BINACIONAL | P77: 5 | Q77: N960406 | R77: 5 | S77: - | T77: 11 | U77: 5 | V77: 5 | W77: 7 | X77: 753 | Y77: 3 | Z77: 8 | AA77: 96 | AB77: 2 | AC77: SC02903 / UCS00205 | AD77: - | AE77: ESTEBAN ECHEVERRÍA | AF77: LUIS GUILLÓN | AG77: LA RED SECUNDARIA CLOACAL PROYECTADA ESTA DELIMITADA POR LAS CALLES N. AVELLANEDA, J. HERNANDEZ, TTE. E. G. FORD Y LUIS DE SARRO. | AH77: 2009-05-04 | AI77: 2009-12-19 | AJ77: 9083932.244 | AK77: 2808165.217 | AL77: 252237.9673 | AM77: 12144335.43 | AN77: 12016589.8 | AO77: 741.0524 | AP77: 0 | AQ77: 0 | AR77: 23510.9776 | AS77: 103493.599 | AT77: 0 | AU77: 0 | AV77: 0 | AW77: 0 | AX77: 0 | AY77: 0 | AZ77: - | BA77: FINALIZADO | BB77: 1 | BC77: 1 | BD77: INCLUYE UCS00205 RED SECUNDARIA CLOACAL VILLA DE MAYO 1 - RESTO 5
B78: 77 | C78: 1. ESTADO NACIONAL | D78: 09. EXPANSIÓN DE LA RED DE AGUA POTABLE Y SANEAMIENTO DE CLOACAS | E78: - | F78: - | G78: - | H78: EXPANSIÓN DE REDES | I78: SISTEMA CLOACAS ESTEBAN ECHEVERRÍA | J78: RED SECUNDARIA BARRIO LUIS GUILLON CUENCA 4 | K78: 2 | L78: 91. OBLIGACIONES DEL TESORO | M78: 356 | N78: AYSA | O78: 95. ASISTENCIA FINANCIERA A EMPRESAS PÚBLICAS Y ENTE BINACIONAL | P78: 5 | Q78: N960407 | R78: 5 | S78: - | T78: 11 | U78: 5 | V78: 5 | W78: 7 | X78: 753 | Y78: 3 | Z78: 8 | AA78: 96 | AB78: 2 | AC78: SC02904 / UCS00202 | AD78: - | AE78: ESTEBAN ECHEVERRÍA | AF78: LUIS GUILLÓN | AG78: LA RED SECUNDARIA ESTA DELIMITADA POR LAS SIGUIENTES CALLES: CAMINO DE CINTURA, AVELLANEDA, J. HERNÁNDEZ Y TTE. E. G. FORD. | AH78: 2009-04-06 | AI78: 2010-02-19 | AJ78: 8124662.152 | AK78: 2510338.648 | AL78: 227088.6255 | AM78: 10862089.43 | AN78: 10022208.81 | AO78: 712876.0375 | AP78: 0 | AQ78: 0 | AR78: 23510.9776 | AS78: 103493.599 | AT78: 0 | AU78: 0 | AV78: 0 | AW78: 0 | AX78: 0 | AY78: 0 | AZ78: - | BA78: FINALIZADO | BB78: 1 | BC78: 1 | BD78: INCLUYE UCS00202 RED SECUNDARIA CLOACAL VILLA DE MAYO 1 - RESTO 2
B79: 78 | C79: 1. ESTADO NACIONAL | D79: 09. EXPANSIÓN DE LA RED DE AGUA POTABLE Y SANEAMIENTO DE CLOACAS | E79: - | F79: - | G79: - | H79: EXPANSIÓN DE REDES | I79: SISTEMA CLOACA MORÓN | J79: RED SECUNDARIA CLOACAL A COLECTOR MORÓN | K79: 2 | L79: 91. OBLIGACIONES DEL TESORO | M79: 356 | N79: AYSA | O79: 95. ASISTENCIA FINANCIERA A EMPRESAS PÚBLICAS Y ENTE BINACIONAL | P79: 5 | Q79: N960418 | R79: 5 | S79: - | T79: 11 | U79: 5 | V79: 5 | W79: 7 | X79: 753 | Y79: 3 | Z79: 8 | AA79: 96 | AB79: 2 | AC79: OC363 | AD79: - | AE79: MORÓN | AF79: CASTELAR | AG79: EL SECTOR DE PROYECTO SE ENCUENTRA DIVIDIDO EN CUATRO CUENCAS, QUE SE DESCRIBEN A CONTINUACIÓN: EL PRIMERO DELIMITADO POR LAS CALLES SANTA MARÍA DE ORO, F. ALCORTA, BOGADO Y EL IMPARCIAL. EL SEGUNDO DELIMITADO POR LAS CALLES SANTA MARÍA DE ORO, EL IMPARCIAL, BOGADO, QUINTANA, VUCETICH, GOB. M. PAZ, E. ZEBALLOS Y B. IRIGOYEN. EL TERCERO DELIMITADO POR LAS CALLES B. IRIGOYEN, E. ZEBALLOS, QUINTANA Y B. MITRE. EL CUARTO DELIMITADO POR LAS CALLES B. IRIGOYEN, B. MITRE, GRAL. T. GUIDO, AV. H. YRIGOYEN, SUCRE, L. PASTEUR, GOB. UGARTE Y AV. H. YRIGOYEN. | AH79: 2009-10-23 | AI79: 2010-07-13 | AJ79: 6247119.503 | AK79: -546824.2164 | AL79: 341495.638 | AM79: 6041790.924 | AN79: 1724244.7 | AO79: 4317546.224 | AP79: 0 | AQ79: 0 | AR79: 0 | AS79: 0 | AT79: 0 | AU79: 0 | AV79: 0 | AW79: 0 | AX79: 0 | AY79: 0 | AZ79: - | BA79: FINALIZADO | BB79: 1 | BC79: 1 | BD79: -
B80: 79 | C80: 1. ESTADO NACIONAL | D80: 09. EXPANSIÓN DE LA RED DE AGUA POTABLE Y SANEAMIENTO DE CLOACAS | E80: - | F80: - | G80: - | H80: EXPANSIÓN DE REDES | I80: - | J80: RED SECUNDARIA CLOACAL MONTE CHINGOLO CUENCA C | K80: 2 | L80: 91. OBLIGACIONES DEL TESORO | M80: 356 | N80: AYSA | O80: 95. ASISTENCIA FINANCIERA A EMPRESAS PÚBLICAS Y ENTE BINACIONAL | P80: 5 | Q80: N960423 | R80: 5 | S80: - | T80: 11 | U80: 5 | V80: 5 | W80: 7 | X80: 753 | Y80: 3 | Z80: 8 | AA80: 96 | AB80: 2 | AC80: SC44204 | AD80: - | AE80: LANÚS | AF80: MONTE CHINGOLO | AG80: LA RED SECUNDARIA CLOACAL ESTA DELIMITADA POR LAS SIGUIENTES CALLES: GRAL. PINTO; CNEL. LYNCH Y ESTEBAN ECHEVERRÍA. | AH80: 2009-11-30 | AI80: 2010-10-20 | AJ80: 3790182.22 | AK80: 756229.3211 | AL80: 253822.8011 | AM80: 4800234.342 | AN80: 1164942.819 | AO80: 3636885.081 | AP80: 1593.5579 | AQ80: 0 | AR80: 0 | AS80: 0 | AT80: 0 | AU80: 0 | AV80: 0 | AW80: 0 | AX80: 0 | AY80: 0 | AZ80: - | BA80: FINALIZADO | BB80: 1 | BC80: 1 | BD80: -
B81: 80 | C81: 1. ESTADO NACIONAL | D81: 09. EXPANSIÓN DE LA RED DE AGUA POTABLE Y SANEAMIENTO DE CLOACAS | E81: - | F81: - | G81: - | H81: EXPANSIÓN DE REDES | I81: SISTEMA CLOACAS ESTEBAN ECHEVERRÍA | J81: RED SECUNDARIA BARRIO LUIS GUILLÓN - CUENCA 1 | K81: 2 | L81: 91. OBLIGACIONES DEL TESORO | M81: 356 | N81: AYSA | O81: 95. ASISTENCIA FINANCIERA A EMPRESAS PÚBLICAS Y ENTE BINACIONAL | P81: 5 | Q81: N960404 | R81: 5 | S81: - | T81: 11 | U81: 5 | V81: 5 | W81: 7 | X81: 753 | Y81: 3 | Z81: 8 | AA81: 96 | AB81: 2 | AC81: SC02901 / UCS00203 | AD81: - | AE81: ESTEBAN ECHEVERRÍA | AF81: LUIS GUILLÓN | AG81: SECTOR DELIMITADO POR LAS CALLES CAMINO DE CINTURA - RUTA PROV. 4, SUBT. F. SALAS, MATIENZO, E. PRAYONES Y AVELLANEDA. | AH81: 2009-05-04 | AI81: 2009-12-17 | AJ81: 8457201.83 | AK81: 2581278.492 | AL81: 225884.7602 | AM81: 11264365.08 | AN81: 11137360.46 | AO81: 0 | AP81: 0 | AQ81: 0 | AR81: 23510.9776 | AS81: 103493.6474 | AT81: 0 | AU81: 0 | AV81: 0 | AW81: 0 | AX81: 0 | AY81: 0 | AZ81: - | BA81: FINALIZADO | BB81: 1 | BC81: 1 | BD81: INCLUYE UCS00203 RED SECUNDARIA CLOACAL VILLA DE MAYO 1 - RESTO 3
B82: 81 | C82: 1. ESTADO NACIONAL | D82: 09. EXPANSIÓN DE LA RED DE AGUA POTABLE Y SANEAMIENTO DE CLOACAS | E82: - | F82: - | G82: - | H82: EXPANSIÓN DE REDES | I82: SISTEMA CLOACAS EZEIZA | J82: RED SECUNDARIA EZEIZA 3 | K82: 2 | L82: 91. OBLIGACIONES DEL TESORO | M82: 356 | N82: AYSA | O82: 95. ASISTENCIA FINANCIERA A EMPRESAS PÚBLICAS Y ENTE BINACIONAL | P82: 5 | Q82: N860420 | R82: 5 | S82: - | T82: 11 | U82: 5 | V82: 5 | W82: 7 | X82: 753 | Y82: 3 | Z82: 8 | AA82: 96 | AB82: 2 | AC82: SC407 | AD82: - | AE82: EZEIZA | AF82: EZEIZA | AG82: ÁREA DELIMITADA POR LAS CALLES M. CASTEX, P. DREYER, A. DE VEDIA Y LA VÍA DEL EX FFCC ROCA. | AH82: 2008-02-25 | AI82: 2008-12-15 | AJ82: 5081178.942 | AK82: 0 | AL82: 9307.3563 | AM82: 5090486.299 | AN82: 5090486.299 | AO82: 0 | AP82: 0 | AQ82: 0 | AR82: 0 | AS82: 0 | AT82: 0 | AU82: 0 | AV82: 0 | AW82: 0 | AX82: 0 | AY82: 0 | AZ82: - | BA82: FINALIZADO | BB82: 1 | BC82: 1 | BD82: -
B83: 82 | C83: 1. ESTADO NACIONAL | D83: 09. EXPANSIÓN DE LA RED DE AGUA POTABLE Y SANEAMIENTO DE CLOACAS | E83: - | F83: - | G83: - | H83: EXPANSIÓN DE REDES | I83: - | J83: RED SECUNDARIA BARRIO LA RURAL | K83: 2 | L83: 91. OBLIGACIONES DEL TESORO | M83: 356 | N83: AYSA | O83: 95. ASISTENCIA FINANCIERA A EMPRESAS PÚBLICAS Y ENTE BINACIONAL | P83: 5 | Q83: N760434 | R83: 5 | S83: - | T83: 11 | U83: 5 | V83: 5 | W83: 7 | X83: 753 | Y83: 3 | Z83: 8 | AA83: 96 | AB83: 2 | AC83: OC359 | AD83: - | AE83: MORÓN | AF83: LA RURAL | AG83: ÁREA DELIMITADA POR AV. GAONA, R. RUIZ, DIRECTORIO E INT. C. CORIA. | AH83: 2008-02-18 | AI83: 2008-10-10 | AJ83: 2414164.17 | AK83: 119938.5638 | AL83: 128736.0503 | AM83: 2662838.784 | AN83: 2662838.796 | AO83: 0 | AP83: 0 | AQ83: 0 | AR83: 0 | AS83: 0 | AT83: 0 | AU83: 0 | AV83: 0 | AW83: 0 | AX83: 0 | AY83: 0 | AZ83: - | BA83: FINALIZADO | BB83: 1.000000005 | BC83: 1 | BD83: -
B84: 83 | C84: 1. ESTADO NACIONAL | D84: 09. EXPANSIÓN DE LA RED DE AGUA POTABLE Y SANEAMIENTO DE CLOACAS | E84: - | F84: - | G84: - | H84: EXPANSIÓN DE REDES | I84: SISTEMA CLOACAS EZEIZA | J84: RED CLOACAL SECUNDARIA SPEGAZZINI CUENCA B | K84: 2 | L84: 91. OBLIGACIONES DEL TESORO | M84: 356 | N84: AYSA | O84: 95. ASISTENCIA FINANCIERA A EMPRESAS PÚBLICAS Y ENTE BINACIONAL | P84: 5 | Q84: C960412 | R84: 5 | S84: - | T84: 11 | U84: 5 | V84: 5 | W84: 7 | X84: 753 | Y84: 3 | Z84: 8 | AA84: 96 | AB84: 2 | AC84: SC53902 | AD84: - | AE84: EZEIZA | AF84: CARLOS SPEGAZZINI | AG84: LA RED SECUNDARIA CLOACAL ESTA DELIMITADA POR LAS SIGUIENTES CALLES: TALES, SARMIENTO, ALVEAR, CURUZÚ CUATIÁ, VIGIL Y SGTO. CABRAL. | AH84: 2009-10-26 | AI84: 2010-06-01 | AJ84: 7833630.69 | AK84: 299441.1563 | AL84: 0 | AM84: 8133071.846 | AN84: 4954455.896 | AO84: 3455007.029 | AP84: 0 | AQ84: 0 | AR84: 0 | AS84: 0 | AT84: 0 | AU84: 0 | AV84: 0 | AW84: 0 | AX84: 0 | AY84: 0 | AZ84: - | BA84: FINALIZADO | BB84: 1 | BC84: 1 | BD84: MONTO VIGENTE Y GRADO DE AVANCE ECONÓMICO, SE CONSIDERAN SOLO PARTIDAS CONTRACTUALES
B85: 84 | C85: 1. ESTADO NACIONAL | D85: 09. EXPANSIÓN DE LA RED DE AGUA POTABLE Y SANEAMIENTO DE CLOACAS | E85: - | F85: - | G85: - | H85: EXPANSIÓN DE REDES | I85: - | J85: RED SECUNDARIA CLOACAL MONTE CHINGOLO CUENCA B | K85: 2 | L85: 56. MINISTERIO DE PLANIFICACIÓN FEDERAL, INVERSIÓN PÚBLICA Y SERVICIOS | M85: 354 | N85: AYSA | O85: 94. ASISTENCIA FINANCIERA A EMPRESAS PÚBLICAS Y ENTE BINACIONAL | P85: - | Q85: C960422 | R85: 2 | S85: - | T85: 22 | U85: 5 | V85: 5 | W85: 7 | X85: 753 | Y85: 3 | Z85: 8 | AA85: 6 | AB85: 2 | AC85: SC44203 | AD85: - | AE85: LANÚS | AF85: MONTE CHINGOLO | AG85: LA RED SECUNDARIA CLOACAL ESTA DELIMITADA POR LAS SIGUIENTES CALLES: CORONEL CHILAVERT, JUNCAL, CAZÓN, AV. DONATO ALVAREZ, CORONEL LYNCH Y GRAL. PINTO. | AH85: 2009-11-30 | AI85: 2010-08-20 | AJ85: 59879.82 | AK85: 0 | AL85: 0 | AM85: 59879.82 | AN85: 0 | AO85: 59879.82 | AP85: 0 | AQ85: 0 | AR85: 0 | AS85: 0 | AT85: 0 | AU85: 0 | AV85: 0 | AW85: 0 | AX85: 0 | AY85: 0 | AZ85: - | BA85: FINALIZADO | BB85: 1 | BC85: 1 | BD85: MONTO VIGENTE Y GRADO DE AVANCE ECONÓMICO, SE CONSIDERAN SOLO PARTIDAS CONTRACTUALES
B86: 85 | C86: 1. ESTADO NACIONAL | D86: 09. EXPANSIÓN DE LA RED DE AGUA POTABLE Y SANEAMIENTO DE CLOACAS | E86: - | F86: - | G86: - | H86: MEJORA Y MANTENIMIENTO | I86: SISTEMA CLOACAS CABA | J86: COLECTOR CLOACAL CALLE IRIARTE | K86: 2 | L86: 91. OBLIGACIONES DEL TESORO | M86: 356 | N86: AYSA | O86: 95. ASISTENCIA FINANCIERA A EMPRESAS PÚBLICAS Y ENTE BINACIONAL | P86: 5 | Q86: N860344 | R86: 5 | S86: - | T86: 11 | U86: 5 | V86: 5 | W86: 7 | X86: 753 | Y86: 3 | Z86: 8 | AA86: 96 | AB86: 2 | AC86: CC305 | AD86: - | AE86: CABA | AF86: BARRACAS | AG86: AV. IRIARTE DESDE SANTA MAGDALENA HASTA SANTA MARÍA | AH86: 2009-10-19 | AI86: 2011-05-08T09:36:00 | AJ86: 1234200 | AK86: 12371.1852 | AL86: 124685.5511 | AM86: 1371256.736 | AN86: 243663.145 | AO86: 962738.7264 | AP86: 117353.0479 | AQ86: 47501.817 | AR86: 0 | AS86: 0 | AT86: 0 | AU86: 0 | AV86: 0 | AW86: 0 | AX86: 0 | AY86: 0 | AZ86: - | BA86: FINALIZADO | BB86: 1 | BC86: 1 | BD86: -
B87: 86 | C87: 1. ESTADO NACIONAL | D87: 09. EXPANSIÓN DE LA RED DE AGUA POTABLE Y SANEAMIENTO DE CLOACAS | E87: - | F87: - | G87: - | H87: MEJORA Y MANTENIMIENTO | I87: SISTEMA SUDOESTE- LA MATANZA | J87: OBRAS EN PLANTA DEPURADORA SUDOESTE - OBRA CIVIL | K87: 2 | L87: 91. OBLIGACIONES DEL TESORO | M87: 356 | N87: AYSA | O87: 95. ASISTENCIA FINANCIERA A EMPRESAS PÚBLICAS Y ENTE BINACIONAL | P87: 5 | Q87: N962901 | R87: 5 | S87: - | T87: 11 | U87: 5 | V87: 5 | W87: 7 | X87: 753 | Y87: 3 | Z87: 8 | AA87: 96 | AB87: 2 | AC87: RP37201 | AD87: - | AE87: LA MATANZA | AF87: ALDO BONZI | AG87: ANA MARÍA JANER Y PALPA | AH87: 2009-07-08 | AI87: 2011-01-11 | AJ87: 1081095.07 | AK87: -45143.5996 | AL87: 357544.2189 | AM87: 1393495.689 | AN87: 1014942.555 | AO87: 378553.1343 | AP87: 0 | AQ87: 0 | AR87: 0 | AS87: 0 | AT87: 0 | AU87: 0 | AV87: 0 | AW87: 0 | AX87: 0 | AY87: 0 | AZ87: - | BA87: FINALIZADO | BB87: 1 | BC87: 1 | BD87: -
B88: 88 | C88: 1. ESTADO NACIONAL | D88: 09. EXPANSIÓN DE LA RED DE AGUA POTABLE Y SANEAMIENTO DE CLOACAS | E88: - | F88: - | G88: - | H88: MEJORA Y MANTENIMIENTO | I88: SISTEMA CLOACAS AVELLANEDA | J88: OBRAS EN EST. ELEVADORAS - OBRA ELECTROMECÁNICA | K88: 2 | L88: 91. OBLIGACIONES DEL TESORO | M88: 356 | N88: AYSA | O88: 95. ASISTENCIA FINANCIERA A EMPRESAS PÚBLICAS Y ENTE BINACIONAL | P88: 5 | Q88: N962502 | R88: 5 | S88: - | T88: 11 | U88: 5 | V88: 5 | W88: 7 | X88: 753 | Y88: 3 | Z88: 8 | AA88: 96 | AB88: 2 | AC88: RP37302 | AD88: - | AE88: AVELLANEDA | AF88: WILDE | AG88: LAS FLORES 701 | AH88: 2009-07-08 | AI88: 2010-12-13T12:00:00 | AJ88: 2541000 | AK88: 3664086.523 | AL88: 264311.19 | AM88: 6469397.713 | AN88: 2224001.889 | AO88: 4239552.661 | AP88: 5843.1626 | AQ88: 0 | AR88: 0 | AS88: 0 | AT88: 0 | AU88: 0 | AV88: 0 | AW88: 0 | AX88: 0 | AY88: 0 | AZ88: - | BA88: FINALIZADO | BB88: 1 | BC88: 1 | BD88: -
B89: 89 | C89: 1. ESTADO NACIONAL | D89: 09. EXPANSIÓN DE LA RED DE AGUA POTABLE Y SANEAMIENTO DE CLOACAS | E89: - | F89: - | G89: - | H89: MEJORA Y MANTENIMIENTO | I89: SISTEMA SUDOESTE- LA MATANZA | J89: OBRAS EN PLANTA DEPURADORA SUDOESTE - OBRA ELECTROMECÁNICA | K89: 2 | L89: 91. OBLIGACIONES DEL TESORO | M89: 356 | N89: AYSA | O89: 95. ASISTENCIA FINANCIERA A EMPRESAS PÚBLICAS Y ENTE BINACIONAL | P89: 5 | Q89: N962902 | R89: 5 | S89: - | T89: 11 | U89: 5 | V89: 5 | W89: 7 | X89: 753 | Y89: 3 | Z89: 8 | AA89: 96 | AB89: 2 | AC89: RP37202 | AD89: - | AE89: LA MATANZA | AF89: ALDO BONZI | AG89: ANA MARÍA JANER Y PALPA | AH89: 2009-07-08 | AI89: 2011-01-11 | AJ89: 4967308.093 | AK89: 1858833.46 | AL89: 224156.372 | AM89: 7050297.925 | AN89: 1692304.996 | AO89: 5350853.119 | AP89: 7139.8107 | AQ89: 0 | AR89: 0 | AS89: 0 | AT89: 0 | AU89: 0 | AV89: 0 | AW89: 0 | AX89: 0 | AY89: 0 | AZ89: - | BA89: FINALIZADO | BB89: 1 | BC89: 1 | BD89: -
B90: 90 | C90: 1. ESTADO NACIONAL | D90: 09. EXPANSIÓN DE LA RED DE AGUA POTABLE Y SANEAMIENTO DE CLOACAS | E90: - | F90: - | G90: - | H90: MEJORA Y MANTENIMIENTO | I90: SISTEMA AGUA CABA | J90: OBRAS EN PLANTA SAN MARTÍN - OBRA ELECTROMECÁNICA | K90: 2 | L90: 91. OBLIGACIONES DEL TESORO | M90: 356 | N90: AYSA | O90: 95. ASISTENCIA FINANCIERA A EMPRESAS PÚBLICAS Y ENTE BINACIONAL | P90: 5 | Q90: N961202 | R90: 5 | S90: - | T90: 11 | U90: 5 | V90: 5 | W90: 7 | X90: 753 | Y90: 3 | Z90: 8 | AA90: 96 | AB90: 2 | AC90: RP37002 | AD90: - | AE90: CABA | AF90: PALERMO | AG90: AV. DE LOS OMBÚES 209 | AH90: 2009-05-21 | AI90: 2010-11-01 | AJ90: 392215.0265 | AK90: 9757.8635 | AL90: 219542.0007 | AM90: 621514.8907 | AN90: 440186.8317 | AO90: 181328.059 | AP90: 0 | AQ90: 0 | AR90: 0 | AS90: 0 | AT90: 0 | AU90: 0 | AV90: 0 | AW90: 0 | AX90: 0 | AY90: 0 | AZ90: - | BA90: FINALIZADO | BB90: 1 | BC90: 1 | BD90: -
B91: 92 | C91: 1. ESTADO NACIONAL | D91: 09. EXPANSIÓN DE LA RED DE AGUA POTABLE Y SANEAMIENTO DE CLOACAS | E91: - | F91: - | G91: - | H91: MEJORA Y MANTENIMIENTO | I91: SISTEMA CLOACAS CABA | J91: ESTACIÓN BOMBEO CLOACAL E INTERMEDIA 1-2 (BOCA-BARRACAS)-O.CIVIL | K91: 2 | L91: 91. OBLIGACIONES DEL TESORO | M91: 356 | N91: AYSA | O91: 95. ASISTENCIA FINANCIERA A EMPRESAS PÚBLICAS Y ENTE BINACIONAL | P91: 5 | Q91: N860327 | R91: 5 | S91: - | T91: 11 | U91: 5 | V91: 5 | W91: 7 | X91: 753 | Y91: 3 | Z91: 8 | AA91: 96 | AB91: 2 | AC91: CC34201 | AD91: - | AE91: CABA | AF91: BARRACAS | AG91: E.B.: AV. IRIARTE Y SANTA MAGDALENA - COLECTOR DN315: DESDE AV. IRIARTE Y SANTA MARIA HASTA LA E.B. - IMPULSION DN200: DE E.B. HASTA AV. IRIARTE Y SANTA MAGDALENA | AH91: 2009-10-01 | AI91: 2015-07-31 | AJ91: 905382.5 | AK91: 226645.1 | AL91: 109845.5545 | AM91: 1241873.155 | AN91: 26799.9512 | AO91: 1048957.821 | AP91: 149943.5993 | AQ91: 0 | AR91: 16171.7831 | AS91: 0 | AT91: 0 | AU91: 0 | AV91: 0 | AW91: 0 | AX91: 0 | AY91: 0 | AZ91: - | BA91: FINALIZADO | BB91: 1 | BC91: 1 | BD91: OBRA NEUTRALIZADA (POR AMPARO JUDICIAL). SE CONSIDERA COMO FINALIZADA.
B92: 93 | C92: 1. ESTADO NACIONAL | D92: 09. EXPANSIÓN DE LA RED DE AGUA POTABLE Y SANEAMIENTO DE CLOACAS | E92: - | F92: - | G92: - | H92: MEJORA Y MANTENIMIENTO | I92: SISTEMA CLOACAS CABA | J92: ESTACIÓN BOMBEO CLOACAL E INTERMEDIA 1-2 (BOCA-BARRACAS)-O.ELECT. | K92: 2 | L92: 91. OBLIGACIONES DEL TESORO | M92: 356 | N92: AYSA | O92: 95. ASISTENCIA FINANCIERA A EMPRESAS PÚBLICAS Y ENTE BINACIONAL | P92: 5 | Q92: N860328 | R92: 5 | S92: - | T92: 11 | U92: 5 | V92: 5 | W92: 7 | X92: 753 | Y92: 3 | Z92: 8 | AA92: 96 | AB92: 2 | AC92: CC34202 | AD92: - | AE92: CABA | AF92: BARRACAS | AG92: E.B.: AV. IRIARTE Y SANTA MAGDALENA - COLECTOR DN315: DESDE AV. IRIARTE Y SANTA MARIA HASTA LA E.B. - IMPULSION DN200: DE E.B. HASTA AV. IRIARTE Y SANTA MAGDALENA | AH92: 2009-10-01 | AI92: 2015-07-31 | AJ92: 1248417.5 | AK92: 59696.56 | AL92: -100223.574 | AM92: 1207890.486 | AN92: 862898.7466 | AO92: 275371.9936 | AP92: 53447.9627 | AQ92: 0 | AR92: 16171.7831 | AS92: 0 | AT92: 0 | AU92: 0 | AV92: 0 | AW92: 0 | AX92: 0 | AY92: 0 | AZ92: - | BA92: FINALIZADO | BB92: 1 | BC92: 1 | BD92: -
B93: 95 | C93: 1. ESTADO NACIONAL | D93: 09. EXPANSIÓN DE LA RED DE AGUA POTABLE Y SANEAMIENTO DE CLOACAS | E93: - | F93: - | G93: - | H93: MEJORA Y MANTENIMIENTO | I93: SISTEMA AGUA LOMAS DE ZAMORA | J93: PLAN VERANO 2009/2010 REFUERZO PUNTA ALTA - LOMAS DE ZAMORA | K93: 2 | L93: 91. OBLIGACIONES DEL TESORO | M93: 356 | N93: AYSA | O93: 95. ASISTENCIA FINANCIERA A EMPRESAS PÚBLICAS Y ENTE BINACIONAL | P93: 5 | Q93: N960904 | R93: 5 | S93: - | T93: 11 | U93: 5 | V93: 5 | W93: 7 | X93: 753 | Y93: 3 | Z93: 8 | AA93: 96 | AB93: 2 | AC93: SAP002 | AD93: - | AE93: LOMAS DE ZAMORA | AF93: LOMAS DE ZAMORA | AG93: PUNTA ALTA E/ GOIRI Y LABARDEN; LABARDEN E/ PUNTA ALTA Y MARSELLA | AH93: 2009-10-30 | AI93: 2010-01-06 | AJ93: 659189.5838 | AK93: 0 | AL93: 0 | AM93: 659189.5838 | AN93: 490386.3316 | AO93: 168803.2522 | AP93: 0 | AQ93: 0 | AR93: 0 | AS93: 0 | AT93: 0 | AU93: 0 | AV93: 0 | AW93: 0 | AX93: 0 | AY93: 0 | AZ93: - | BA93: FINALIZADO | BB93: 1 | BC93: 1 | BD93: -
B94: 96 | C94: 1. ESTADO NACIONAL | D94: 09. EXPANSIÓN DE LA RED DE AGUA POTABLE Y SANEAMIENTO DE CLOACAS | E94: - | F94: - | G94: - | H94: MEJORA Y MANTENIMIENTO | I94: SISTEMA AGUA LANÚS | J94: PLAN VERANO 2009/2010 REFUERZO CONDARCO ETAPA 1 LANUS | K94: 2 | L94: 91. OBLIGACIONES DEL TESORO | M94: 356 | N94: AYSA | O94: 95. ASISTENCIA FINANCIERA A EMPRESAS PÚBLICAS Y ENTE BINACIONAL | P94: 5 | Q94: N960905 | R94: 5 | S94: - | T94: 11 | U94: 5 | V94: 5 | W94: 7 | X94: 753 | Y94: 3 | Z94: 8 | AA94: 96 | AB94: 2 | AC94: UAP003 | AD94: - | AE94: LANÚS | AF94: MONTE CHINGOLO | AG94: PIEDRAS E/ DE LA PEÑA Y CHORROARÍN; CHORROARPIN E/ PIEDRAS E ITUZAINGO; ÁLVAREZ CONDARCO E/ GRAL. ALVEAR Y PIEDRAS | AH94: 2009-11-30 | AI94: 2010-01-14 | AJ94: 336411.5205 | AK94: 0 | AL94: 0 | AM94: 336411.5205 | AN94: 117466.0256 | AO94: 218945.4949 | AP94: 0 | AQ94: 0 | AR94: 0 | AS94: 0 | AT94: 0 | AU94: 0 | AV94: 0 | AW94: 0 | AX94: 0 | AY94: 0 | AZ94: - | BA94: FINALIZADO | BB94: 1 | BC94: 1 | BD94: -
B95: 97 | C95: 1. ESTADO NACIONAL | D95: 09. EXPANSIÓN DE LA RED DE AGUA POTABLE Y SANEAMIENTO DE CLOACAS | E95: - | F95: - | G95: - | H95: MEJORA Y MANTENIMIENTO | I95: SISTEMA AGUA CABA | J95: OBRAS EN PLANTA SAN MARTÍN - OBRA CIVIL | K95: 2 | L95: 91. OBLIGACIONES DEL TESORO | M95: 356 | N95: AYSA | O95: 95. ASISTENCIA FINANCIERA A EMPRESAS PÚBLICAS Y ENTE BINACIONAL | P95: 5 | Q95: N961201 | R95: 5 | S95: - | T95: 11 | U95: 5 | V95: 5 | W95: 7 | X95: 753 | Y95: 3 | Z95: 8 | AA95: 96 | AB95: 2 | AC95: RP37001 | AD95: - | AE95: CABA | AF95: PALERMO | AG95: AV. DE LOS OMBÚES 209 | AH95: 2009-05-20 | AI95: 2010-11-01 | AJ95: 9287850.628 | AK95: 1592792.974 | AL95: 474973.1217 | AM95: 11355616.72 | AN95: 3294798.032 | AO95: 8060818.692 | AP95: 0 | AQ95: 0 | AR95: 0 | AS95: 0 | AT95: 0 | AU95: 0 | AV95: 0 | AW95: 0 | AX95: 0 | AY95: 0 | AZ95: - | BA95: FINALIZADO | BB95: 1 | BC95: 1 | BD95: -
B96: 98 | C96: 1. ESTADO NACIONAL | D96: 09. EXPANSIÓN DE LA RED DE AGUA POTABLE Y SANEAMIENTO DE CLOACAS | E96: - | F96: - | G96: - | H96: MEJORA Y MANTENIMIENTO | I96: - | J96: OBRAS EN PLANTA BERNAL - OBRAS CIVILES | K96: 2 | L96: 91. OBLIGACIONES DEL TESORO | M96: 356 | N96: AYSA | O96: 95. ASISTENCIA FINANCIERA A EMPRESAS PÚBLICAS Y ENTE BINACIONAL | P96: 5 | Q96: N961301 | R96: 5 | S96: - | T96: 11 | U96: 5 | V96: 5 | W96: 7 | X96: 753 | Y96: 3 | Z96: 8 | AA96: 96 | AB96: 2 | AC96: RP37101 | AD96: - | AE96: QUILMES | AF96: BERNAL | AG96: LA PLANTA POTABILIZADORA GRAL.BELGRANO SE UBICA EN LA CALLE CASEROS 269 | AH96: 2009-07-27 | AI96: 2010-03-22 | AJ96: 4840000 | AK96: 2993799.557 | AL96: -407501.1259 | AM96: 7426298.431 | AN96: 7314471.84 | AO96: 111826.5907 | AP96: 0 | AQ96: 0 | AR96: 0 | AS96: 0 | AT96: 0 | AU96: 0 | AV96: 0 | AW96: 0 | AX96: 0 | AY96: 0 | AZ96: - | BA96: FINALIZADO | BB96: 1 | BC96: 1 | BD96: -
B97: 99 | C97: 1. ESTADO NACIONAL | D97: 09. EXPANSIÓN DE LA RED DE AGUA POTABLE Y SANEAMIENTO DE CLOACAS | E97: - | F97: - | G97: - | H97: MEJORA Y MANTENIMIENTO | I97: - | J97: OBRAS EN PLANTA BERNAL - OBRAS ELECTROMECÁNICAS | K97: 2 | L97: 91. OBLIGACIONES DEL TESORO | M97: 356 | N97: AYSA | O97: 95. ASISTENCIA FINANCIERA A EMPRESAS PÚBLICAS Y ENTE BINACIONAL | P97: 5 | Q97: N961302 | R97: 5 | S97: - | T97: 11 | U97: 5 | V97: 5 | W97: 7 | X97: 753 | Y97: 3 | Z97: 8 | AA97: 96 | AB97: 2 | AC97: RP37102 | AD97: - | AE97: QUILMES | AF97: BERNAL | AG97: LA PLANTA POTABILIZADORA GRAL.BELGRANO SE UBICA EN LA CALLE CASEROS 269 | AH97: 2009-08-07 | AI97: 2010-06-23 | AJ97: 4840000 | AK97: -57639.5963 | AL97: 1116107.545 | AM97: 5898467.949 | AN97: 2841356.074 | AO97: 3057111.875 | AP97: 0 | AQ97: 0 | AR97: 0 | AS97: 0 | AT97: 0 | AU97: 0 | AV97: 0 | AW97: 0 | AX97: 0 | AY97: 0 | AZ97: - | BA97: FINALIZADO | BB97: 1 | BC97: 1 | BD97: -
B98: 100 | C98: 1. ESTADO NACIONAL | D98: 09. EXPANSIÓN DE LA RED DE AGUA POTABLE Y SANEAMIENTO DE CLOACAS | E98: - | F98: - | G98: - | H98: MEJORA Y MANTENIMIENTO | I98: SISTEMA CLOACAS AVELLANEDA | J98: OBRAS EN EST. ELEVADORAS - OBRA CIVIL | K98: 2 | L98: 91. OBLIGACIONES DEL TESORO | M98: 356 | N98: AYSA | O98: 95. ASISTENCIA FINANCIERA A EMPRESAS PÚBLICAS Y ENTE BINACIONAL | P98: 5 | Q98: N962501 | R98: 5 | S98: - | T98: 11 | U98: 5 | V98: 5 | W98: 7 | X98: 753 | Y98: 3 | Z98: 8 | AA98: 96 | AB98: 2 | AC98: RP37301 | AD98: - | AE98: AVELLANEDA | AF98: WILDE | AG98: LAS FLORES 701 | AH98: 2009-07-08 | AI98: 2010-12-13T12:00:00 | AJ98: 2299000 | AK98: -2160844.777 | AL98: 83272.2363 | AM98: 221427.459 | AN98: 48321.8582 | AO98: 172880.0931 | AP98: 225.5077 | AQ98: 0 | AR98: 0 | AS98: 0 | AT98: 0 | AU98: 0 | AV98: 0 | AW98: 0 | AX98: 0 | AY98: 0 | AZ98: - | BA98: FINALIZADO | BB98: 1 | BC98: 1 | BD98: -
B99: 101 | C99: 1. ESTADO NACIONAL | D99: 09. EXPANSIÓN DE LA RED DE AGUA POTABLE Y SANEAMIENTO DE CLOACAS | E99: - | F99: - | G99: - | H99: MEJORA Y MANTENIMIENTO | I99: SISTEMA AGUA CABA | J99: OBRAS ELECTROMECÁNICAS EST. ELEVADORAS | K99: 2 | L99: 91. OBLIGACIONES DEL TESORO | M99: 356 | N99: AYSA | O99: 95. ASISTENCIA FINANCIERA A EMPRESAS PÚBLICAS Y ENTE BINACIONAL | P99: 5 | Q99: N962504 | R99: 5 | S99: - | T99: 11 | U99: 5 | V99: 5 | W99: 7 | X99: 753 | Y99: 3 | Z99: 8 | AA99: 96 | AB99: 2 | AC99: RP38402 | AD99: - | AE99: CABA | AF99: CABALLITO | AG99: PEDRO GOYENA Y JOSÉ MARÍA MORENO | AH99: 2009-11-18 | AI99: 2010-03-20 | AJ99: 2736123.39 | AK99: -127831.055 | AL99: 69621.222 | AM99: 2677913.557 | AN99: 749440.9791 | AO99: 1928472.578 | AP99: 0 | AQ99: 0 | AR99: 0 | AS99: 0 | AT99: 0 | AU99: 0 | AV99: 0 | AW99: 0 | AX99: 0 | AY99: 0 | AZ99: - | BA99: FINALIZADO | BB99: 1 | BC99: 1 | BD99: -
B100: 102 | C100: 1. ESTADO NACIONAL | D100: 09. EXPANSIÓN DE LA RED DE AGUA POTABLE Y SANEAMIENTO DE CLOACAS | E100: - | F100: - | G100: - | H100: MEJORA Y MANTENIMIENTO | I100: SISTEMA AGUA CABA | J100: OBRAS CIVILES EST. ELEVADORAS | K100: 2 | L100: 91. OBLIGACIONES DEL TESORO | M100: 356 | N100: AYSA | O100: 95. ASISTENCIA FINANCIERA A EMPRESAS PÚBLICAS Y ENTE BINACIONAL | P100: 5 | Q100: N962505 | R100: 5 | S100: - | T100: 11 | U100: 5 | V100: 5 | W100: 7 | X100: 753 | Y100: 3 | Z100: 8 | AA100: 96 | AB100: 2 | AC100: RP38401 | AD100: - | AE100: CABA | AF100: CABALLITO | AG100: PEDRO GOYENA Y JOSÉ MARÍA MORENO | AH100: 2009-11-18 | AI100: 2010-03-20 | AJ100: 5249876.61 | AK100: 2528749.839 | AL100: 91204.2945 | AM100: 7869830.743 | AN100: 2595166.219 | AO100: 5274664.525 | AP100: 0 | AQ100: 0 | AR100: 0 | AS100: 0 | AT100: 0 | AU100: 0 | AV100: 0 | AW100: 0 | AX100: 0 | AY100: 0 | AZ100: - | BA100: FINALIZADO | BB100: 1 | BC100: 1 | BD100: -
B101: 103 | C101: 1. ESTADO NACIONAL | D101: 09. EXPANSIÓN DE LA RED DE AGUA POTABLE Y SANEAMIENTO DE CLOACAS | E101: - | F101: - | G101: - | H101: MEJORA Y MANTENIMIENTO | I101: - | J101: PLAN VERANO 2009/2010 RED DE DIST RIVADAVIA E/CONCORDIA Y ESTRADA - MORON | K101: 2 | L101: 91. OBLIGACIONES DEL TESORO | M101: 356 | N101: AYSA | O101: 95. ASISTENCIA FINANCIERA A EMPRESAS PÚBLICAS Y ENTE BINACIONAL | P101: 5 | Q101: N960113 | R101: 5 | S101: - | T101: 11 | U101: 5 | V101: 5 | W101: 7 | X101: 753 | Y101: 3 | Z101: 8 | AA101: 96 | AB101: 2 | AC101: OAS003 | AD101: - | AE101: MORÓN | AF101: HAEDO CENTRO | AG101: AV. RIVADAVIA E/ CONCORDIA Y ESTRADA | AH101: 2009-11-09 | AI101: 2009-12-15 | AJ101: 305826.2295 | AK101: 0 | AL101: 0 | AM101: 305826.2295 | AN101: 17199.666 | AO101: 288626.5635 | AP101: 0 | AQ101: 0 | AR101: 0 | AS101: 0 | AT101: 0 | AU101: 0 | AV101: 0 | AW101: 0 | AX101: 0 | AY101: 0 | AZ101: - | BA101: FINALIZADO | BB101: 1 | BC101: 1 | BD101: -
B102: 104 | C102: 1. ESTADO NACIONAL | D102: 09. EXPANSIÓN DE LA RED DE AGUA POTABLE Y SANEAMIENTO DE CLOACAS | E102: - | F102: - | G102: - | H102: MEJORA Y MANTENIMIENTO | I102: - | J102: PLAN VERANO 2009/2010 RED DE DIST ALEGRIA Y LAS BASES - MORON | K102: 2 | L102: 91. OBLIGACIONES DEL TESORO | M102: 356 | N102: AYSA | O102: 95. ASISTENCIA FINANCIERA A EMPRESAS PÚBLICAS Y ENTE BINACIONAL | P102: 5 | Q102: N960114 | R102: 5 | S102: - | T102: 11 | U102: 5 | V102: 5 | W102: 7 | X102: 753 | Y102: 3 | Z102: 8 | AA102: 96 | AB102: 2 | AC102: OAS004 | AD102: - | AE102: MORÓN | AF102: HAEDO CENTRO | AG102: CALLE ALEGRÍA E/ LAS BASES Y R. E. DE SAN MARTIN | AH102: 2009-11-30 | AI102: 2009-12-31 | AJ102: 220462 | AK102: -130704.6356 | AL102: 0 | AM102: 89757.3644 | AN102: 22107.9826 | AO102: 67649.3818 | AP102: 0 | AQ102: 0 | AR102: 0 | AS102: 0 | AT102: 0 | AU102: 0 | AV102: 0 | AW102: 0 | AX102: 0 | AY102: 0 | AZ102: - | BA102: FINALIZADO | BB102: 1 | BC102: 1 | BD102: -
B103: 105 | C103: 1. ESTADO NACIONAL | D103: 09. EXPANSIÓN DE LA RED DE AGUA POTABLE Y SANEAMIENTO DE CLOACAS | E103: - | F103: - | G103: - | H103: MEJORA Y MANTENIMIENTO | I103: - | J103: PLAN VERANO 2009/2010 RED DE DIST LAS BASES Y EMILIO CASTRO - MORON | K103: 2 | L103: 91. OBLIGACIONES DEL TESORO | M103: 356 | N103: AYSA | O103: 95. ASISTENCIA FINANCIERA A EMPRESAS PÚBLICAS Y ENTE BINACIONAL | P103: 5 | Q103: N960115 | R103: 5 | S103: - | T103: 11 | U103: 5 | V103: 5 | W103: 7 | X103: 753 | Y103: 3 | Z103: 8 | AA103: 96 | AB103: 2 | AC103: OAS005 | AD103: - | AE103: MORÓN | AF103: HAEDO CENTRO | AG103: CALLE LAS BASES E/ EMILIO CASTRO Y ALEGRÍA | AH103: 2009-11-30 | AI103: 2009-12-31 | AJ103: 305555.4557 | AK103: 0 | AL103: 0 | AM103: 305555.4557 | AN103: 13180.2033 | AO103: 292375.2524 | AP103: 0 | AQ103: 0 | AR103: 0 | AS103: 0 | AT103: 0 | AU103: 0 | AV103: 0 | AW103: 0 | AX103: 0 | AY103: 0 | AZ103: - | BA103: FINALIZADO | BB103: 1 | BC103: 1 | BD103: -
B104: 106 | C104: 1. ESTADO NACIONAL | D104: 09. EXPANSIÓN DE LA RED DE AGUA POTABLE Y SANEAMIENTO DE CLOACAS | E104: - | F104: - | G104: - | H104: MEJORA Y MANTENIMIENTO | I104: SISTEMA AGUA LA MATANZA | J104: PLAN VERANO 2009/2010 CAÐERIA VINCULACION POZO LMS 90 | K104: 2 | L104: 91. OBLIGACIONES DEL TESORO | M104: 356 | N104: AYSA | O104: 95. ASISTENCIA FINANCIERA A EMPRESAS PÚBLICAS Y ENTE BINACIONAL | P104: 5 | Q104: N960116 | R104: 5 | S104: - | T104: 11 | U104: 5 | V104: 5 | W104: 7 | X104: 753 | Y104: 3 | Z104: 8 | AA104: 96 | AB104: 2 | AC104: OAP001 | AD104: - | AE104: LA MATANZA | AF104: BARRIO MUNICIPAL | AG104: LOS TULIPANES DESDE LOS GLADIOLOS HASTA TOMAR LOS LIRIOS PARA FINALIZAR EN LOS MALVONES | AH104: 2009-11-11 | AI104: 2009-12-16 | AJ104: 255189 | AK104: 0 | AL104: 52341.1878 | AM104: 307530.1878 | AN104: 90929.806 | AO104: 216600.3818 | AP104: 0 | AQ104: 0 | AR104: 0 | AS104: 0 | AT104: 0 | AU104: 0 | AV104: 0 | AW104: 0 | AX104: 0 | AY104: 0 | AZ104: - | BA104: FINALIZADO | BB104: 1 | BC104: 1 | BD104: -
B105: 107 | C105: 1. ESTADO NACIONAL | D105: 09. EXPANSIÓN DE LA RED DE AGUA POTABLE Y SANEAMIENTO DE CLOACAS | E105: - | F105: - | G105: - | H105: MEJORA Y MANTENIMIENTO | I105: SISTEMA AGUA CABA | J105: RENOVACION CAÐERIAS SUCRE E/ ALCORTA Y LIBERTADOR-RIBEREÐO TRAMO II | K105: 2 | L105: 91. OBLIGACIONES DEL TESORO | M105: 356 | N105: AYSA | O105: 95. ASISTENCIA FINANCIERA A EMPRESAS PÚBLICAS Y ENTE BINACIONAL | P105: 5 | Q105: N962302 | R105: 5 | S105: - | T105: 11 | U105: 5 | V105: 5 | W105: 7 | X105: 753 | Y105: 3 | Z105: 8 | AA105: 96 | AB105: 2 | AC105: CA375 | AD105: - | AE105: CABA | AF105: CIUDAD AUTÓNOMA DE BUENOS AIRES | AG105: SUCRE ENTRE ALCORTA Y LIBERTADOR | AH105: 2009-06-08 | AI105: 2011-02-23 | AJ105: 2056917.575 | AK105: 0 | AL105: -1325126.66 | AM105: 731790.9148 | AN105: 478883.3698 | AO105: 1578034.205 | AP105: 0 | AQ105: 0 | AR105: 0 | AS105: -1325126.66 | AT105: 0 | AU105: 0 | AV105: 0 | AW105: 0 | AX105: 0 | AY105: 0 | AZ105: - | BA105: FINALIZADO | BB105: 1 | BC105: 1 | BD105: -
B106: 108 | C106: 1. ESTADO NACIONAL | D106: 09. EXPANSIÓN DE LA RED DE AGUA POTABLE Y SANEAMIENTO DE CLOACAS | E106: - | F106: - | G106: - | H106: MEJORA Y MANTENIMIENTO | I106: SISTEMA AGUA CABA | J106: PLANTA SAN MARTÍN - OBRAS ELECTROMECÁNICAS VARIAS | K106: 2 | L106: 91. OBLIGACIONES DEL TESORO | M106: 356 | N106: AYSA | O106: 95. ASISTENCIA FINANCIERA A EMPRESAS PÚBLICAS Y ENTE BINACIONAL | P106: 5 | Q106: N861202 | R106: 5 | S106: - | T106: 11 | U106: 5 | V106: 5 | W106: 7 | X106: 753 | Y106: 3 | Z106: 8 | AA106: 96 | AB106: 2 | AC106: RP0141 | AD106: - | AE106: CABA | AF106: PALERMO | AG106: AV. DE LOS OMBÚES 209 | AH106: 2008-10-03 | AI106: 2009-07-20 | AJ106: 1694000 | AK106: 5058.9011 | AL106: 122350.5536 | AM106: 1821409.455 | AN106: 1821409.455 | AO106: 0 | AP106: 0 | AQ106: 0 | AR106: 0 | AS106: 0 | AT106: 0 | AU106: 0 | AV106: 0 | AW106: 0 | AX106: 0 | AY106: 0 | AZ106: - | BA106: FINALIZADO | BB106: 1 | BC106: 1 | BD106: -
B107: 109 | C107: 1. ESTADO NACIONAL | D107: 09. EXPANSIÓN DE LA RED DE AGUA POTABLE Y SANEAMIENTO DE CLOACAS | E107: - | F107: - | G107: - | H107: MEJORA Y MANTENIMIENTO | I107: - | J107: PLANTA BELGRANO - OBRAS CIVILES VARIAS | K107: 2 | L107: 91. OBLIGACIONES DEL TESORO | M107: 356 | N107: AYSA | O107: 95. ASISTENCIA FINANCIERA A EMPRESAS PÚBLICAS Y ENTE BINACIONAL | P107: 5 | Q107: N861301 | R107: 5 | S107: - | T107: 11 | U107: 5 | V107: 5 | W107: 7 | X107: 753 | Y107: 3 | Z107: 8 | AA107: 96 | AB107: 2 | AC107: RP015 | AD107: - | AE107: QUILMES | AF107: BERNAL | AG107: LA PLANTA POTABILIZADORA GRAL.BELGRANO SE UBICA EN LA CALLE CASEROS 269, BERNAL. | AH107: 2008-10-03 | AI107: 2009-06-22 | AJ107: 3146000 | AK107: 1556615.777 | AL107: 146004.6742 | AM107: 4848620.451 | AN107: 4848620.451 | AO107: 0 | AP107: 0 | AQ107: 0 | AR107: 0 | AS107: 0 | AT107: 0 | AU107: 0 | AV107: 0 | AW107: 0 | AX107: 0 | AY107: 0 | AZ107: - | BA107: FINALIZADO | BB107: 1 | BC107: 1 | BD107: -
B108: 110 | C108: 1. ESTADO NACIONAL | D108: 09. EXPANSIÓN DE LA RED DE AGUA POTABLE Y SANEAMIENTO DE CLOACAS | E108: - | F108: - | G108: - | H108: MEJORA Y MANTENIMIENTO | I108: - | J108: PLANTA BELGRANO - OBRAS ELECTROMECÁNICAS VARIAS | K108: 2 | L108: 91. OBLIGACIONES DEL TESORO | M108: 356 | N108: AYSA | O108: 95. ASISTENCIA FINANCIERA A EMPRESAS PÚBLICAS Y ENTE BINACIONAL | P108: 5 | Q108: N861302 | R108: 5 | S108: - | T108: 11 | U108: 5 | V108: 5 | W108: 7 | X108: 753 | Y108: 3 | Z108: 8 | AA108: 96 | AB108: 2 | AC108: RP0151 | AD108: - | AE108: QUILMES | AF108: BERNAL | AG108: LA PLANTA POTABILIZADORA GRAL.BELGRANO SE UBICA EN LA CALLE CASEROS 269 | AH108: 2008-10-04 | AI108: 2009-06-22 | AJ108: 1694000 | AK108: -93143.9608 | AL108: 859243.506 | AM108: 2460099.545 | AN108: 2460099.545 | AO108: 0 | AP108: 0 | AQ108: 0 | AR108: 0 | AS108: 0 | AT108: 0 | AU108: 0 | AV108: 0 | AW108: 0 | AX108: 0 | AY108: 0 | AZ108: - | BA108: FINALIZADO | BB108: 1 | BC108: 1 | BD108: -
B109: 111 | C109: 1. ESTADO NACIONAL | D109: 09. EXPANSIÓN DE LA RED DE AGUA POTABLE Y SANEAMIENTO DE CLOACAS | E109: - | F109: - | G109: - | H109: EXPANSIÓN DE REDES | I109: SISTEMA AGUA ESTEBAN ECHEVERRÍA | J109: PLAN AYSA A + T D.R. SUR - ESTEBAN ECHEVERRIA | K109: 2 | L109: 91. OBLIGACIONES DEL TESORO | M109: 356 | N109: AYSA | O109: 95. ASISTENCIA FINANCIERA A EMPRESAS PÚBLICAS Y ENTE BINACIONAL | P109: 5 | Q109: N948413 | R109: 5 | S109: - | T109: 11 | U109: 5 | V109: 5 | W109: 7 | X109: 753 | Y109: 3 | Z109: 8 | AA109: 96 | AB109: 2 | AC109: SIN P3 | AD109: - | AE109: ESTEBAN ECHEVERRÍA | AF109: ESTEBAN ECHEVERRÍA | AG109: MTE.GRANDE BARRIO BAFICO M4 / MTE.GRANDE BARRIO BAFICO M5 / SANTA CATALINA M1 / SANTA CATALINA M2 | AH109: 2009-04-20 | AI109: 2013-03-30 | AJ109: 5238455.63 | AK109: 0 | AL109: -777995.3947 | AM109: 4460460.235 | AN109: 1496536.707 | AO109: 1370878.564 | AP109: 351484.7596 | AQ109: 1082252.458 | AR109: 160651.1484 | AS109: 0 | AT109: -1343.4025 | AU109: 0 | AV109: 0 | AW109: 0 | AX109: 0 | AY109: 0 | AZ109: - | BA109: OBRA PARADA | BB109: 1 | BC109: 0.999988132 | BD109: -
B110: 112 | C110: 1. ESTADO NACIONAL | D110: 09. EXPANSIÓN DE LA RED DE AGUA POTABLE Y SANEAMIENTO DE CLOACAS | E110: - | F110: - | G110: - | H110: EXPANSIÓN DE REDES | I110: SISTEMA AGUA ALMIRANTE BROWN | J110: PLAN AYSA A+T D.R. SUR - ALTE. BROWN | K110: 2 | L110: 91. OBLIGACIONES DEL TESORO | M110: 356 | N110: AYSA | O110: 95. ASISTENCIA FINANCIERA A EMPRESAS PÚBLICAS Y ENTE BINACIONAL | P110: 5 | Q110: N948414 | R110: 5 | S110: - | T110: 11 | U110: 5 | V110: 5 | W110: 7 | X110: 753 | Y110: 3 | Z110: 8 | AA110: 96 | AB110: 2 | AC110: SIN P3 | AD110: - | AE110: ALMIRANTE BROWN | AF110: ALMIRANTE BROWN | AG110: CORIMAYO III M 1 / IBAÑEZ M 2 / SAN JUAN DE CORIMAYO M 1 | AH110: 2009-12-21 | AI110: 2013-05-01 | AJ110: 3140842.72 | AK110: 1456359.59 | AL110: -1704480.245 | AM110: 2892722.065 | AN110: 125447.9963 | AO110: 1627179.786 | AP110: 951950.8364 | AQ110: 123000.3136 | AR110: 65433.533 | AS110: 0 | AT110: -290.4 | AU110: 0 | AV110: 0 | AW110: 0 | AX110: 0 | AY110: 0 | AZ110: - | BA110: OBRA PARADA | BB110: 1 | BC110: 1 | BD110: -
B111: 113 | C111: 1. ESTADO NACIONAL | D111: 09. EXPANSIÓN DE LA RED DE AGUA POTABLE Y SANEAMIENTO DE CLOACAS | E111: - | F111: - | G111: - | H111: EXPANSIÓN DE REDES | I111: SISTEMA AGUA LOMAS DE ZAMORA | J111: PLAN AYSA A + T D.R. SUR - L. DE ZAMORA | K111: 2 | L111: 91. OBLIGACIONES DEL TESORO | M111: 356 | N111: AYSA | O111: 95. ASISTENCIA FINANCIERA A EMPRESAS PÚBLICAS Y ENTE BINACIONAL | P111: 5 | Q111: N948415 | R111: 5 | S111: - | T111: 11 | U111: 5 | V111: 5 | W111: 7 | X111: 753 | Y111: 3 | Z111: 8 | AA111: 96 | AB111: 2 | AC111: SIN P3 | AD111: - | AE111: LOMAS DE ZAMORA | AF111: LOMAS DE ZAMORA | AG111: AMERICA LATINA / AMERICA LATINA M 2 / BRIGADIER ROSAS M 4/ BRIGADIER ROSAS M 5 / CALLE CAMPOAMOR / CALLE TERRADA / CIERRE DE MALLAS TURDERA- SAN BASILIO- OBRADOR- LABERINTO- MANZANA 70 / GENERAL PAZ M 2 / GENERAL PAZ M3 / GENERAL PAZ M4 / GENERAL PAZ M5 / GENERAL PAZ M6 / GENERAL PAZ M7 / RENOVACIÓN BUDGE M1 / RENOVACIÓN BUDGE M2 / RENOVACIÓN BUDGE M3 / RENOVACIÓN BUDGE M4 / RENOVACIÓN BUDGE M5 / SANTA CATALINA 1 Y 2 M 3 / VILLA ALBERTINA 5 M1 / VILLA ALBERTINA 5 M2 / VILLA INDEPENDENCIA M 1 / VILLA INDEPENDENCIA M 2 - AMPLIACION EL FARO | AH111: 2009-03-23 | AI111: 2010-06-18 | AJ111: 26851775.42 | AK111: 13096501.18 | AL111: -13288044.05 | AM111: 26660232.55 | AN111: 16855475.94 | AO111: 7978134.567 | AP111: 1752696.891 | AQ111: 74696.2558 | AR111: 149149.5672 | AS111: 2722.5 | AT111: -3250.665 | AU111: 0 | AV111: 0 | AW111: 0 | AX111: 0 | AY111: 0 | AZ111: - | BA111: FINALIZADO | BB111: 1 | BC111: 0.9999931922 | BD111: -
B112: 114 | C112: 1. ESTADO NACIONAL | D112: 09. EXPANSIÓN DE LA RED DE AGUA POTABLE Y SANEAMIENTO DE CLOACAS | E112: - | F112: - | G112: - | H112: EXPANSIÓN DE REDES | I112: SISTEMA AGUA LANÚS | J112: PLAN YSA A + T DR. SUR LANUS | K112: 2 | L112: 91. OBLIGACIONES DEL TESORO | M112: 356 | N112: AYSA | O112: 95. ASISTENCIA FINANCIERA A EMPRESAS PÚBLICAS Y ENTE BINACIONAL | P112: 5 | Q112: N848419 | R112: 5 | S112: - | T112: 11 | U112: 5 | V112: 5 | W112: 7 | X112: 753 | Y112: 3 | Z112: 8 | AA112: 96 | AB112: 2 | AC112: SIN P3 | AD112: - | AE112: LANÚS | AF112: LANÚS | AG112: CEIBO, SIAM, MONTE CHINGOLO / VILLA SAPITO, VILLA PORÁ, DON SEGUNDO SOMBRA-PAMPA, CALLE BALBÍN | AH112: 2008-05-30 | AI112: 2011-02-15 | AJ112: 996636.63 | AK112: 0 | AL112: 1364102.613 | AM112: 2360739.243 | AN112: 2313321.996 | AO112: 29500.6927 | AP112: 10584.3903 | AQ112: 7332.1644 | AR112: 0 | AS112: 0 | AT112: 0 | AU112: 0 | AV112: 0 | AW112: 0 | AX112: 0 | AY112: 0 | AZ112: - | BA112: FINALIZADO | BB112: 1 | BC112: 1 | BD112: -
B113: 115 | C113: 1. ESTADO NACIONAL | D113: 09. EXPANSIÓN DE LA RED DE AGUA POTABLE Y SANEAMIENTO DE CLOACAS | E113: - | F113: - | G113: - | H113: EXPANSIÓN DE REDES | I113: SISTEMA AGUA LANÚS | J113: PLAN AYSA A + T D.R. SUR - LANÚS | K113: 2 | L113: 91. OBLIGACIONES DEL TESORO | M113: 356 | N113: AYSA | O113: 95. ASISTENCIA FINANCIERA A EMPRESAS PÚBLICAS Y ENTE BINACIONAL | P113: 5 | Q113: N948419 | R113: 5 | S113: - | T113: 11 | U113: 5 | V113: 5 | W113: 7 | X113: 753 | Y113: 3 | Z113: 8 | AA113: 96 | AB113: 2 | AC113: SIN P3 | AD113: - | AE113: LANÚS | AF113: LANÚS | AG113: PUENTE ALSINA+AMP. VILLA ILAZA | AH113: 2009-10-19 | AI113: 2011-02-15 | AJ113: 896690.2 | AK113: 662644.37 | AL113: -543721.5007 | AM113: 1015613.069 | AN113: 45172.4218 | AO113: 334507.6959 | AP113: 621601.5611 | AQ113: 20490.2905 | AR113: 0 | AS113: 0 | AT113: -6050 | AU113: -108.9 | AV113: 0 | AW113: 0 | AX113: 0 | AY113: 0 | AZ113: - | BA113: FINALIZADO | BB113: 1 | BC113: 0.9998927856 | BD113: -
B114: 116 | C114: 1. ESTADO NACIONAL | D114: 09. EXPANSIÓN DE LA RED DE AGUA POTABLE Y SANEAMIENTO DE CLOACAS | E114: - | F114: - | G114: - | H114: EXPANSIÓN DE REDES | I114: SISTEMA AGUA AVELLANEDA | J114: PLAN AYSA A + T D.R.SUR - AVELLANEDA | K114: 2 | L114: 91. OBLIGACIONES DEL TESORO | M114: 356 | N114: AYSA | O114: 95. ASISTENCIA FINANCIERA A EMPRESAS PÚBLICAS Y ENTE BINACIONAL | P114: 5 | Q114: N948418 | R114: 5 | S114: - | T114: 11 | U114: 5 | V114: 5 | W114: 7 | X114: 753 | Y114: 3 | Z114: 8 | AA114: 96 | AB114: 2 | AC114: SIN P3 | AD114: - | AE114: AVELLANEDA | AF114: AVELLANEDA | AG114: 7 DE SEPTIEMBRE - MARTIN GARCIA - DANUBIO AZUL / ESPERANZA / VILLA CORINA ETAPA 1 / VILLA CORINA ETAPA 2 | AH114: 2009-10-23 | AI114: 2010-06-20 | AJ114: 2589828.19 | AK114: 1749108.29 | AL114: -1212024.68 | AM114: 3126911.8 | AN114: 872138.0624 | AO114: 1364122.17 | AP114: 794917.279 | AQ114: 30374.1091 | AR114: 19685.7804 | AS114: 45747 | AT114: -72.6 | AU114: 0 | AV114: 0 | AW114: 0 | AX114: 0 | AY114: 0 | AZ114: - | BA114: FINALIZADO | BB114: 1 | BC114: 1 | BD114: -
B115: 117 | C115: 1. ESTADO NACIONAL | D115: 09. EXPANSIÓN DE LA RED DE AGUA POTABLE Y SANEAMIENTO DE CLOACAS | E115: - | F115: - | G115: - | H115: EXPANSIÓN DE REDES | I115: SISTEMA AGUA LA MATANZA | J115: PLAN AYSA A + T DR. OESTE - LA MATANZA | K115: 2 | L115: 91. OBLIGACIONES DEL TESORO | M115: 356 | N115: AYSA | O115: 95. ASISTENCIA FINANCIERA A EMPRESAS PÚBLICAS Y ENTE BINACIONAL | P115: 5 | Q115: N948408 | R115: 5 | S115: - | T115: 11 | U115: 5 | V115: 5 | W115: 7 | X115: 753 | Y115: 3 | Z115: 8 | AA115: 96 | AB115: 2 | AC115: SIN P3 | AD115: - | AE115: LA MATANZA | AF115: LA MATANZA | AG115: LA ISLA M1 / LAS ISLA M2 / SAN IGNACIO M3 / SAN IGNACIO M4 / ORO VERDE M4 / ORO VERDE M5 | AH115: 2009-03-13 | AI115: 2010-11-15 | AJ115: 22937523.13 | AK115: 261006.28 | AL115: 2032493.681 | AM115: 25231023.09 | AN115: 15383683.15 | AO115: 8666841.622 | AP115: 101207.5199 | AQ115: 41294.5519 | AR115: 364729.2836 | AS115: 4053.5 | AT115: 669213.4658 | AU115: 0 | AV115: 0 | AW115: 0 | AX115: 0 | AY115: 0 | AZ115: - | BA115: FINALIZADO | BB115: 1 | BC115: 0.9999814171 | BD115: -
B116: 118 | C116: 1. ESTADO NACIONAL | D116: 09. EXPANSIÓN DE LA RED DE AGUA POTABLE Y SANEAMIENTO DE CLOACAS | E116: - | F116: - | G116: - | H116: EXPANSIÓN DE REDES DE AGUA | I116: REDES DE AGUA LA MATANZA | J116: PLAN YSA A + T DR. OESTE LA MATANZA | K116: 2 | L116: 91. OBLIGACIONES DEL TESORO | M116: 356 | N116: AYSA | O116: 95. ASISTENCIA FINANCIERA A EMPRESAS PÚBLICAS Y ENTE BINACIONAL | P116: 5 | Q116: N848408 | R116: 77 | S116: - | T116: 22 Y RECURSOS PROPIOS | U116: 5 | V116: 5 | W116: 7 | X116: 753 | Y116: 3 | Z116: 8 | AA116: 2 | AB116: 2 | AC116: SIN P3 | AD116: - | AE116: LA MATANZA | AF116: LA MATANZA | AG116: A LUSITANO, A EL FORTÍN M4, CANILLAS COMUNITARIAS V. CELINA, FALTANTE LASALLE M2 Y SAN ENRIQUE M3 / AMPLIACION EL TALA M1 / CASTILLO CENTRO M3 / CRISTIANIA M6/ CRISTIANIA M7 / EL PORVENIR M2 / EL TAMBO M1 / EL TAMBO M2 / EMILIOZZI M3 / EMILIOZZI M4 / LA ABADIA M3 / LOS CEDROS 1 M1 A M7 / MI ESPERANZA M5 / PARQUE SARMIENTO M3 / SAN MARTIN M2 Y M3 / SAN ROQUE M3 / AMERICA M3 / LA ISLA M1 / MI ESPERANZA M11 - DORREGO M7 / ORO VERDE M4 / LUJAN M4 /GIARDINO M2 / DOREGO M6 / LOS CEDROS 2 M1 A M8 / SAN IGNACIO M3 Y M4 / CRISTIANIA M8 Y M9 / LOS CEDROS B M1 A M3 / A LA LOMA M3, A LAS NIEVES M3, A SANTA CLARA M2, INTERCONEXIÓN CISTERNA B° MUNICIPAL, 22 DE ENERO | AH116: 2008-08-22 | AI116: 2009-08-10 | AJ116: 11471411.87 | AK116: 47032.7 | AL116: 9836568.352 | AM116: 21355012.92 | AN116: 21562136.94 | AO116: 363380.3827 | AP116: 29441.3207 | AQ116: 5189.2907 | AR116: 54152.5941 | AS116: 0 | AT116: 672793.8558 | AU116: -16210.0796 | AV116: 21048.192 | AW116: 1132.8625 | AX116: 9801 | AY116: 0 | AZ116: X | BA116: FINALIZADO | BB116: 1 | BC116: 1.000171632 | BD116: EN 2018 SE MODIFICA EL CÓDIGO DE ACTIVIDAD DE LA APERTURA PROGRAMÁTICA DE 5 A 77, UG DE 96 A 2 Y FF DE 11 A 22. EL PROYECTO TAMBIÉN SERÁ FINANCIADO CON RECURSOS PROPIOS DE AYSA
B117: 120 | C117: 1. ESTADO NACIONAL | D117: 09. EXPANSIÓN DE LA RED DE AGUA POTABLE Y SANEAMIENTO DE CLOACAS | E117: - | F117: - | G117: - | H117: EXPANSIÓN DE REDES | I117: - | J117: PLAN YSA A + T DR. OESTE MORON | K117: 2 | L117: 91. OBLIGACIONES DEL TESORO | M117: 356 | N117: AYSA | O117: 95. ASISTENCIA FINANCIERA A EMPRESAS PÚBLICAS Y ENTE BINACIONAL | P117: 5 | Q117: N848411 | R117: 5 | S117: - | T117: 11 | U117: 5 | V117: 5 | W117: 7 | X117: 753 | Y117: 3 | Z117: 8 | AA117: 96 | AB117: 2 | AC117: SIN P3 | AD117: - | AE117: MORÓN | AF117: MORÓN | AG117: MANZANAR M1 | AH117: 2007-10-04 | AI117: 2008-09-28 | AJ117: 1516150.21 | AK117: 0 | AL117: 106385.5397 | AM117: 1622535.75 | AN117: 1565319.032 | AO117: 57216.7182 | AP117: 0 | AQ117: 0 | AR117: 0 | AS117: 0 | AT117: 0 | AU117: 0 | AV117: 0 | AW117: 0 | AX117: 0 | AY117: 0 | AZ117: - | BA117: FINALIZADO | BB117: 1 | BC117: 1 | BD117: -
B118: 121 | C118: 1. ESTADO NACIONAL | D118: 09. EXPANSIÓN DE LA RED DE AGUA POTABLE Y SANEAMIENTO DE CLOACAS | E118: - | F118: - | G118: - | H118: EXPANSIÓN DE REDES | I118: SISTEMA AGUA ESTEBAN ECHEVERRÍA | J118: PLAN YSA A + T DR. SUR ESTEBAN ECHEVERRIA | K118: 2 | L118: 91. OBLIGACIONES DEL TESORO | M118: 356 | N118: AYSA | O118: 95. ASISTENCIA FINANCIERA A EMPRESAS PÚBLICAS Y ENTE BINACIONAL | P118: 5 | Q118: N848413 | R118: 5 | S118: - | T118: 11 | U118: 5 | V118: 5 | W118: 7 | X118: 753 | Y118: 3 | Z118: 8 | AA118: 96 | AB118: 2 | AC118: SIN P3 | AD118: - | AE118: ESTEBAN ECHEVERRÍA | AF118: ESTEBAN ECHEVERRÍA | AG118: BAFICO ETAPA 3 MODULO 7 | AH118: 2008-10-02 | AI118: 2009-09-27 | AJ118: 892026.08 | AK118: 241810.69 | AL118: 440159.2701 | AM118: 1573996.04 | AN118: 1364004.012 | AO118: 190792.1469 | AP118: 19199.8807 | AQ118: 0 | AR118: 0 | AS118: 0 | AT118: 0 | AU118: 0 | AV118: 0 | AW118: 0 | AX118: 0 | AY118: 0 | AZ118: - | BA118: FINALIZADO | BB118: 1 | BC118: 1 | BD118: -
B119: 122 | C119: 1. ESTADO NACIONAL | D119: 09. EXPANSIÓN DE LA RED DE AGUA POTABLE Y SANEAMIENTO DE CLOACAS | E119: - | F119: - | G119: - | H119: EXPANSIÓN DE REDES | I119: SISTEMA AGUA ALMIRANTE BROWN | J119: PLAN YSA A + T DR. SUR ALMIRANTE BROWN | K119: 2 | L119: 91. OBLIGACIONES DEL TESORO | M119: 356 | N119: AYSA | O119: 95. ASISTENCIA FINANCIERA A EMPRESAS PÚBLICAS Y ENTE BINACIONAL | P119: 5 | Q119: N848414 | R119: 5 | S119: - | T119: 11 | U119: 5 | V119: 5 | W119: 7 | X119: 753 | Y119: 3 | Z119: 8 | AA119: 96 | AB119: 2 | AC119: SIN P3 | AD119: - | AE119: ALMIRANTE BROWN | AF119: ALMIRANTE BROWN | AG119: LINDO - ONA | AH119: 2008-09-22 | AI119: 2010-02-17 | AJ119: 4401097.35 | AK119: 0 | AL119: 3174374.898 | AM119: 7575472.248 | AN119: 7352532.872 | AO119: 217684.9505 | AP119: 0 | AQ119: 5254.425 | AR119: 0 | AS119: 0 | AT119: 0 | AU119: 0 | AV119: 0 | AW119: 0 | AX119: 0 | AY119: 0 | AZ119: - | BA119: FINALIZADO | BB119: 1 | BC119: 1 | BD119: -
B120: 123 | C120: 1. ESTADO NACIONAL | D120: 09. EXPANSIÓN DE LA RED DE AGUA POTABLE Y SANEAMIENTO DE CLOACAS | E120: - | F120: - | G120: - | H120: EXPANSIÓN DE REDES | I120: SISTEMA AGUA LOMAS DE ZAMORA | J120: PLAN YSA A + T DR. SUR LOMAS DE ZAMORA | K120: 2 | L120: 91. OBLIGACIONES DEL TESORO | M120: 356 | N120: AYSA | O120: 95. ASISTENCIA FINANCIERA A EMPRESAS PÚBLICAS Y ENTE BINACIONAL | P120: 5 | Q120: N848415 | R120: 5 | S120: - | T120: 11 | U120: 5 | V120: 5 | W120: 7 | X120: 753 | Y120: 3 | Z120: 8 | AA120: 96 | AB120: 2 | AC120: SIN P3 | AD120: - | AE120: LOMAS DE ZAMORA | AF120: LOMAS DE ZAMORA | AG120: VILLA ALBERTINA 1A M12 / VILLA ALBERTINA 1A M14 / VILLA ALBERTINA 1A M16 / VILLA ALBERTINA 1A M17 | AH120: 2008-10-02 | AI120: 2009-05-26 | AJ120: 3002078.48 | AK120: 4433530.02 | AL120: 4139584.024 | AM120: 11575192.52 | AN120: 11529069.23 | AO120: 27460.2859 | AP120: 2603.8474 | AQ120: 16379.19 | AR120: 0 | AS120: 0 | AT120: 0 | AU120: -320.0329 | AV120: 0 | AW120: 0 | AX120: 0 | AY120: 0 | AZ120: - | BA120: FINALIZADO | BB120: 1 | BC120: 0.9999723526 | BD120: -
B121: 124 | C121: 1. ESTADO NACIONAL | D121: 09. EXPANSIÓN DE LA RED DE AGUA POTABLE Y SANEAMIENTO DE CLOACAS | E121: - | F121: - | G121: - | H121: EXPANSIÓN DE REDES | I121: SISTEMA AGUA EZEIZA | J121: PLAN YSA A + T DR. SUR EZEIZA | K121: 2 | L121: 91. OBLIGACIONES DEL TESORO | M121: 356 | N121: AYSA | O121: 95. ASISTENCIA FINANCIERA A EMPRESAS PÚBLICAS Y ENTE BINACIONAL | P121: 5 | Q121: N848416 | R121: 5 | S121: - | T121: 11 | U121: 5 | V121: 5 | W121: 7 | X121: 753 | Y121: 3 | Z121: 8 | AA121: 96 | AB121: 2 | AC121: SIN P3 | AD121: - | AE121: EZEIZA | AF121: EZEIZA | AG121: SOL DE ORO M1 A M2 | AH121: 2008-04-07 | AI121: 2009-01-13 | AJ121: 1037135.44 | AK121: 0 | AL121: 257274.1192 | AM121: 1294409.559 | AN121: 1294409.559 | AO121: 0 | AP121: 0 | AQ121: 0 | AR121: 0 | AS121: 0 | AT121: 0 | AU121: 0 | AV121: 0 | AW121: 0 | AX121: 0 | AY121: 0 | AZ121: - | BA121: FINALIZADO | BB121: 1 | BC121: 1 | BD121: -
B122: 125 | C122: 1. ESTADO NACIONAL | D122: 09. EXPANSIÓN DE LA RED DE AGUA POTABLE Y SANEAMIENTO DE CLOACAS | E122: - | F122: - | G122: - | H122: EXPANSIÓN DE REDES | I122: SISTEMA AGUA AVELLANEDA | J122: PLAN YSA A + T DR. SUR AVELLANEDA | K122: 2 | L122: 91. OBLIGACIONES DEL TESORO | M122: 356 | N122: AYSA | O122: 95. ASISTENCIA FINANCIERA A EMPRESAS PÚBLICAS Y ENTE BINACIONAL | P122: 5 | Q122: N848418 | R122: 5 | S122: - | T122: 11 | U122: 5 | V122: 5 | W122: 7 | X122: 753 | Y122: 3 | Z122: 8 | AA122: 96 | AB122: 2 | AC122: SIN P3 | AD122: - | AE122: AVELLANEDA | AF122: AVELLANEDA | AG122: 7 DE ENERO / HONOR Y DIGNIDAD | AH122: 2007-12-17 | AI122: 2009-05-20 | AJ122: 587580.57 | AK122: 0 | AL122: 365905.8511 | AM122: 953486.4211 | AN122: 953486.4211 | AO122: 0 | AP122: 0 | AQ122: 0 | AR122: 0 | AS122: 0 | AT122: 0 | AU122: 0 | AV122: 0 | AW122: 0 | AX122: 0 | AY122: 0 | AZ122: - | BA122: FINALIZADO | BB122: 1 | BC122: 1 | BD122: -
B123: 126 | C123: 1. ESTADO NACIONAL | D123: 09. EXPANSIÓN DE LA RED DE AGUA POTABLE Y SANEAMIENTO DE CLOACAS | E123: - | F123: - | G123: - | H123: EXPANSIÓN DE REDES | I123: SISTEMA AGUA EZEIZA | J123: PLAN AYSA A + T D.R. SUR - EZEIZA | K123: 2 | L123: 91. OBLIGACIONES DEL TESORO | M123: 356 | N123: AYSA | O123: 95. ASISTENCIA FINANCIERA A EMPRESAS PÚBLICAS Y ENTE BINACIONAL | P123: 5 | Q123: N948416 | R123: 5 | S123: - | T123: 11 | U123: 5 | V123: 5 | W123: 7 | X123: 753 | Y123: 3 | Z123: 8 | AA123: 96 | AB123: 2 | AC123: SIN P3 | AD123: - | AE123: EZEIZA | AF123: EZEIZA | AG123: SOL DE ORO M3 / SOL DE ORO M4 | AH123: 2009-05-16 | AI123: 2010-12-01 | AJ123: 3287126.54 | AK123: 0 | AL123: -1178537.946 | AM123: 2108588.594 | AN123: 1334207.071 | AO123: 713496.3558 | AP123: 60885.1672 | AQ123: 0 | AR123: 0 | AS123: 0 | AT123: 0 | AU123: 0 | AV123: 0 | AW123: 0 | AX123: 0 | AY123: 0 | AZ123: - | BA123: FINALIZADO | BB123: 1 | BC123: 1 | BD123: -
B124: 127 | C124: 1. ESTADO NACIONAL | D124: 09. EXPANSIÓN DE LA RED DE AGUA POTABLE Y SANEAMIENTO DE CLOACAS | E124: - | F124: - | G124: - | H124: EXPANSIÓN DE REDES | I124: SISTEMA AGUA ALMIRANTE BROWN | J124: CONVENIO AYSA RED PRIMARIA ALMIRANTE BROWN | K124: 2 | L124: 91. OBLIGACIONES DEL TESORO | M124: 356 | N124: AYSA | O124: 95. ASISTENCIA FINANCIERA A EMPRESAS PÚBLICAS Y ENTE BINACIONAL | P124: 5 | Q124: N948502 | R124: 5 | S124: - | T124: 11 | U124: 5 | V124: 5 | W124: 7 | X124: 753 | Y124: 3 | Z124: 8 | AA124: 96 | AB124: 2 | AC124: SIN P3 | AD124: - | AE124: ALMIRANTE BROWN | AF124: ALMIRANTE BROWN | AG124: CAÑERIA DE ABASTECIMIENTO LA CUMBRE - EL HORNERO - ALMAFUERTE | AH124: 2009-04-23 | AI124: 2009-11-20 | AJ124: 1907850 | AK124: 0 | AL124: 25125 | AM124: 1932975 | AN124: 776254.4927 | AO124: 1048339.208 | AP124: 108453.9698 | AQ124: 0 | AR124: 0 | AS124: 0 | AT124: -72.6 | AU124: 0 | AV124: 0 | AW124: 0 | AX124: 0 | AY124: 0 | AZ124: - | BA124: FINALIZADO | BB124: 1.000000037 | BC124: 1.000000037 | BD124: -
B125: 129 | C125: 1. ESTADO NACIONAL | D125: 09. EXPANSIÓN DE LA RED DE AGUA POTABLE Y SANEAMIENTO DE CLOACAS | E125: - | F125: - | G125: - | H125: EXPANSIÓN DE REDES | I125: SISTEMA AGUA LOMAS DE ZAMORA | J125: OBRAS PRIMARIAS L. DE ZAMORA-B° STA. CATALINA 2 SA626 | K125: 2 | L125: 91. OBLIGACIONES DEL TESORO | M125: 356 | N125: AYSA | O125: 95. ASISTENCIA FINANCIERA A EMPRESAS PÚBLICAS Y ENTE BINACIONAL | P125: 5 | Q125: N948525 | R125: 5 | S125: - | T125: 11 | U125: 5 | V125: 5 | W125: 7 | X125: 753 | Y125: 3 | Z125: 8 | AA125: 96 | AB125: 2 | AC125: SA626 | AD125: - | AE125: LOMAS DE ZAMORA | AF125: VILLA ALBERTINA | AG125: LA TRAZA DE LA CAÑERÍA ES LA SIGUIENTE: CALLE Nº 4 (ROSENDE), DIAGONAL Nº 60 Y CALLE Nº 2. | AH125: 2009-07-27 | AI125: 2009-10-25 | AJ125: 1506218.1 | AK125: 0 | AL125: 0 | AM125: 1506218.1 | AN125: 529096.7 | AO125: 977121.4035 | AP125: 0 | AQ125: 0 | AR125: 0 | AS125: 0 | AT125: 0 | AU125: 0 | AV125: 0 | AW125: 0 | AX125: 0 | AY125: 0 | AZ125: - | BA125: FINALIZADO | BB125: 1.000000002 | BC125: 1.000000002 | BD125: -
B126: 130 | C126: 1. ESTADO NACIONAL | D126: 09. EXPANSIÓN DE LA RED DE AGUA POTABLE Y SANEAMIENTO DE CLOACAS | E126: - | F126: - | G126: - | H126: EXPANSIÓN DE REDES | I126: SISTEMA AGUA LOMAS DE ZAMORA | J126: OBRAS PRIMARIAS L. DE ZAMORA-B° STA. CATALINA 1 SA625 | K126: 2 | L126: 91. OBLIGACIONES DEL TESORO | M126: 356 | N126: AYSA | O126: 95. ASISTENCIA FINANCIERA A EMPRESAS PÚBLICAS Y ENTE BINACIONAL | P126: 5 | Q126: N948535 | R126: 5 | S126: - | T126: 11 | U126: 5 | V126: 5 | W126: 7 | X126: 753 | Y126: 3 | Z126: 8 | AA126: 96 | AB126: 2 | AC126: SA625 | AD126: - | AE126: LOMAS DE ZAMORA | AF126: VILLA ALBERTINA | AG126: AV. BRIGADIER ROSAS, ENTRE EL ARROYO SANTA CATALINA Y CALLE N° 4. CALLE Nº 4 ENTRE AV. BRIGADIER ROSAS Y LA DIAGONAL N° 64 (AV. DE LA NORIA), POR DIAGONAL Nº 64 (AV. LA NORIA) ENTRE CALLE N° 4 Y CALLE N° 19 Y POR CALLE Nº 19 ENTRE DIAGONAL Nº 64 (AV. LA NORIA) Y AV. DR. GILBERTO ELIZALDE. | AH126: 2010-10-12 | AI126: 2011-01-10 | AJ126: 1187339.18 | AK126: 0 | AL126: 0 | AM126: 1187339.18 | AN126: 5123.6845 | AO126: 615862.9565 | AP126: 566352.5395 | AQ126: 0 | AR126: 0 | AS126: 0 | AT126: 0 | AU126: 0 | AV126: 0 | AW126: 0 | AX126: 0 | AY126: 0 | AZ126: - | BA126: FINALIZADO | BB126: 1 | BC126: 1 | BD126: -
B127: 131 | C127: 1. ESTADO NACIONAL | D127: 09. EXPANSIÓN DE LA RED DE AGUA POTABLE Y SANEAMIENTO DE CLOACAS | E127: - | F127: - | G127: - | H127: EXPANSIÓN DE REDES | I127: SISTEMA AGUA LOMAS DE ZAMORA | J127: OBRAS PRIMARIAS L. DE ZAMORA-B° BRIG. J.M. DE ROSAS SA496 | K127: 2 | L127: 91. OBLIGACIONES DEL TESORO | M127: 356 | N127: AYSA | O127: 95. ASISTENCIA FINANCIERA A EMPRESAS PÚBLICAS Y ENTE BINACIONAL | P127: 5 | Q127: N948545 | R127: 5 | S127: - | T127: 11 | U127: 5 | V127: 5 | W127: 7 | X127: 753 | Y127: 3 | Z127: 8 | AA127: 96 | AB127: 2 | AC127: SA496 | AD127: - | AE127: LOMAS DE ZAMORA | AF127: J. M. DE ROSAS | AG127: PEDRAZA ENTRE AV. BRIGADIER ROSAS Y AV. QUIROGA. | AH127: 2009-06-17 | AI127: 2009-09-15 | AJ127: 2501304.43 | AK127: 0 | AL127: 0 | AM127: 2501304.43 | AN127: 2501304.425 | AO127: 0 | AP127: 0 | AQ127: 0 | AR127: 0 | AS127: 0 | AT127: 0 | AU127: 0 | AV127: 0 | AW127: 0 | AX127: 0 | AY127: 0 | AZ127: - | BA127: FINALIZADO | BB127: 0.9999999982 | BC127: 0.9999999982 | BD127: -
B128: 132 | C128: 1. ESTADO NACIONAL | D128: 09. EXPANSIÓN DE LA RED DE AGUA POTABLE Y SANEAMIENTO DE CLOACAS | E128: - | F128: - | G128: - | H128: EXPANSIÓN DE REDES | I128: SISTEMA AGUA LOMAS DE ZAMORA | J128: OBRAS PRIMARIAS L. DE ZAMORA - ANTARTIDA ARG. SA494 | K128: 2 | L128: 91. OBLIGACIONES DEL TESORO | M128: 356 | N128: AYSA | O128: 95. ASISTENCIA FINANCIERA A EMPRESAS PÚBLICAS Y ENTE BINACIONAL | P128: 5 | Q128: N948555 | R128: 5 | S128: - | T128: 11 | U128: 5 | V128: 5 | W128: 7 | X128: 753 | Y128: 3 | Z128: 8 | AA128: 96 | AB128: 2 | AC128: SA494 | AD128: - | AE128: LOMAS DE ZAMORA | AF128: ANTÁRTIDA ARGENTINA | AG128: CALLE Nº 6 (LLOBERA) ENTRE AV. BRIGADIER ROSAS Y CALLE S/ NOMBRE. | AH128: 2009-06-18 | AI128: 2009-10-16 | AJ128: 655134.66 | AK128: 0 | AL128: 0 | AM128: 655134.66 | AN128: 549382.834 | AO128: 105751.822 | AP128: 0 | AQ128: 0 | AR128: 0 | AS128: 0 | AT128: 0 | AU128: 0 | AV128: 0 | AW128: 0 | AX128: 0 | AY128: 0 | AZ128: - | BA128: FINALIZADO | BB128: 0.9999999939 | BC128: 0.9999999939 | BD128: -
B129: 133 | C129: 1. ESTADO NACIONAL | D129: 09. EXPANSIÓN DE LA RED DE AGUA POTABLE Y SANEAMIENTO DE CLOACAS | E129: - | F129: - | G129: - | H129: EXPANSIÓN DE REDES | I129: SISTEMA AGUA LOMAS DE ZAMORA | J129: OBRAS PRIMARIAS L. DE ZAMORA - REFUERZO J.M. DE ROSAS SA473 | K129: 2 | L129: 91. OBLIGACIONES DEL TESORO | M129: 356 | N129: AYSA | O129: 95. ASISTENCIA FINANCIERA A EMPRESAS PÚBLICAS Y ENTE BINACIONAL | P129: 5 | Q129: N948565 | R129: 5 | S129: - | T129: 11 | U129: 5 | V129: 5 | W129: 7 | X129: 753 | Y129: 3 | Z129: 8 | AA129: 96 | AB129: 2 | AC129: SA473 | AD129: - | AE129: LOMAS DE ZAMORA | AF129: J. M. DE ROSAS | AG129: LA TRAZA DE LA OBRA SE DESARROLLA A PARTIR DE LA ESQUINA DE LAS CALLES ARANA GOIRI Y ESCOBAR; RECORRE ESTA ÚLTIMA, TUYUTÍ, AV. BRIGADIER ROSAS ENTRE LAS VÍAS DEL FERROCARRIL Y AV. 102, LUEGO DEL CRUCE DEL ARROYO SANTA CATALINA. | AH129: 2009-05-21 | AI129: 2009-08-19 | AJ129: 5870763.81 | AK129: 0 | AL129: 0 | AM129: 5870763.81 | AN129: 5520468.499 | AO129: 350295.3146 | AP129: 0 | AQ129: 0 | AR129: 0 | AS129: 0 | AT129: 0 | AU129: 0 | AV129: 0 | AW129: 0 | AX129: 0 | AY129: 0 | AZ129: - | BA129: FINALIZADO | BB129: 1.000000001 | BC129: 1.000000001 | BD129: -
B130: 134 | C130: 1. ESTADO NACIONAL | D130: 09. EXPANSIÓN DE LA RED DE AGUA POTABLE Y SANEAMIENTO DE CLOACAS | E130: - | F130: - | G130: - | H130: EXPANSIÓN DE REDES | I130: SISTEMA AGUA MORÓN | J130: PLAN AYSA A + T D.R. OESTE - MORÓN | K130: 2 | L130: 91. OBLIGACIONES DEL TESORO | M130: 356 | N130: AYSA | O130: 95. ASISTENCIA FINANCIERA A EMPRESAS PÚBLICAS Y ENTE BINACIONAL | P130: 5 | Q130: N948411 | R130: 5 | S130: - | T130: 11 | U130: 5 | V130: 5 | W130: 7 | X130: 753 | Y130: 3 | Z130: 8 | AA130: 96 | AB130: 2 | AC130: SIN P3 | AD130: - | AE130: MORÓN | AF130: MORÓN | AG130: SAN JUAN M1 | AH130: 2009-08-05 | AI130: 2011-10-27 | AJ130: 1333383.7 | AK130: 0 | AL130: -146384.2439 | AM130: 1186999.456 | AN130: 510214.6795 | AO130: 597131.0546 | AP130: 67161.5368 | AQ130: 12601.0852 | AR130: 0 | AS130: 0 | AT130: -108.9 | AU130: 0 | AV130: 0 | AW130: 0 | AX130: 0 | AY130: 0 | AZ130: - | BA130: FINALIZADO | BB130: 1 | BC130: 1 | BD130: -
B131: 135 | C131: 1. ESTADO NACIONAL | D131: 09. EXPANSIÓN DE LA RED DE AGUA POTABLE Y SANEAMIENTO DE CLOACAS | E131: - | F131: - | G131: - | H131: EXPANSIÓN DE REDES | I131: SISTEMA CLOACAS AVELLANEDA | J131: PLAN AYSA C+T D.R. SUR AVELLANERA | K131: 2 | L131: 91. OBLIGACIONES DEL TESORO | M131: 356 | N131: AYSA | O131: 95. ASISTENCIA FINANCIERA A EMPRESAS PÚBLICAS Y ENTE BINACIONAL | P131: 5 | Q131: N948618 | R131: 5 | S131: - | T131: 11 | U131: 5 | V131: 5 | W131: 7 | X131: 753 | Y131: 3 | Z131: 8 | AA131: 96 | AB131: 2 | AC131: SIN P3 | AD131: - | AE131: AVELLANEDA | AF131: AVELLANEDA | AG131: 7 DE SEPTIEMBRE - MARTIN GARCIA - DANUBIO AZUL / ESPERANZA / VILLA CORINA ETAPA 1 / VILLA CORINA ETAPA 2 | AH131: 2009-11-17 | AI131: 2013-02-20 | AJ131: 2833823.07 | AK131: 0 | AL131: 632747.3773 | AM131: 3466570.447 | AN131: 80598.8381 | AO131: 1817216.943 | AP131: 1464604.284 | AQ131: 236659.6923 | AR131: -133416.81 | AS131: 907.5 | AT131: 0 | AU131: 0 | AV131: 0 | AW131: 0 | AX131: 0 | AY131: 0 | AZ131: - | BA131: FINALIZADO | BB131: 1 | BC131: 1 | BD131: -
B132: 136 | C132: 1. ESTADO NACIONAL | D132: 09. EXPANSIÓN DE LA RED DE AGUA POTABLE Y SANEAMIENTO DE CLOACAS | E132: - | F132: - | G132: - | H132: EXPANSIÓN DE REDES | I132: SISTEMA CLOACAS LA MATANZA | J132: PLAN AYSA C + T D.R. OESTE - LA MATANZA | K132: 2 | L132: 91. OBLIGACIONES DEL TESORO | M132: 356 | N132: AYSA | O132: 95. ASISTENCIA FINANCIERA A EMPRESAS PÚBLICAS Y ENTE BINACIONAL | P132: 5 | Q132: N948608 | R132: 5 | S132: - | T132: 11 | U132: 5 | V132: 5 | W132: 7 | X132: 753 | Y132: 3 | Z132: 8 | AA132: 96 | AB132: 2 | AC132: SIN P3 | AD132: - | AE132: LA MATANZA | AF132: LA MATANZA | AG132: 22 DE ENERO M 2 / 22 DE ENERO M 3 / 22 DE ENERO M 4 | AH132: 2009-09-03 | AI132: 2014-07-24 | AJ132: 5904005.41 | AK132: 180852.6163 | AL132: -580.7962 | AM132: 6084277.23 | AN132: 1633085.857 | AO132: 4346051.407 | AP132: 73279.5018 | AQ132: 28629.7666 | AR132: 968 | AS132: 2843.5 | AT132: -580.8 | AU132: 0 | AV132: 0 | AW132: 0 | AX132: 0 | AY132: 0 | AZ132: - | BA132: FINALIZADO | BB132: 1 | BC132: 0.9999045506 | BD132: -
B133: 138 | C133: 1. ESTADO NACIONAL | D133: 09. EXPANSIÓN DE LA RED DE AGUA POTABLE Y SANEAMIENTO DE CLOACAS | E133: - | F133: - | G133: - | H133: GRANDES OBRAS DE INFRAESTRUCTURA CLOACALES | I133: SISTEMA CLOACAS BERAZATEGUI | J133: SIST. BERAZATEGUI PRIMERA ETAPA PLANTA DE PRETRATAMIENTO OBRA CIVIL Y ELECTROMECÁNICA | K133: 2 | L133: 91. OBLIGACIONES DEL TESORO | M133: 356 | N133: AYSA | O133: 95. ASISTENCIA FINANCIERA A EMPRESAS PÚBLICAS Y ENTE BINACIONAL | P133: 5 | Q133: A861602/03 | R133: 77 | S133: - | T133: 22 Y RECURSOS PROPIOS | U133: 5 | V133: 5 | W133: 7 | X133: 753 | Y133: 3 | Z133: 8 | AA133: 2 | AB133: 2 | AC133: SC497 | AD133: - | AE133: BERAZATEGUI | AF133: BERAZATEGUI | AG133: EL PREDIO SE ENCUENTRA AL NOROESTE DEL PARTIDO DE BERAZATEGUI, CERCANO AL LÍMITE CON EL PARTIDO DE QUILMES, ENTRE LA AUTOPISTA BUENOS AIRES-LA PLATA Y LA COSTA DEL RÍO DE LA PLATA. | AH133: 2009-01-05 | AI133: 2013-10-13 | AJ133: 323100666 | AK133: 382961607 | AL133: -37338947.6 | AM133: 668723325.4 | AN133: 97875162.54 | AO133: 111771771 | AP133: 93763688.6 | AQ133: 152958259 | AR133: 94842103.92 | AS133: 42177118.29 | AT133: 19186671.37 | AU133: 53633974.03 | AV133: 586180.2529 | AW133: 1914528.61 | AX133: 13867.7616 | AY133: 27830000 | AZ133: X | BA133: FINALIZADO | BB133: 1 | BC133: 1 | BD133: EN 2018 SE MODIFICA EL CÓDIGO DE ACTIVIDAD DE LA APERTURA PROGRAMÁTICA DE 5 A 77, UG DE 96 A 2 Y FF DE 11 A 22. EL PROYECTO TAMBIÉN SERÁ FINANCIADO CON RECURSOS PROPIOS DE AYSA. AÑOS ANTERIORES EL PROYECTO FUE FINANCIADO POR PRÉSTAMO ANSES Y FUENTE 1.1. EL MONTO VIGENTE INCLUYE EL VALOR DEL CONTRATO ORIGINAL, + REDETERM. CONOCIDAS + ADDENDAS FIRMADAS + REDETERM. ESTIMADAS.
B134: 139 | C134: 1. ESTADO NACIONAL | D134: 09. EXPANSIÓN DE LA RED DE AGUA POTABLE Y SANEAMIENTO DE CLOACAS | E134: - | F134: - | G134: - | H134: GRANDES OBRAS DE INFRAESTRUCTURA | I134: SISTEMA CLOACAS BERAZATEGUI | J134: SIST. BERAZATEGUI PRIMERA ETAPA PLANTA DE PRETRATAMIENTO OBRA CIVIL Y ELECTROMECÁNICA | K134: 2 | L134: 91. OBLIGACIONES DEL TESORO | M134: 356 | N134: AYSA | O134: 95. ASISTENCIA FINANCIERA A EMPRESAS PÚBLICAS Y ENTE BINACIONAL | P134: 5 | Q134: S961602/03 | R134: 5 | S134: - | T134: BNDES | U134: 5 | V134: 5 | W134: 7 | X134: 753 | Y134: 3 | Z134: 8 | AA134: 96 | AB134: 2 | AC134: SC497 | AD134: - | AE134: BERAZATEGUI | AF134: BERAZATEGUI | AG134: EL PREDIO SE ENCUENTRA AL NOROESTE DEL PARTIDO DE BERAZATEGUI, CERCANO AL LÍMITE CON EL PARTIDO DE QUILMES, ENTRE LA AUTOPISTA BUENOS AIRES-LA PLATA Y LA COSTA DEL RÍO DE LA PLATA. | AH134: 2009-01-05 | AI134: 2013-10-13 | AJ134: 158663728.2 | AK134: 121863575.7 | AL134: 11120393.84 | AM134: 291647697.8 | AN134: 21325304.82 | AO134: 22221880.81 | AP134: 120672285 | AQ134: 55638079.12 | AR134: 29530504.96 | AS134: 5300622.618 | AT134: 10841527.32 | AU134: -1620453.586 | AV134: 27737946.71 | AW134: -0.0484 | AX134: 0 | AY134: 0 | AZ134: - | BA134: FINALIZADO | BB134: 0.9999999998 | BC134: 1 | BD134: EL MONTO VIGENTE INCLUYE EL VALOR DEL CONTRATO ORIGINAL, + REDETERM. CONOCIDAS + ADDENDAS FIRMADAS + REDETERM. ESTIMADAS.
B135: 140 | C135: 1. ESTADO NACIONAL | D135: 04. ORDENAMIENTO TERRITORIAL | E135: - | F135: - | G135: - | H135: NUEVO CENTRO EDUCATIVO | I135: - | J135: ISFD Nº 82 | K135: 2 | L135: 56. MINISTERIO DE PLANIFICACIÓN FEDERAL, INVERSIÓN PÚBLICA Y SERVICIOS | M135: 354 | N135: UNIDAD COORDINADORA DE PROGRAMAS Y PROYECTOS CON FINANCIAMIENTO EXTERNO | O135: 89. ACCIONES PARA "MAS ESCUELAS, MEJOR EDUCACIÓN" (BID 1345 Y 1966/OC-2). | P135: - | Q135: - | R135: 77 | S135: 06-295 | T135: 22 | U135: 5 | V135: 8 | W135: 1 | X135: 3001 | Y135: 3 | Z135: 4 | AA135: 6 | AB135: 1 | AC135: - | AD135: BID/2424 | AE135: LA MATANZA | AF135: ISIDRO CASANOVA | AG135: AV. PROVINCIAS UNIDAS (RUTA NAC. 3) ENTRE CENTENARIO Y CHARRUA | AH135: 2014-01-13 | AI135: 2016-11-15 | AJ135: 9231114.81 | AK135: 9770271.72 | AL135: 0 | AM135: 19001386.53 | AN135: 0 | AO135: 0 | AP135: 0 | AQ135: 0 | AR135: 0 | AS135: 322198.39 | AT135: 6935697.12 | AU135: 0 | AV135: - | AW135: 0 | AX135: - | AY135: 0 | AZ135: - | BA135: EN EJECUCIÓN | BB135: 0.9422 | BC135: 0.991 | BD135: LA OBRA SE EJECUTARÁ A TRAVES DE LA ACTIVIDAD 78.
B136: 141 | C136: 1. ESTADO NACIONAL | D136: 05. EDUCACIÓN AMBIENTAL | E136: - | F136: - | G136: - | H136: NO CORRESPONDE INFORMAR | I136: NO CORRESPONDE INFORMAR | J136: JARDIN A/C Bº LIBERTAD | K136: 2 | L136: 30. MINISTERIO DEL INTERIOR, OBRAS PÚBLICAS Y VIVIENDA | M136: 325 | N136: UNIDAD COORDINADORA DE PROGRAMAS Y PROYECTOS CON FINANCIAMIENTO EXTERNO | O136: 89. ACCIONES PARA "MAS ESCUELAS, MEJOR EDUCACIÓN" (BID 1345 Y 1966/OC-2). | P136: - | Q136: - | R136: 77 | S136: 06-298 | T136: 22 | U136: 5 | V136: 8 | W136: 1 | X136: 3001 | Y136: 3 | Z136: 4 | AA136: 6 | AB136: 1 | AC136: - | AD136: BID/2940 | AE136: MERLO | AF136: LIBERTAD | AG136: CALLE MALVINAS Y CARLOS A. JUAN MERLO | AH136: 2016-08-01 | AI136: 2017-08-01 | AJ136: 6195114.04 | AK136: 1806476.64 | AL136: 0 | AM136: 8001590.68 | AN136: 0 | AO136: 0 | AP136: 0 | AQ136: 0 | AR136: 0 | AS136: 0 | AT136: 0 | AU136: 0 | AV136: 4028537 | AW136: 0 | AX136: - | AY136: - | AZ136: - | BA136: EN EJECUCIÓN | BB136: 0.1202 | BC136: 0.9712 | BD136: LA OBRA SE EJECUTARÁ A TRAVES DEL PROGRAMA 87, ACTIVIDAD 84.
B137: 142 | C137: 1. ESTADO NACIONAL | D137: 04. ORDENAMIENTO TERRITORIAL | E137: - | F137: - | G137: - | H137: NUEVO CENTRO EDUCATIVO | I137: - | J137: ESCUELA PRIMARIA A/C Bº JAURETCHE | K137: 2 | L137: 56. MINISTERIO DE PLANIFICACIÓN FEDERAL, INVERSIÓN PÚBLICA Y SERVICIOS | M137: 354 | N137: UNIDAD COORDINADORA DE PROGRAMAS Y PROYECTOS CON FINANCIAMIENTO EXTERNO | O137: 89. ACCIONES PARA "MAS ESCUELAS, MEJOR EDUCACIÓN" (BID 1345 Y 1966/OC-2). | P137: - | Q137: - | R137: 77 | S137: 06-300 | T137: 22 | U137: 5 | V137: 8 | W137: 1 | X137: 3001 | Y137: 3 | Z137: 4 | AA137: 6 | AB137: 1 | AC137: - | AD137: BID/2424 | AE137: LA MATANZA | AF137: VIRREY DEL PINO | AG137: CALLE ISRAEL ESQUINA DIEGO DE VILLAROEL | AH137: 2013-09-01 | AI137: 2016-06-01 | AJ137: 4965576.1 | AK137: 1731191.37 | AL137: 0 | AM137: 6696767.47 | AN137: 0 | AO137: 0 | AP137: 0 | AQ137: 0 | AR137: 900775.87 | AS137: 4554723 | AT137: 349990.15 | AU137: 0 | AV137: - | AW137: 0 | AX137: - | AY137: 0 | AZ137: - | BA137: TERMINADA | BB137: 1 | BC137: 1 | BD137: LA OBRA SE EJECUTARÁ A TRAVES DE LA ACTIVIDAD 78.
B138: 143 | C138: 1. ESTADO NACIONAL | D138: 04. ORDENAMIENTO TERRITORIAL | E138: - | F138: - | G138: - | H138: NUEVO CENTRO EDUCATIVO | I138: - | J138: ESCUELA PRIMARIA A/C Bº RODOLFO WALSH | K138: 2 | L138: 56. MINISTERIO DE PLANIFICACIÓN FEDERAL, INVERSIÓN PÚBLICA Y SERVICIOS | M138: 354 | N138: UNIDAD COORDINADORA DE PROGRAMAS Y PROYECTOS CON FINANCIAMIENTO EXTERNO | O138: 89. ACCIONES PARA "MAS ESCUELAS, MEJOR EDUCACIÓN" (BID 1345 Y 1966/OC-2). | P138: - | Q138: - | R138: 77 | S138: 06-301 | T138: 22 | U138: 5 | V138: 8 | W138: 1 | X138: 3001 | Y138: 3 | Z138: 4 | AA138: 6 | AB138: 1 | AC138: - | AD138: BID/2424 | AE138: LA MATANZA | AF138: GONZÁLEZ CATAN | AG138: SAN MARTIN ESQUINA AV. INT. FEDERICO | AH138: 2013-09-01 | AI138: 2016-03-01 | AJ138: 4834047.47 | AK138: 2180465.65 | AL138: 0 | AM138: 7014513.12 | AN138: 0 | AO138: 0 | AP138: 0 | AQ138: 0 | AR138: 427187.11 | AS138: 4312695.08 | AT138: 1894484.23 | AU138: 0 | AV138: - | AW138: 0 | AX138: - | AY138: 0 | AZ138: - | BA138: TERMINADA | BB138: 1 | BC138: 1 | BD138: LA OBRA SE EJECUTARÁ A TRAVES DE LA ACTIVIDAD 78.
B139: 144 | C139: 1. ESTADO NACIONAL | D139: 04. ORDENAMIENTO TERRITORIAL | E139: - | F139: - | G139: - | H139: NUEVO CENTRO EDUCATIVO | I139: - | J139: JI A/C LA MATANZA RAFAEL CASTILLO | K139: 2 | L139: 56. MINISTERIO DE PLANIFICACIÓN FEDERAL, INVERSIÓN PÚBLICA Y SERVICIOS | M139: 354 | N139: UNIDAD COORDINADORA DE PROGRAMAS Y PROYECTOS CON FINANCIAMIENTO EXTERNO | O139: 89. ACCIONES PARA "MAS ESCUELAS, MEJOR EDUCACIÓN" (BID 1345 Y 1966/OC-2). | P139: - | Q139: - | R139: 77 | S139: 06-192 | T139: 11 | U139: 5 | V139: 8 | W139: 1 | X139: 3001 | Y139: 3 | Z139: 4 | AA139: 6 | AB139: 1 | AC139: - | AD139: BID/1966 | AE139: LA MATANZA | AF139: RAFAEL CASTILLO | AG139: MENDEZ DE ANDES ENTRE ANDALGALÁ Y CONS | AH139: 2010-03-04 | AI139: 2012-03-07 | AJ139: 85113.45 | AK139: 0 | AL139: 0 | AM139: 85113.45 | AN139: 0 | AO139: 0 | AP139: 0 | AQ139: 85113.45 | AR139: 0 | AS139: 0 | AT139: 0 | AU139: 0 | AV139: - | AW139: 0 | AX139: - | AY139: 0 | AZ139: - | BA139: TERMINADA | BB139: 1 | BC139: 1 | BD139: 0
B140: 145 | C140: 1. ESTADO NACIONAL | D140: 04. ORDENAMIENTO TERRITORIAL | E140: - | F140: - | G140: - | H140: NUEVO CENTRO EDUCATIVO | I140: - | J140: JARDÍN A/C LINDERO A EP Nº 121 | K140: 2 | L140: 56. MINISTERIO DE PLANIFICACIÓN FEDERAL, INVERSIÓN PÚBLICA Y SERVICIOS | M140: 354 | N140: UNIDAD COORDINADORA DE PROGRAMAS Y PROYECTOS CON FINANCIAMIENTO EXTERNO | O140: 89. ACCIONES PARA "MAS ESCUELAS, MEJOR EDUCACIÓN" (BID 1345 Y 1966/OC-2). | P140: - | Q140: - | R140: 77 | S140: 06-224 | T140: 11 | U140: 5 | V140: 8 | W140: 1 | X140: 3001 | Y140: 3 | Z140: 4 | AA140: 6 | AB140: 1 | AC140: - | AD140: BID/1966 | AE140: LA MATANZA | AF140: GONZÁLEZ CATAN | AG140: PAREJA ENTRE MATIENZO Y CATAÑO | AH140: 2011-06-16 | AI140: 2014-10-22 | AJ140: 766398.692 | AK140: 333055.88 | AL140: 0 | AM140: 1099454.572 | AN140: 0 | AO140: 0 | AP140: 0 | AQ140: 211242.3 | AR140: 113884.37 | AS140: 627934.76 | AT140: 146393.14 | AU140: 0 | AV140: - | AW140: 0 | AX140: - | AY140: 0 | AZ140: - | BA140: TERMINADA | BB140: 1 | BC140: 1 | BD140: 0
B141: 146 | C141: 1. ESTADO NACIONAL | D141: 04. ORDENAMIENTO TERRITORIAL | E141: - | F141: - | G141: - | H141: NUEVO CENTRO EDUCATIVO | I141: - | J141: TRABAJOS DE RECONSTRUCCIÓN DE ESCUELAS, VIVIENDAS, MUROS Y OTROS | K141: 2 | L141: 56. MINISTERIO DE PLANIFICACIÓN FEDERAL, INVERSIÓN PÚBLICA Y SERVICIOS | M141: 354 | N141: SUBSECRETARÍA DE OBRAS PÚBLICAS | O141: 50. FORMULACIÓN, PROGRAMACIÓN, EJECUCIÓN Y CONTROL DE OBRAS PÚBLICAS | P141: - | Q141: - | R141: 77. ASISTENCIA FINANCIERA PARA OBRAS EN LA CUENCA MATANZA - RIACHUELO. | S141: - | T141: 11 | U141: 5 | V141: 8 | W141: 6 | X141: 9999 | Y141: 3 | Z141: 2 | AA141: 6 | AB141: 1 | AC141: - | AD141: - | AE141: LOMAS DE ZAMORA | AF141: - | AG141: - | AH141: 2012-05-01 | AI141: - | AJ141: 10000000 | AK141: 0 | AL141: 0 | AM141: 10000000 | AN141: 0 | AO141: 0 | AP141: 0 | AQ141: 6681917.59 | AR141: 0 | AS141: 0 | AT141: 0 | AU141: 0 | AV141: - | AW141: 0 | AX141: - | AY141: 0 | AZ141: - | BA141: EN EJECUCIÓN | BB141: 0 | BC141: 0.6682 | BD141: -
B142: 148 | C142: 1. ESTADO NACIONAL | D142: 09. EXPANSIÓN DE LA RED DE AGUA POTABLE Y SANEAMIENTO DE CLOACAS | E142: - | F142: - | G142: - | H142: EXPANSIÓN DE REDES | I142: - | J142: REPOTENCIACION ESTACION ELEVADORA TEMPERLEY - CISTERNA LLAVALLOL - | K142: 2 | L142: 30. MINISTERIO DEL INTERIOR, OBRAS PÚBLICAS Y VIVIENDA | M142: 613 | N142: ENTE NACIONAL DE OBRAS HÍDRICAS Y SANEAMIENTO | O142: 20. ASISTENCIA TÉCNICO 0 FINANCIERA Y DESARROLLO DE INFRAESTRUCTURA PARA EL SANEAMIENTO | P142: - | Q142: 0 | R142: 78 | S142: - | T142: 11 | U142: 5 | V142: 8 | W142: 6 | X142: 9999 | Y142: 3 | Z142: 8 | AA142: 6 | AB142: 1 | AC142: - | AD142: MUNICIPIO | AE142: LOMAS DE ZAMORA | AF142: LLAVALLOL | AG142: - | AH142: 2006-10-31 | AI142: - | AJ142: 22429999.83 | AK142: 15963836.85 | AL142: 1695554 | AM142: 40089390.68 | AN142: 13761605.29 | AO142: 15606211.21 | AP142: 3143008 | AQ142: 0 | AR142: 7087704.91 | AS142: 480117 | AT142: 0 | AU142: 0 | AV142: - | AW142: 0 | AX142: - | AY142: 0 | AZ142: - | BA142: - | BB142: 1 | BC142: 1 | BD142: -
B143: 149 | C143: 1. ESTADO NACIONAL | D143: 09. EXPANSIÓN DE LA RED DE AGUA POTABLE Y SANEAMIENTO DE CLOACAS | E143: - | F143: - | G143: - | H143: EXPANSIÓN DE REDES | I143: - | J143: RED DE DESAGUES CLOACALES - SECTOR CALZADA MARMOL II | K143: 2 | L143: 30. MINISTERIO DEL INTERIOR, OBRAS PÚBLICAS Y VIVIENDA | M143: 613 | N143: ENTE NACIONAL DE OBRAS HÍDRICAS Y SANEAMIENTO | O143: 20. ASISTENCIA TÉCNICO 0 FINANCIERA Y DESARROLLO DE INFRAESTRUCTURA PARA EL SANEAMIENTO | P143: - | Q143: 0 | R143: 79 | S143: - | T143: 11 | U143: 5 | V143: 8 | W143: 6 | X143: 9999 | Y143: 3 | Z143: 8 | AA143: 6 | AB143: 1 | AC143: - | AD143: MUNICIPIO | AE143: ALMIRANTE BROWN | AF143: ALMIRANTE BROWN | AG143: - | AH143: - | AI143: - | AJ143: 1712835.5 | AK143: 0 | AL143: 0 | AM143: 1712835.5 | AN143: 342567.1 | AO143: 1146191.28 | AP143: 224077 | AQ143: 0 | AR143: 0 | AS143: 0 | AT143: 0 | AU143: 0 | AV143: - | AW143: 0 | AX143: - | AY143: 0 | AZ143: - | BA143: - | BB143: 0.9999999299 | BC143: 0.9999999299 | BD143: -
B144: 150 | C144: 1. ESTADO NACIONAL | D144: 09. EXPANSIÓN DE LA RED DE AGUA POTABLE Y SANEAMIENTO DE CLOACAS | E144: - | F144: - | G144: - | H144: EXPANSIÓN DE REDES | I144: - | J144: RED DE DESAGUES CLOACALES - SECTOR BURZACO II | K144: 2 | L144: 30. MINISTERIO DEL INTERIOR, OBRAS PÚBLICAS Y VIVIENDA | M144: 613 | N144: ENTE NACIONAL DE OBRAS HÍDRICAS Y SANEAMIENTO | O144: 20. ASISTENCIA TÉCNICO 0 FINANCIERA Y DESARROLLO DE INFRAESTRUCTURA PARA EL SANEAMIENTO | P144: - | Q144: 0 | R144: 79 | S144: - | T144: 11 | U144: 5 | V144: 8 | W144: 6 | X144: 9999 | Y144: 3 | Z144: 8 | AA144: 6 | AB144: 1 | AC144: - | AD144: MUNICIPIO | AE144: ALMIRANTE BROWN | AF144: ALMIRANTE BROWN | AG144: - | AH144: - | AI144: - | AJ144: 1802316.56 | AK144: 0 | AL144: 0 | AM144: 1802316.56 | AN144: 360463.31 | AO144: 898543.95 | AP144: 429973 | AQ144: 0 | AR144: 0 | AS144: 0 | AT144: 0 | AU144: 0 | AV144: - | AW144: 0 | AX144: - | AY144: 0 | AZ144: - | BA144: - | BB144: 0.9371163188 | BC144: 0.9371163188 | BD144: -
B145: 151 | C145: 1. ESTADO NACIONAL | D145: 09. EXPANSIÓN DE LA RED DE AGUA POTABLE Y SANEAMIENTO DE CLOACAS | E145: - | F145: - | G145: - | H145: EXPANSIÓN DE REDES | I145: - | J145: RED DE DESAGUES CLOACALES - SECTOR BURZACO I | K145: 2 | L145: 30. MINISTERIO DEL INTERIOR, OBRAS PÚBLICAS Y VIVIENDA | M145: 613 | N145: ENTE NACIONAL DE OBRAS HÍDRICAS Y SANEAMIENTO | O145: 20. ASISTENCIA TÉCNICO 0 FINANCIERA Y DESARROLLO DE INFRAESTRUCTURA PARA EL SANEAMIENTO | P145: - | Q145: 0 | R145: 79 | S145: - | T145: 11 | U145: 5 | V145: 8 | W145: 6 | X145: 9999 | Y145: 3 | Z145: 8 | AA145: 6 | AB145: 1 | AC145: - | AD145: MUNICIPIO | AE145: ALMIRANTE BROWN | AF145: BURZACO | AG145: - | AH145: - | AI145: - | AJ145: 1804931.84 | AK145: 0 | AL145: 0 | AM145: 1804931.84 | AN145: 1255506.2 | AO145: 549425.54 | AP145: 0 | AQ145: 0 | AR145: 0 | AS145: 0 | AT145: 0 | AU145: 0 | AV145: - | AW145: 0 | AX145: - | AY145: 0 | AZ145: - | BA145: - | BB145: 0.9999999446 | BC145: 0.9999999446 | BD145: LA OBRA TUVO UNA ADDENDA EN NEGATIVO, POR ESO SE MODIFICO EL MONTO VIGENTE Y SE TERMINÓ LA OBRA.
B146: 152 | C146: 1. ESTADO NACIONAL | D146: 09. EXPANSIÓN DE LA RED DE AGUA POTABLE Y SANEAMIENTO DE CLOACAS | E146: - | F146: - | G146: - | H146: EXPANSIÓN DE REDES | I146: - | J146: RED DE AGUA POTABLE - Bº SANTA MARTA MOD 1 | K146: 2 | L146: 30. MINISTERIO DEL INTERIOR, OBRAS PÚBLICAS Y VIVIENDA | M146: 613 | N146: ENTE NACIONAL DE OBRAS HÍDRICAS Y SANEAMIENTO | O146: 20. ASISTENCIA TÉCNICO 0 FINANCIERA Y DESARROLLO DE INFRAESTRUCTURA PARA EL SANEAMIENTO | P146: - | Q146: 0 | R146: 77 | S146: - | T146: 11 | U146: 5 | V146: 8 | W146: 6 | X146: 9999 | Y146: 3 | Z146: 8 | AA146: 6 | AB146: 1 | AC146: - | AD146: MUNICIPIO | AE146: MERLO | AF146: MERLO | AG146: - | AH146: - | AI146: - | AJ146: 413609.43 | AK146: 0 | AL146: -36753.96 | AM146: 376855.47 | AN146: 98322.73 | AO146: 278532.34 | AP146: 0 | AQ146: 0 | AR146: 0 | AS146: 0 | AT146: 0 | AU146: 0 | AV146: - | AW146: 0 | AX146: - | AY146: 0 | AZ146: - | BA146: - | BB146: 1 | BC146: 1 | BD146: -
B147: 153 | C147: 1. ESTADO NACIONAL | D147: 09. EXPANSIÓN DE LA RED DE AGUA POTABLE Y SANEAMIENTO DE CLOACAS | E147: - | F147: - | G147: - | H147: EXPANSIÓN DE REDES | I147: - | J147: RED DE AGUA POTABLE | K147: 2 | L147: 30. MINISTERIO DEL INTERIOR, OBRAS PÚBLICAS Y VIVIENDA | M147: 613 | N147: ENTE NACIONAL DE OBRAS HÍDRICAS Y SANEAMIENTO | O147: 20. ASISTENCIA TÉCNICO 0 FINANCIERA Y DESARROLLO DE INFRAESTRUCTURA PARA EL SANEAMIENTO | P147: - | Q147: 0 | R147: 79 | S147: - | T147: 11 | U147: 5 | V147: 8 | W147: 6 | X147: 9999 | Y147: 3 | Z147: 8 | AA147: 6 | AB147: 1 | AC147: - | AD147: MUNICIPIO | AE147: CAÑUELAS | AF147: MÁXIMO PAZ | AG147: - | AH147: - | AI147: - | AJ147: 1189683.04 | AK147: 0 | AL147: 0 | AM147: 1189683.04 | AN147: 237936.6 | AO147: 951746.43 | AP147: 0 | AQ147: 0 | AR147: 0 | AS147: 0 | AT147: 0 | AU147: 0 | AV147: - | AW147: 0 | AX147: - | AY147: 0 | AZ147: - | BA147: - | BB147: 0.9999999916 | BC147: 0.9999999916 | BD147: -
B148: 154 | C148: 1. ESTADO NACIONAL | D148: 09. EXPANSIÓN DE LA RED DE AGUA POTABLE Y SANEAMIENTO DE CLOACAS | E148: - | F148: - | G148: - | H148: EXPANSIÓN DE REDES | I148: - | J148: REACONDICIONAMIENTO Y REPARACION DE LA PLANTA DEPURADORA | K148: 2 | L148: 30. MINISTERIO DEL INTERIOR, OBRAS PÚBLICAS Y VIVIENDA | M148: 613 | N148: ENTE NACIONAL DE OBRAS HÍDRICAS Y SANEAMIENTO | O148: 20. ASISTENCIA TÉCNICO 0 FINANCIERA Y DESARROLLO DE INFRAESTRUCTURA PARA EL SANEAMIENTO | P148: - | Q148: 0 | R148: 7 | S148: - | T148: 11 | U148: 5 | V148: 8 | W148: 6 | X148: 9999 | Y148: 3 | Z148: 8 | AA148: 6 | AB148: 1 | AC148: - | AD148: MUNICIPIO | AE148: CAÑUELAS | AF148: CAÑUELAS | AG148: - | AH148: - | AI148: - | AJ148: 581587.3 | AK148: 0 | AL148: 0 | AM148: 581587.3 | AN148: 581587.29 | AO148: 0 | AP148: 0 | AQ148: 0 | AR148: 0 | AS148: 0 | AT148: 0 | AU148: 0 | AV148: - | AW148: 0 | AX148: - | AY148: 0 | AZ148: - | BA148: - | BB148: 0.9999999828 | BC148: 0.9999999828 | BD148: -
B149: 155 | C149: 1. ESTADO NACIONAL | D149: 09. EXPANSIÓN DE LA RED DE AGUA POTABLE Y SANEAMIENTO DE CLOACAS | E149: - | F149: - | G149: - | H149: EXPANSIÓN DE REDES | I149: - | J149: REACONDICIONAMIENTO DEL SISTEMA DE AGUA POTABLE | K149: 2 | L149: 30. MINISTERIO DEL INTERIOR, OBRAS PÚBLICAS Y VIVIENDA | M149: 613 | N149: ENTE NACIONAL DE OBRAS HÍDRICAS Y SANEAMIENTO | O149: 20. ASISTENCIA TÉCNICO 0 FINANCIERA Y DESARROLLO DE INFRAESTRUCTURA PARA EL SANEAMIENTO | P149: - | Q149: 0 | R149: 79 | S149: - | T149: 11 | U149: 5 | V149: 8 | W149: 6 | X149: 9999 | Y149: 3 | Z149: 8 | AA149: 6 | AB149: 1 | AC149: - | AD149: MUNICIPIO | AE149: CAÑUELAS | AF149: CAÑUELAS | AG149: - | AH149: - | AI149: - | AJ149: 289750.5 | AK149: 0 | AL149: 0 | AM149: 289750.5 | AN149: 43462.5 | AO149: 178713.05 | AP149: 67575 | AQ149: 0 | AR149: 0 | AS149: 0 | AT149: 0 | AU149: 0 | AV149: - | AW149: 0 | AX149: - | AY149: 0 | AZ149: - | BA149: - | BB149: 1.000000173 | BC149: 1.000000173 | BD149: -
B150: 156 | C150: 1. ESTADO NACIONAL | D150: 09. EXPANSIÓN DE LA RED DE AGUA POTABLE Y SANEAMIENTO DE CLOACAS | E150: - | F150: - | G150: - | H150: EXPANSIÓN DE REDES | I150: - | J150: PROVISION DE AGUA POTABLE-CONEXION 9 DE ABRIL | K150: 2 | L150: 30. MINISTERIO DEL INTERIOR, OBRAS PÚBLICAS Y VIVIENDA | M150: 613 | N150: ENTE NACIONAL DE OBRAS HÍDRICAS Y SANEAMIENTO | O150: 20. ASISTENCIA TÉCNICO 0 FINANCIERA Y DESARROLLO DE INFRAESTRUCTURA PARA EL SANEAMIENTO | P150: - | Q150: 0 | R150: 78 | S150: - | T150: 11 | U150: 5 | V150: 8 | W150: 6 | X150: 9999 | Y150: 3 | Z150: 8 | AA150: 6 | AB150: 1 | AC150: - | AD150: MUNICIPIO | AE150: ESTEBAN ECHEVERRÍA | AF150: ESTEBAN ECHEVERRÍA | AG150: - | AH150: - | AI150: - | AJ150: 7453765.92 | AK150: 1029576.81 | AL150: 1132103.43 | AM150: 9615446.16 | AN150: 7416326.41 | AO150: 0 | AP150: 343024 | AQ150: 804987.66 | AR150: 1028060.81 | AS150: 0 | AT150: 0 | AU150: 0 | AV150: - | AW150: 0 | AX150: - | AY150: 0 | AZ150: - | BA150: - | BB150: 0.9976030982 | BC150: 0.9976030982 | BD150: -
B151: 157 | C151: 1. ESTADO NACIONAL | D151: 09. EXPANSIÓN DE LA RED DE AGUA POTABLE Y SANEAMIENTO DE CLOACAS | E151: - | F151: - | G151: - | H151: EXPANSIÓN DE REDES | I151: - | J151: PROVISIÓN DE AGUA POTABLE POR RED - Bº AMERICA UNIDA MOD 2 | K151: 2 | L151: 30. MINISTERIO DEL INTERIOR, OBRAS PÚBLICAS Y VIVIENDA | M151: 613 | N151: ENTE NACIONAL DE OBRAS HÍDRICAS Y SANEAMIENTO | O151: 20. ASISTENCIA TÉCNICO 0 FINANCIERA Y DESARROLLO DE INFRAESTRUCTURA PARA EL SANEAMIENTO | P151: - | Q151: 0 | R151: 77 | S151: - | T151: 11 | U151: 5 | V151: 8 | W151: 6 | X151: 9999 | Y151: 3 | Z151: 8 | AA151: 6 | AB151: 1 | AC151: - | AD151: MUNICIPIO | AE151: PTE. PERÓN | AF151: GUERNICA | AG151: - | AH151: - | AI151: - | AJ151: 214898.3 | AK151: 0 | AL151: 0 | AM151: 214898.3 | AN151: 190662.79 | AO151: 24235.5 | AP151: 0 | AQ151: 0 | AR151: 0 | AS151: 0 | AT151: 0 | AU151: 0 | AV151: - | AW151: 0 | AX151: - | AY151: 0 | AZ151: - | BA151: - | BB151: 0.9999999535 | BC151: 0.9999999535 | BD151: -
B152: 158 | C152: 1. ESTADO NACIONAL | D152: 09. EXPANSIÓN DE LA RED DE AGUA POTABLE Y SANEAMIENTO DE CLOACAS | E152: - | F152: - | G152: - | H152: EXPANSIÓN DE REDES | I152: - | J152: PROVISIÓN DE AGUA POTABLE | K152: 2 | L152: 30. MINISTERIO DEL INTERIOR, OBRAS PÚBLICAS Y VIVIENDA | M152: 613 | N152: ENTE NACIONAL DE OBRAS HÍDRICAS Y SANEAMIENTO | O152: 20. ASISTENCIA TÉCNICO 0 FINANCIERA Y DESARROLLO DE INFRAESTRUCTURA PARA EL SANEAMIENTO | P152: - | Q152: 0 | R152: 7 | S152: - | T152: 11 | U152: 5 | V152: 8 | W152: 1 | X152: 3001 | Y152: 3 | Z152: 8 | AA152: 6 | AB152: 1 | AC152: - | AD152: MUNICIPIO | AE152: GENERAL LAS HERAS | AF152: PLOMER | AG152: - | AH152: - | AI152: - | AJ152: 147100 | AK152: 0 | AL152: 119731 | AM152: 147100 | AN152: 119730.84 | AO152: 0 | AP152: 0 | AQ152: 0 | AR152: 0 | AS152: 0 | AT152: 0 | AU152: 0 | AV152: - | AW152: 0 | AX152: - | AY152: 0 | AZ152: - | BA152: - | BB152: 0.8139418083 | BC152: 0.8139418083 | BD152: LA OBRA CERRÓ EN EL MONTO CONTRATADO EN LOS $119731
B153: 159 | C153: 1. ESTADO NACIONAL | D153: 09. EXPANSIÓN DE LA RED DE AGUA POTABLE Y SANEAMIENTO DE CLOACAS | E153: - | F153: - | G153: - | H153: EXPANSIÓN DE REDES | I153: - | J153: PROVISION DE AGUA POTABLE | K153: 2 | L153: 30. MINISTERIO DEL INTERIOR, OBRAS PÚBLICAS Y VIVIENDA | M153: 613 | N153: ENTE NACIONAL DE OBRAS HÍDRICAS Y SANEAMIENTO | O153: 20. ASISTENCIA TÉCNICO 0 FINANCIERA Y DESARROLLO DE INFRAESTRUCTURA PARA EL SANEAMIENTO | P153: - | Q153: 0 | R153: 7 | S153: - | T153: 11 | U153: 5 | V153: 8 | W153: 1 | X153: 3001 | Y153: 3 | Z153: 8 | AA153: 6 | AB153: 1 | AC153: - | AD153: MUNICIPIO | AE153: GENERAL LAS HERAS | AF153: GENERAL LAS HERAS | AG153: - | AH153: - | AI153: - | AJ153: 128250 | AK153: 0 | AL153: 118079 | AM153: 246329.79 | AN153: 128250 | AO153: 0 | AP153: 0 | AQ153: 0 | AR153: 0 | AS153: 0 | AT153: 0 | AU153: 0 | AV153: - | AW153: 0 | AX153: - | AY153: 0 | AZ153: - | BA153: - | BB153: 1 | BC153: 1 | BD153: LA OBRA TUVO UNA AMPLIACIÓN DE $118079,79 , ELEVANDO EL ACUERDO DE FINANCIAMIENTO A $246329.79 MONTO EN EL QUE CERRO LA OBRA
B154: 160 | C154: 1. ESTADO NACIONAL | D154: 09. EXPANSIÓN DE LA RED DE AGUA POTABLE Y SANEAMIENTO DE CLOACAS | E154: - | F154: - | G154: - | H154: EXPANSIÓN DE REDES | I154: - | J154: PLANTA DE TRATAMIENTO DE LIQUIDOS CLOACALES - PLANTA AGUSTIN FERRARI | K154: 2 | L154: 30. MINISTERIO DEL INTERIOR, OBRAS PÚBLICAS Y VIVIENDA | M154: 613 | N154: ENTE NACIONAL DE OBRAS HÍDRICAS Y SANEAMIENTO | O154: 20. ASISTENCIA TÉCNICO 0 FINANCIERA Y DESARROLLO DE INFRAESTRUCTURA PARA EL SANEAMIENTO | P154: - | Q154: 9 | R154: - | S154: 51 | T154: 11 | U154: 4 | V154: 2 | W154: 2 | X154: 0 | Y154: 3 | Z154: 8 | AA154: 6 | AB154: 1 | AC154: - | AD154: MUNICIPIO | AE154: MERLO | AF154: MERLO | AG154: - | AH154: 2005-09-16 | AI154: 2007-10-06 | AJ154: 34983600.8 | AK154: 4646933.02 | AL154: 1111609.65 | AM154: 40742143.47 | AN154: 40721242.93 | AO154: 0 | AP154: 0 | AQ154: 0 | AR154: 0 | AS154: 0 | AT154: 0 | AU154: 0 | AV154: - | AW154: 0 | AX154: - | AY154: 0 | AZ154: - | BA154: - | BB154: 0.9994870044 | BC154: 0.9994870044 | BD154: LA OBRA TUVO REDETERMINACIÓN POR $4646933.02 Y UNA AMPLIACIÓN DE $111609.65, ELEVANDO EL ACUERDO DE FINANCIAMIENTO A $40.742.143,47, MONTO EN EL CUAL CERRÓ.
B155: 161 | C155: 1. ESTADO NACIONAL | D155: 09. EXPANSIÓN DE LA RED DE AGUA POTABLE Y SANEAMIENTO DE CLOACAS | E155: - | F155: - | G155: - | H155: EXPANSIÓN DE REDES | I155: - | J155: PERFORACION Y RED DE AGUA | K155: 2 | L155: 30. MINISTERIO DEL INTERIOR, OBRAS PÚBLICAS Y VIVIENDA | M155: 613 | N155: ENTE NACIONAL DE OBRAS HÍDRICAS Y SANEAMIENTO | O155: 20. ASISTENCIA TÉCNICO 0 FINANCIERA Y DESARROLLO DE INFRAESTRUCTURA PARA EL SANEAMIENTO | P155: - | Q155: 0 | R155: 79 | S155: - | T155: 11 | U155: 5 | V155: 8 | W155: 6 | X155: 9999 | Y155: 3 | Z155: 8 | AA155: 6 | AB155: 1 | AC155: - | AD155: MUNICIPIO | AE155: CAÑUELAS | AF155: URIBELARREA | AG155: - | AH155: - | AI155: - | AJ155: 1385692 | AK155: 0 | AL155: 0 | AM155: 1385692 | AN155: 432273.19 | AO155: 600145.31 | AP155: 353274 | AQ155: 0 | AR155: 0 | AS155: 0 | AT155: 0 | AU155: 0 | AV155: - | AW155: 0 | AX155: - | AY155: 0 | AZ155: - | BA155: - | BB155: 1.000000361 | BC155: 1.000000361 | BD155: -
B156: 162 | C156: 1. ESTADO NACIONAL | D156: 09. EXPANSIÓN DE LA RED DE AGUA POTABLE Y SANEAMIENTO DE CLOACAS | E156: - | F156: - | G156: - | H156: EXPANSIÓN DE REDES | I156: - | J156: EXPANSION DEL SERVICIO DE PROVISION DE A.P. Bº PARQUE AMERICANO MOD 2 | K156: 2 | L156: 30. MINISTERIO DEL INTERIOR, OBRAS PÚBLICAS Y VIVIENDA | M156: 613 | N156: ENTE NACIONAL DE OBRAS HÍDRICAS Y SANEAMIENTO | O156: 20. ASISTENCIA TÉCNICO 0 FINANCIERA Y DESARROLLO DE INFRAESTRUCTURA PARA EL SANEAMIENTO | P156: - | Q156: 0 | R156: 77 | S156: - | T156: 11 | U156: 5 | V156: 8 | W156: 6 | X156: 9999 | Y156: 3 | Z156: 8 | AA156: 6 | AB156: 1 | AC156: - | AD156: MUNICIPIO | AE156: PTE. PERÓN | AF156: GUERNICA | AG156: - | AH156: - | AI156: - | AJ156: 388353.74 | AK156: 0 | AL156: 0 | AM156: 388353.74 | AN156: 41054.87 | AO156: 217979.44 | AP156: 111914 | AQ156: 0 | AR156: 0 | AS156: 0 | AT156: 0 | AU156: 0 | AV156: - | AW156: 0 | AX156: - | AY156: 0 | AZ156: - | BA156: - | BB156: 0.9551815054 | BC156: 0.9551815054 | BD156: LA OBRA CERRO EN $370948.72 POR ECONOMIA DE OBRA
B157: 163 | C157: 1. ESTADO NACIONAL | D157: 09. EXPANSIÓN DE LA RED DE AGUA POTABLE Y SANEAMIENTO DE CLOACAS | E157: - | F157: - | G157: - | H157: EXPANSIÓN DE REDES | I157: - | J157: EXPANSION DEL SERVICIO DE PROVISION DE A.P. Bº PARQUE AMERICANO MOD 1 | K157: 2 | L157: 30. MINISTERIO DEL INTERIOR, OBRAS PÚBLICAS Y VIVIENDA | M157: 613 | N157: ENTE NACIONAL DE OBRAS HÍDRICAS Y SANEAMIENTO | O157: 20. ASISTENCIA TÉCNICO 0 FINANCIERA Y DESARROLLO DE INFRAESTRUCTURA PARA EL SANEAMIENTO | P157: - | Q157: 0 | R157: 77 | S157: - | T157: 11 | U157: 5 | V157: 8 | W157: 6 | X157: 9999 | Y157: 3 | Z157: 8 | AA157: 6 | AB157: 1 | AC157: - | AD157: MUNICIPIO | AE157: PTE. PERÓN | AF157: GUERNICA | AG157: - | AH157: - | AI157: - | AJ157: 422446.26 | AK157: 0 | AL157: 0 | AM157: 422446.26 | AN157: 39402.93 | AO157: 328499.48 | AP157: 37904 | AQ157: 0 | AR157: 0 | AS157: 0 | AT157: 0 | AU157: 0 | AV157: - | AW157: 0 | AX157: - | AY157: 0 | AZ157: - | BA157: - | BB157: 1 | BC157: 1 | BD157: LA OBRA CERRO EN $405.806,00 POR ECONOMIA DE OBRA
B158: 164 | C158: 1. ESTADO NACIONAL | D158: 09. EXPANSIÓN DE LA RED DE AGUA POTABLE Y SANEAMIENTO DE CLOACAS | E158: - | F158: - | G158: - | H158: EXPANSIÓN DE REDES | I158: - | J158: EXPANSION DE RED DE AGUA POTABLE - Bº AMERICA UNIDA MOD 1 | K158: 2 | L158: 30. MINISTERIO DEL INTERIOR, OBRAS PÚBLICAS Y VIVIENDA | M158: 613 | N158: ENTE NACIONAL DE OBRAS HÍDRICAS Y SANEAMIENTO | O158: 20. ASISTENCIA TÉCNICO 0 FINANCIERA Y DESARROLLO DE INFRAESTRUCTURA PARA EL SANEAMIENTO | P158: - | Q158: 0 | R158: 77 | S158: - | T158: 11 | U158: 5 | V158: 8 | W158: 6 | X158: 9999 | Y158: 3 | Z158: 8 | AA158: 6 | AB158: 1 | AC158: - | AD158: MUNICIPIO | AE158: PTE. PERÓN | AF158: GUERNICA | AG158: - | AH158: - | AI158: - | AJ158: 262479.96 | AK158: 0 | AL158: 0 | AM158: 262479.96 | AN158: 262197.99 | AO158: 0 | AP158: 0 | AQ158: 0 | AR158: 0 | AS158: 0 | AT158: 0 | AU158: 0 | AV158: - | AW158: 0 | AX158: - | AY158: 0 | AZ158: - | BA158: - | BB158: 0.9989257466 | BC158: 0.9989257466 | BD158: -
B159: 165 | C159: 1. ESTADO NACIONAL | D159: 09. EXPANSIÓN DE LA RED DE AGUA POTABLE Y SANEAMIENTO DE CLOACAS | E159: - | F159: - | G159: - | H159: EXPANSIÓN DE REDES | I159: - | J159: ESTUDIO HIDROGEOLÓGICO, IDENTIFICACIÓN DE DOS PERFORACIONES | K159: 2 | L159: 30. MINISTERIO DEL INTERIOR, OBRAS PÚBLICAS Y VIVIENDA | M159: 613 | N159: ENTE NACIONAL DE OBRAS HÍDRICAS Y SANEAMIENTO | O159: 20. ASISTENCIA TÉCNICO 0 FINANCIERA Y DESARROLLO DE INFRAESTRUCTURA PARA EL SANEAMIENTO | P159: - | Q159: 0 | R159: 7 | S159: - | T159: 11 | U159: 5 | V159: 8 | W159: 6 | X159: 9999 | Y159: 3 | Z159: 8 | AA159: 6 | AB159: 1 | AC159: - | AD159: MUNICIPIO | AE159: CAÑUELAS | AF159: CAÑUELAS | AG159: - | AH159: - | AI159: - | AJ159: 667111.47 | AK159: 0 | AL159: 199997 | AM159: 667111.47 | AN159: 667111.47 | AO159: 0 | AP159: 0 | AQ159: 0 | AR159: 0 | AS159: 0 | AT159: 0 | AU159: 0 | AV159: - | AW159: 0 | AX159: - | AY159: 0 | AZ159: - | BA159: - | BB159: 1 | BC159: 1 | BD159: LA OBRA TUVO UNA AMPLIACIÓN DE $199997 , ELEVANDO EL ACUERDO DE FINANCIAMIENTO A $667111
B160: 166 | C160: 1. ESTADO NACIONAL | D160: 09. EXPANSIÓN DE LA RED DE AGUA POTABLE Y SANEAMIENTO DE CLOACAS | E160: - | F160: - | G160: - | H160: EXPANSIÓN DE REDES | I160: - | J160: DESAGUE CLOACAL - PROVISION DE MAT - MARCOS PAZ | K160: 2 | L160: 30. MINISTERIO DEL INTERIOR, OBRAS PÚBLICAS Y VIVIENDA | M160: 613 | N160: ENTE NACIONAL DE OBRAS HÍDRICAS Y SANEAMIENTO | O160: 20. ASISTENCIA TÉCNICO 0 FINANCIERA Y DESARROLLO DE INFRAESTRUCTURA PARA EL SANEAMIENTO | P160: - | Q160: 0 | R160: 79 | S160: - | T160: 11 | U160: 5 | V160: 8 | W160: 6 | X160: 9999 | Y160: 3 | Z160: 8 | AA160: 6 | AB160: 1 | AC160: - | AD160: MUNICIPIO | AE160: MARCOS PAZ | AF160: MARCOS PAZ | AG160: - | AH160: - | AI160: - | AJ160: 1942739.7 | AK160: 0 | AL160: 0 | AM160: 1942739.7 | AN160: 1942739.7 | AO160: 0 | AP160: 0 | AQ160: 0 | AR160: 0 | AS160: 0 | AT160: 0 | AU160: 0 | AV160: - | AW160: 0 | AX160: - | AY160: 0 | AZ160: - | BA160: - | BB160: 1 | BC160: 1 | BD160: -
B161: 167 | C161: 1. ESTADO NACIONAL | D161: 09. EXPANSIÓN DE LA RED DE AGUA POTABLE Y SANEAMIENTO DE CLOACAS | E161: - | F161: - | G161: - | H161: EXPANSIÓN DE REDES | I161: - | J161: CONSTRUCCIÓN DESAGÜES CLOACALES SECTOR NORTE MODULO 1 | K161: 2 | L161: 30. MINISTERIO DEL INTERIOR, OBRAS PÚBLICAS Y VIVIENDA | M161: 613 | N161: ENTE NACIONAL DE OBRAS HÍDRICAS Y SANEAMIENTO | O161: 20. ASISTENCIA TÉCNICO 0 FINANCIERA Y DESARROLLO DE INFRAESTRUCTURA PARA EL SANEAMIENTO | P161: - | Q161: 0 | R161: 79 | S161: - | T161: 11 | U161: 5 | V161: 8 | W161: 6 | X161: 9999 | Y161: 3 | Z161: 8 | AA161: 6 | AB161: 1 | AC161: - | AD161: MUNICIPIO | AE161: MERLO | AF161: AGUSTÍN FERRARI | AG161: - | AH161: - | AI161: - | AJ161: 2143720.18 | AK161: 0 | AL161: 0 | AM161: 2143720.18 | AN161: 428744.04 | AO161: 1700499.1 | AP161: 0 | AQ161: 14477.04 | AR161: 0 | AS161: 0 | AT161: 0 | AU161: 0 | AV161: - | AW161: 0 | AX161: - | AY161: 0 | AZ161: - | BA161: - | BB161: 0.9999999813 | BC161: 0.9999999813 | BD161: -
B162: 168 | C162: 1. ESTADO NACIONAL | D162: 09. EXPANSIÓN DE LA RED DE AGUA POTABLE Y SANEAMIENTO DE CLOACAS | E162: - | F162: - | G162: - | H162: EXPANSIÓN DE REDES | I162: - | J162: CONSTRUCCIÓN DESAGÜES CLOACALES SECTOR NORTE | K162: 2 | L162: 30. MINISTERIO DEL INTERIOR, OBRAS PÚBLICAS Y VIVIENDA | M162: 613 | N162: ENTE NACIONAL DE OBRAS HÍDRICAS Y SANEAMIENTO | O162: 20. ASISTENCIA TÉCNICO 0 FINANCIERA Y DESARROLLO DE INFRAESTRUCTURA PARA EL SANEAMIENTO | P162: - | Q162: 0 | R162: 79 | S162: - | T162: 11 | U162: 5 | V162: 8 | W162: 6 | X162: 9999 | Y162: 3 | Z162: 8 | AA162: 6 | AB162: 1 | AC162: - | AD162: MUNICIPIO | AE162: MERLO | AF162: AGUSTÍN FERRARI | AG162: - | AH162: - | AI162: - | AJ162: 2026134.02 | AK162: 0 | AL162: 0 | AM162: 2026134.02 | AN162: 405226.81 | AO162: 1595160.71 | AP162: 25747 | AQ162: 0 | AR162: 0 | AS162: 0 | AT162: 0 | AU162: 0 | AV162: - | AW162: 0 | AX162: - | AY162: 0 | AZ162: - | BA162: - | BB162: 1.000000247 | BC162: 1.000000247 | BD162: -
B163: 169 | C163: 1. ESTADO NACIONAL | D163: 09. EXPANSIÓN DE LA RED DE AGUA POTABLE Y SANEAMIENTO DE CLOACAS | E163: - | F163: - | G163: - | H163: EXPANSIÓN DE REDES | I163: - | J163: CONSTRUCCION DE UNA PERFORACION Y RED DE DISTRIB DE AP EN MAXIMO PAZ | K163: 2 | L163: 30. MINISTERIO DEL INTERIOR, OBRAS PÚBLICAS Y VIVIENDA | M163: 613 | N163: ENTE NACIONAL DE OBRAS HÍDRICAS Y SANEAMIENTO | O163: 20. ASISTENCIA TÉCNICO 0 FINANCIERA Y DESARROLLO DE INFRAESTRUCTURA PARA EL SANEAMIENTO | P163: - | Q163: 0 | R163: 7 | S163: - | T163: 11 | U163: 5 | V163: 8 | W163: 6 | X163: 9999 | Y163: 3 | Z163: 8 | AA163: 6 | AB163: 1 | AC163: - | AD163: MUNICIPIO | AE163: CAÑUELAS | AF163: MÁXIMO PAZ | AG163: - | AH163: - | AI163: - | AJ163: 549750.23 | AK163: 0 | AL163: 74471.7 | AM163: 549750.23 | AN163: 549750.23 | AO163: 0 | AP163: 0 | AQ163: 0 | AR163: 0 | AS163: 0 | AT163: 0 | AU163: 0 | AV163: - | AW163: 0 | AX163: - | AY163: 0 | AZ163: - | BA163: - | BB163: 1 | BC163: 1 | BD163: LA OBRA TUVO UNA AMPLIACIÓN DE $74471.70, ELEVANDO EL ACUERDO DE FINANCIAMIENTO A $540759.23
B164: 170 | C164: 1. ESTADO NACIONAL | D164: 09. EXPANSIÓN DE LA RED DE AGUA POTABLE Y SANEAMIENTO DE CLOACAS | E164: - | F164: - | G164: - | H164: EXPANSIÓN DE REDES | I164: - | J164: CONSTRUCCIÓN DE DESAGÜES CLOACALES DOMICILIARIOS | K164: 2 | L164: 30. MINISTERIO DEL INTERIOR, OBRAS PÚBLICAS Y VIVIENDA | M164: 613 | N164: ENTE NACIONAL DE OBRAS HÍDRICAS Y SANEAMIENTO | O164: 20. ASISTENCIA TÉCNICO 0 FINANCIERA Y DESARROLLO DE INFRAESTRUCTURA PARA EL SANEAMIENTO | P164: - | Q164: 0 | R164: 79 | S164: - | T164: 11 | U164: 5 | V164: 8 | W164: 6 | X164: 9999 | Y164: 3 | Z164: 8 | AA164: 6 | AB164: 1 | AC164: - | AD164: MUNICIPIO | AE164: MERLO | AF164: AGUSTÍN FERRARI | AG164: - | AH164: - | AI164: - | AJ164: 2040858.16 | AK164: 0 | AL164: 0 | AM164: 2040858.16 | AN164: 408171.63 | AO164: 1632686.53 | AP164: 0 | AQ164: 0 | AR164: 0 | AS164: 0 | AT164: 0 | AU164: 0 | AV164: - | AW164: 0 | AX164: - | AY164: 0 | AZ164: - | BA164: - | BB164: 1 | BC164: 1 | BD164: -
B165: 171 | C165: 1. ESTADO NACIONAL | D165: 09. EXPANSIÓN DE LA RED DE AGUA POTABLE Y SANEAMIENTO DE CLOACAS | E165: - | F165: - | G165: - | H165: EXPANSIÓN DE REDES | I165: - | J165: CONSTRUCCIÓN DE DESAGÜES CLOACALES DOMICILIARIOS | K165: 2 | L165: 30. MINISTERIO DEL INTERIOR, OBRAS PÚBLICAS Y VIVIENDA | M165: 613 | N165: ENTE NACIONAL DE OBRAS HÍDRICAS Y SANEAMIENTO | O165: 20. ASISTENCIA TÉCNICO 0 FINANCIERA Y DESARROLLO DE INFRAESTRUCTURA PARA EL SANEAMIENTO | P165: - | Q165: 0 | R165: 79 | S165: - | T165: 11 | U165: 5 | V165: 8 | W165: 6 | X165: 9999 | Y165: 3 | Z165: 8 | AA165: 6 | AB165: 1 | AC165: - | AD165: MUNICIPIO | AE165: MERLO | AF165: AGUSTÍN FERRARI | AG165: - | AH165: - | AI165: - | AJ165: 2021350.84 | AK165: 0 | AL165: 0 | AM165: 2021350.84 | AN165: 404270.17 | AO165: 1584790.12 | AP165: 0 | AQ165: 0 | AR165: 0 | AS165: 20779 | AT165: 0 | AU165: 0 | AV165: - | AW165: 0 | AX165: - | AY165: 0 | AZ165: - | BA165: - | BB165: 1 | BC165: 1 | BD165: -
B166: 172 | C166: 1. ESTADO NACIONAL | D166: 09. EXPANSIÓN DE LA RED DE AGUA POTABLE Y SANEAMIENTO DE CLOACAS | E166: - | F166: - | G166: - | H166: EXPANSIÓN DE REDES | I166: - | J166: COLECTORES CLOACALES Y ESTACIONES ELEVADORAS | K166: 2 | L166: 30. MINISTERIO DEL INTERIOR, OBRAS PÚBLICAS Y VIVIENDA | M166: 613 | N166: ENTE NACIONAL DE OBRAS HÍDRICAS Y SANEAMIENTO | O166: 20. ASISTENCIA TÉCNICO 0 FINANCIERA Y DESARROLLO DE INFRAESTRUCTURA PARA EL SANEAMIENTO | P166: 1 | Q166: 9 | R166: - | S166: 52 | T166: 11 | U166: 4 | V166: 2 | W166: 2 | X166: 0 | Y166: 3 | Z166: 8 | AA166: 6 | AB166: 1 | AC166: - | AD166: MUNICIPIO | AE166: MERLO | AF166: MERLO | AG166: - | AH166: - | AI166: - | AJ166: 97540671.46 | AK166: 32268845.75 | AL166: 12301965.23 | AM166: 97540671.46 | AN166: 57930429.37 | AO166: 10978424.7 | AP166: 7746192 | AQ166: 12881931 | AR166: 7972258.48 | AS166: 0 | AT166: 0 | AU166: 0 | AV166: - | AW166: 0 | AX166: - | AY166: 0 | AZ166: - | BA166: - | BB166: 0.9996777148 | BC166: 0.9996777148 | BD166: LA OBRA TUVO UNA AMPLIACIÓN POR $12.301.965,23 Y UNA REDETERMINACIÓN DE PRECIO POR $32.268.845,75 ELEVANDO EL ACUERDO DE FINANCIAMIENTO A $97540671.46, MONTO EN EL QUE CERRÓ.
B167: 173 | C167: 1. ESTADO NACIONAL | D167: 09. EXPANSIÓN DE LA RED DE AGUA POTABLE Y SANEAMIENTO DE CLOACAS | E167: - | F167: - | G167: - | H167: EXPANSIÓN DE REDES | I167: - | J167: CLOACAS LOS AROMOS-SANTA CATALINA ETAPA 1 | K167: 2 | L167: 30. MINISTERIO DEL INTERIOR, OBRAS PÚBLICAS Y VIVIENDA | M167: 613 | N167: ENTE NACIONAL DE OBRAS HÍDRICAS Y SANEAMIENTO | O167: 20. ASISTENCIA TÉCNICO 0 FINANCIERA Y DESARROLLO DE INFRAESTRUCTURA PARA EL SANEAMIENTO | P167: - | Q167: 0 | R167: 79 | S167: - | T167: 11 | U167: 5 | V167: 8 | W167: 6 | X167: 9999 | Y167: 3 | Z167: 8 | AA167: 6 | AB167: 1 | AC167: - | AD167: MUNICIPIO | AE167: MARCOS PAZ | AF167: MARCOS PAZ | AG167: - | AH167: - | AI167: - | AJ167: 1996960.4 | AK167: 0 | AL167: 0 | AM167: 1996960.4 | AN167: 399392.08 | AO167: 1411670.24 | AP167: 184601 | AQ167: 0 | AR167: 0 | AS167: 0 | AT167: 0 | AU167: 0 | AV167: - | AW167: 0 | AX167: - | AY167: 0 | AZ167: - | BA167: - | BB167: 0.9993504728 | BC167: 0.9993504728 | BD167: -
B168: 174 | C168: 1. ESTADO NACIONAL | D168: 09. EXPANSIÓN DE LA RED DE AGUA POTABLE Y SANEAMIENTO DE CLOACAS | E168: - | F168: - | G168: - | H168: EXPANSIÓN DE REDES | I168: - | J168: CLOACAS LOS AROMOS- SANTA CATALINA ETAPA 2 | K168: 2 | L168: 30. MINISTERIO DEL INTERIOR, OBRAS PÚBLICAS Y VIVIENDA | M168: 613 | N168: ENTE NACIONAL DE OBRAS HÍDRICAS Y SANEAMIENTO | O168: 20. ASISTENCIA TÉCNICO 0 FINANCIERA Y DESARROLLO DE INFRAESTRUCTURA PARA EL SANEAMIENTO | P168: - | Q168: 0 | R168: 79 | S168: - | T168: 11 | U168: 5 | V168: 8 | W168: 6 | X168: 9999 | Y168: 3 | Z168: 8 | AA168: 6 | AB168: 1 | AC168: - | AD168: MUNICIPIO | AE168: MARCOS PAZ | AF168: MARCOS PAZ | AG168: - | AH168: - | AI168: - | AJ168: 1968781.75 | AK168: 0 | AL168: 0 | AM168: 1968781.75 | AN168: 393756.35 | AO168: 1099054.52 | AP168: 475971 | AQ168: 0 | AR168: 0 | AS168: 0 | AT168: 0 | AU168: 0 | AV168: - | AW168: 0 | AX168: - | AY168: 0 | AZ168: - | BA168: - | BB168: 1.000000061 | BC168: 1.000000061 | BD168: -
B169: 175 | C169: 1. ESTADO NACIONAL | D169: 09. EXPANSIÓN DE LA RED DE AGUA POTABLE Y SANEAMIENTO DE CLOACAS | E169: - | F169: - | G169: - | H169: EXPANSIÓN DE REDES | I169: - | J169: CAÑERIAS PRIMARIAS Y REDES DISTRIBUIDORAS | K169: 2 | L169: 30. MINISTERIO DEL INTERIOR, OBRAS PÚBLICAS Y VIVIENDA | M169: 613 | N169: ENTE NACIONAL DE OBRAS HÍDRICAS Y SANEAMIENTO | O169: 20. ASISTENCIA TÉCNICO 0 FINANCIERA Y DESARROLLO DE INFRAESTRUCTURA PARA EL SANEAMIENTO | P169: - | Q169: 0 | R169: 78 | S169: - | T169: 11 | U169: 5 | V169: 8 | W169: 6 | X169: 9999 | Y169: 3 | Z169: 8 | AA169: 6 | AB169: 1 | AC169: - | AD169: MUNICIPIO | AE169: LA MATANZA | AF169: LA MATANZA | AG169: - | AH169: - | AI169: - | AJ169: 25795012.91 | AK169: 5457448.64 | AL169: 6309512.96 | AM169: 26166961 | AN169: 21630018.59 | AO169: 1808156.55 | AP169: 2021637 | AQ169: 0 | AR169: 0 | AS169: 706895 | AT169: 0 | AU169: 0 | AV169: - | AW169: 0 | AX169: - | AY169: 0 | AZ169: - | BA169: - | BB169: 1 | BC169: 1 | BD169: -
B170: 176 | C170: 1. ESTADO NACIONAL | D170: 09. EXPANSIÓN DE LA RED DE AGUA POTABLE Y SANEAMIENTO DE CLOACAS | E170: - | F170: - | G170: - | H170: EXPANSIÓN DE REDES | I170: - | J170: ADQ DE MAT DE LINEA PARA LA OBRA DEL BARRIO SANTA MARTA | K170: 2 | L170: 30. MINISTERIO DEL INTERIOR, OBRAS PÚBLICAS Y VIVIENDA | M170: 613 | N170: ENTE NACIONAL DE OBRAS HÍDRICAS Y SANEAMIENTO | O170: 20. ASISTENCIA TÉCNICO 0 FINANCIERA Y DESARROLLO DE INFRAESTRUCTURA PARA EL SANEAMIENTO | P170: - | Q170: 0 | R170: 77 | S170: - | T170: 11 | U170: 5 | V170: 8 | W170: 6 | X170: 9999 | Y170: 3 | Z170: 8 | AA170: 6 | AB170: 1 | AC170: - | AD170: MUNICIPIO | AE170: MERLO | AF170: MERLO | AG170: - | AH170: - | AI170: - | AJ170: 363630.85 | AK170: 0 | AL170: 0 | AM170: 363630.85 | AN170: 235627.83 | AO170: 8272.77 | AP170: 0 | AQ170: 0 | AR170: 0 | AS170: 0 | AT170: 0 | AU170: 0 | AV170: - | AW170: 0 | AX170: - | AY170: 0 | AZ170: - | BA170: - | BB170: 1 | BC170: 1 | BD170: LA OBRA CERRÓ EN MENOS , EN EL MONTO LICITADO QUE FUE 243900.62
B171: 177 | C171: 1. ESTADO NACIONAL | D171: 09. EXPANSIÓN DE LA RED DE AGUA POTABLE Y SANEAMIENTO DE CLOACAS | E171: - | F171: - | G171: - | H171: EXPANSIÓN DE REDES | I171: - | J171: ADQ DE MAT DE LINEA EXPANSION DE AP - Bº PQE AMERICANO MOD 4 | K171: 2 | L171: 30. MINISTERIO DEL INTERIOR, OBRAS PÚBLICAS Y VIVIENDA | M171: 613 | N171: ENTE NACIONAL DE OBRAS HÍDRICAS Y SANEAMIENTO | O171: 20. ASISTENCIA TÉCNICO 0 FINANCIERA Y DESARROLLO DE INFRAESTRUCTURA PARA EL SANEAMIENTO | P171: - | Q171: 0 | R171: 77 | S171: - | T171: 11 | U171: 5 | V171: 8 | W171: 6 | X171: 9999 | Y171: 3 | Z171: 8 | AA171: 6 | AB171: 1 | AC171: - | AD171: MUNICIPIO | AE171: PTE. PERÓN | AF171: GUERNICA | AG171: - | AH171: - | AI171: - | AJ171: 167373.2 | AK171: 0 | AL171: 0 | AM171: 167373.2 | AN171: 126886.89 | AO171: 0 | AP171: 19885 | AQ171: 0 | AR171: 0 | AS171: 0 | AT171: 0 | AU171: 0 | AV171: - | AW171: 0 | AX171: - | AY171: 0 | AZ171: - | BA171: - | BB171: 1 | BC171: 1 | BD171: LA OBRA CERRÓ EN $146771.89 POR ADDENDA NEGATIVA
B172: 178 | C172: 1. ESTADO NACIONAL | D172: 09. EXPANSIÓN DE LA RED DE AGUA POTABLE Y SANEAMIENTO DE CLOACAS | E172: - | F172: - | G172: - | H172: EXPANSIÓN DE REDES | I172: - | J172: ADQ DE MAT DE LINEA EXPANSION DE AP - Bº AMERICA UNIDA MOD 2 | K172: 2 | L172: 30. MINISTERIO DEL INTERIOR, OBRAS PÚBLICAS Y VIVIENDA | M172: 613 | N172: ENTE NACIONAL DE OBRAS HÍDRICAS Y SANEAMIENTO | O172: 20. ASISTENCIA TÉCNICO 0 FINANCIERA Y DESARROLLO DE INFRAESTRUCTURA PARA EL SANEAMIENTO | P172: - | Q172: 0 | R172: 77 | S172: - | T172: 11 | U172: 5 | V172: 8 | W172: 6 | X172: 9999 | Y172: 3 | Z172: 8 | AA172: 6 | AB172: 1 | AC172: - | AD172: MUNICIPIO | AE172: PTE. PERÓN | AF172: GUERNICA | AG172: - | AH172: - | AI172: - | AJ172: 103496.82 | AK172: 0 | AL172: 0 | AM172: 103496.82 | AN172: 67452.28 | AO172: 0 | AP172: 0 | AQ172: 0 | AR172: 0 | AS172: 0 | AT172: 0 | AU172: 0 | AV172: - | AW172: 0 | AX172: - | AY172: 0 | AZ172: - | BA172: - | BB172: 1 | BC172: 1 | BD172: -
B173: 179 | C173: 1. ESTADO NACIONAL | D173: 09. EXPANSIÓN DE LA RED DE AGUA POTABLE Y SANEAMIENTO DE CLOACAS | E173: - | F173: - | G173: - | H173: EXPANSIÓN DE REDES | I173: - | J173: ACUEDUCTO LANUS - TEMPERLEY | K173: 2 | L173: 30. MINISTERIO DEL INTERIOR, OBRAS PÚBLICAS Y VIVIENDA | M173: 613 | N173: ENTE NACIONAL DE OBRAS HÍDRICAS Y SANEAMIENTO | O173: 20. ASISTENCIA TÉCNICO 0 FINANCIERA Y DESARROLLO DE INFRAESTRUCTURA PARA EL SANEAMIENTO | P173: - | Q173: 0 | R173: 78 | S173: - | T173: 11 | U173: 5 | V173: 8 | W173: 6 | X173: 9999 | Y173: 3 | Z173: 8 | AA173: 6 | AB173: 1 | AC173: - | AD173: MUNICIPIO | AE173: LOMAS DE ZAMORA | AF173: LOMAS DE ZAMORA | AG173: LANUS 0 TEMPERLEY | AH173: 2006-10-31 | AI173: 2007-06-28 | AJ173: 24913761.38 | AK173: 483839.34 | AL173: 9636196.97 | AM173: 35120036.31 | AN173: 35090036.31 | AO173: 0 | AP173: 0 | AQ173: 0 | AR173: 0 | AS173: 0 | AT173: 0 | AU173: 0 | AV173: - | AW173: 0 | AX173: - | AY173: 0 | AZ173: - | BA173: - | BB173: 0.9991457868 | BC173: 0.9991457868 | BD173: -
B174: 180 | C174: 1. ESTADO NACIONAL | D174: 09. EXPANSIÓN DE LA RED DE AGUA POTABLE Y SANEAMIENTO DE CLOACAS | E174: - | F174: - | G174: - | H174: EXPANSIÓN DE REDES | I174: - | J174: 6 MODULOS A+T - VARIAS LOCALIDADES | K174: 2 | L174: 30. MINISTERIO DEL INTERIOR, OBRAS PÚBLICAS Y VIVIENDA | M174: 613 | N174: ENTE NACIONAL DE OBRAS HÍDRICAS Y SANEAMIENTO | O174: 20. ASISTENCIA TÉCNICO 0 FINANCIERA Y DESARROLLO DE INFRAESTRUCTURA PARA EL SANEAMIENTO | P174: - | Q174: 0 | R174: 77 | S174: - | T174: 11 | U174: 5 | V174: 8 | W174: 6 | X174: 9999 | Y174: 3 | Z174: 8 | AA174: 6 | AB174: 1 | AC174: - | AD174: MUNICIPIO | AE174: LOMAS DE ZAMORA | AF174: LOMAS DE ZAMORA | AG174: B° LA CABA Y VILLA ALBERTINA | AH174: - | AI174: - | AJ174: 1803126 | AK174: 0 | AL174: 0 | AM174: 1803126 | AN174: 1803125.87 | AO174: 0 | AP174: 0 | AQ174: 0 | AR174: 0 | AS174: 0 | AT174: 0 | AU174: 0 | AV174: - | AW174: 0 | AX174: - | AY174: 0 | AZ174: - | BA174: - | BB174: 1 | BC174: 1 | BD174: -
B175: 181 | C175: 1. ESTADO NACIONAL | D175: 09. EXPANSIÓN DE LA RED DE AGUA POTABLE Y SANEAMIENTO DE CLOACAS | E175: - | F175: - | G175: - | H175: EXPANSIÓN DE REDES | I175: - | J175: 4 MODULOS A+T - VARIAS LOCALIDADES | K175: 2 | L175: 30. MINISTERIO DEL INTERIOR, OBRAS PÚBLICAS Y VIVIENDA | M175: 613 | N175: ENTE NACIONAL DE OBRAS HÍDRICAS Y SANEAMIENTO | O175: 20. ASISTENCIA TÉCNICO 0 FINANCIERA Y DESARROLLO DE INFRAESTRUCTURA PARA EL SANEAMIENTO | P175: - | Q175: 0 | R175: 77 | S175: - | T175: 11 | U175: 5 | V175: 8 | W175: 6 | X175: 9999 | Y175: 3 | Z175: 8 | AA175: 6 | AB175: 1 | AC175: - | AD175: MUNICIPIO | AE175: ALMIRANTE BROWN | AF175: ALMIRANTE BROWN | AG175: - | AH175: - | AI175: - | AJ175: 582163 | AK175: 0 | AL175: 0 | AM175: 0 | AN175: 582163.35 | AO175: 0 | AP175: 0 | AQ175: 0 | AR175: 0 | AS175: 0 | AT175: 0 | AU175: 0 | AV175: - | AW175: 0 | AX175: - | AY175: 0 | AZ175: - | BA175: - | BB175: 1 | BC175: 1 | BD175: -
B176: 182 | C176: 1. ESTADO NACIONAL | D176: 09. EXPANSIÓN DE LA RED DE AGUA POTABLE Y SANEAMIENTO DE CLOACAS | E176: - | F176: - | G176: - | H176: EXPANSIÓN DE REDES | I176: - | J176: 2º TRAMO COLECTORES CLOACALES Y ESTACION ELEVADORA | K176: 2 | L176: 30. MINISTERIO DEL INTERIOR, OBRAS PÚBLICAS Y VIVIENDA | M176: 613 | N176: ENTE NACIONAL DE OBRAS HÍDRICAS Y SANEAMIENTO | O176: 20. ASISTENCIA TÉCNICO 0 FINANCIERA Y DESARROLLO DE INFRAESTRUCTURA PARA EL SANEAMIENTO | P176: - | Q176: 2 | R176: - | S176: 53 | T176: 11 | U176: 4 | V176: 2 | W176: 2 | X176: 9999 | Y176: 3 | Z176: 8 | AA176: 6 | AB176: 1 | AC176: - | AD176: MUNICIPIO | AE176: MORÓN | AF176: MORÓN | AG176: MORON 0 3 DE FEBRERO | AH176: 2006-01-18 | AI176: 2008-08-30 | AJ176: 19303113.09 | AK176: 7036826.43 | AL176: 3790305.42 | AM176: 30130244.92 | AN176: 29132319 | AO176: 0 | AP176: 0 | AQ176: 0 | AR176: 0 | AS176: 0 | AT176: 0 | AU176: 0 | AV176: - | AW176: 0 | AX176: - | AY176: 0 | AZ176: - | BA176: - | BB176: 1 | BC176: 1 | BD176: TUVO UNA AMPLIACIÓN DE $3.790.305,42 Y UNA REDETERMINACIÓN POR $7.036.826,43, ELEVANDO EL ACUERDO DE FINANCIAMIENTO A $30.130.244,92, MONTO EN EL QUE CERRÓ.
B177: 183 | C177: 1. ESTADO NACIONAL | D177: 09. EXPANSIÓN DE LA RED DE AGUA POTABLE Y SANEAMIENTO DE CLOACAS | E177: - | F177: - | G177: - | H177: EXPANSIÓN DE REDES | I177: - | J177: 203 MODULOS A+T - VARIAS LOCALIDADES | K177: 2 | L177: 30. MINISTERIO DEL INTERIOR, OBRAS PÚBLICAS Y VIVIENDA | M177: 613 | N177: ENTE NACIONAL DE OBRAS HÍDRICAS Y SANEAMIENTO | O177: 20. ASISTENCIA TÉCNICO 0 FINANCIERA Y DESARROLLO DE INFRAESTRUCTURA PARA EL SANEAMIENTO | P177: - | Q177: 0 | R177: 77 | S177: - | T177: 11 | U177: 5 | V177: 8 | W177: 6 | X177: 9999 | Y177: 3 | Z177: 8 | AA177: 6 | AB177: 1 | AC177: - | AD177: MUNICIPIO | AE177: LA MATANZA | AF177: LA MATANZA | AG177: - | AH177: - | AI177: - | AJ177: 41450123.94 | AK177: 0 | AL177: 0 | AM177: 41450123.94 | AN177: 41450123.94 | AO177: 0 | AP177: 0 | AQ177: 0 | AR177: 0 | AS177: 0 | AT177: 0 | AU177: 0 | AV177: - | AW177: 0 | AX177: - | AY177: 0 | AZ177: - | BA177: - | BB177: 1 | BC177: 1 | BD177: -
B178: 184 | C178: 2. PROVINCIA DE BS AS | D178: 10. DESAGÜES PLUVIALES | E178: - | F178: - | G178: - | H178: DESAGUES PLUVIALES | I178: - | J178: DESAGUES PLUVIALES MATANZA AL CILDAÑEZ 0GR.1 0ACUMAR. | K178: 2 | L178: 14. MINISTERIO DE INFRAESTRUCTURA DE LA PROVINCIA DE BUENOS AIRES | M178: - | N178: MINISTERIO DE INFRAESTRUCTURA | O178: 18. ACUMAR - PROGRAMA DE GESTIÓN AMBIENTAL (PGA) | P178: - | Q178: 5510 | R178: - | S178: 1 | T178: 11 | U178: 4 | V178: 2 | W178: 2 | X178: 0 | Y178: 4 | Z178: 4 | AA178: 325 | AB178: 1 | AC178: 0 | AD178: MINISTERIO DE INFRAESTRUCTURA | AE178: LA MATANZA | AF178: - | AG178: - | AH178: 2008-01-16 | AI178: 2009-04-10 | AJ178: 30905966.44 | AK178: 3086368.84 | AL178: 0 | AM178: 33992335.28 | AN178: 11135175 | AO178: 335576.41 | AP178: 11330088.99 | AQ178: 2470503.26 | AR178: 3777583.12 | AS178: 7831532.97 | AT178: 11728349.05 | AU178: 0 | AV178: - | AW178: 0 | AX178: - | AY178: - | AZ178: - | BA178: FINALIZADO | BB178: 1 | BC178: 1 | BD178: -
B179: 185 | C179: 2. PROVINCIA DE BS AS | D179: 10. DESAGÜES PLUVIALES | E179: - | F179: - | G179: - | H179: DESAGUES PLUVIALES | I179: - | J179: DESAGÜES PLUVIALES MATANZA AL CILDAÑEZ - COLECTOR TAPIALES - GR. 2 - ETAPA I. | K179: 2 | L179: 14. MINISTERIO DE INFRAESTRUCTURA DE LA PROVINCIA DE BUENOS AIRES | M179: - | N179: MINISTERIO DE INFRAESTRUCTURA | O179: 18. ACUMAR - PROGRAMA DE GESTIÓN AMBIENTAL (PGA) | P179: - | Q179: 5310 | R179: - | S179: 1 | T179: 11 | U179: 4 | V179: 2 | W179: 2 | X179: - | Y179: 4 | Z179: 4 | AA179: 325 | AB179: 1 | AC179: - | AD179: MINISTERIO DE INFRAESTRUCTURA | AE179: LA MATANZA | AF179: - | AG179: - | AH179: 2005-01-07 | AI179: 2008-08-15 | AJ179: 21155223 | AK179: 376177 | AL179: 0 | AM179: 21531400 | AN179: 21531400 | AO179: - | AP179: - | AQ179: - | AR179: - | AS179: - | AT179: 0 | AU179: 0 | AV179: - | AW179: 0 | AX179: - | AY179: - | AZ179: - | BA179: FINALIZADO | BB179: 1 | BC179: 1 | BD179: -
B180: 186 | C180: 2. PROVINCIA DE BS AS | D180: 10. DESAGÜES PLUVIALES | E180: - | F180: - | G180: - | H180: DESAGUES PLUVIALES | I180: - | J180: DESAGÜES PLUVIALES EN LA CUENCA OLAZABAL - ALIVIADORES MARCO - AVELLANEDA. | K180: 2 | L180: 14. MINISTERIO DE INFRAESTRUCTURA DE LA PROVINCIA DE BUENOS AIRES | M180: - | N180: MINISTERIO DE INFRAESTRUCTURA | O180: 18. ACUMAR - PROGRAMA DE GESTIÓN AMBIENTAL (PGA) | P180: - | Q180: 5501 | R180: - | S180: 2 | T180: 11 | U180: 4 | V180: 2 | W180: 2 | X180: - | Y180: 4 | Z180: 4 | AA180: 335 | AB180: 1 | AC180: - | AD180: MINISTERIO DE INFRAESTRUCTURA | AE180: LOMAS DE ZAMORA | AF180: REMEDIOS DE ESCALADA Y VILLA CENTENARIO | AG180: - | AH180: 2006-03-02 | AI180: 2008-11-01 | AJ180: 18516387.03 | AK180: 2495704.59 | AL180: 0 | AM180: 21012091.62 | AN180: 18890753 | AO180: 137244.91 | AP180: - | AQ180: - | AR180: - | AS180: - | AT180: 0 | AU180: 0 | AV180: - | AW180: 0 | AX180: - | AY180: - | AZ180: - | BA180: FINALIZADO | BB180: 1 | BC180: 1 | BD180: -
B181: 187 | C181: 2. PROVINCIA DE BS AS | D181: 10. DESAGÜES PLUVIALES | E181: - | F181: - | G181: - | H181: DESAGUES PLUVIALES | I181: - | J181: DESAGÜES PLUVIALES EN LA CUENCA OLAZABAL - ALIVIADORES MARCO - AVELLANEDA. | K181: 2 | L181: 14. MINISTERIO DE INFRAESTRUCTURA DE LA PROVINCIA DE BUENOS AIRES | M181: - | N181: MINISTERIO DE INFRAESTRUCTURA | O181: 18. ACUMAR - PROGRAMA DE GESTIÓN AMBIENTAL (PGA) | P181: - | Q181: 5501 | R181: - | S181: 2 | T181: 13 | U181: 4 | V181: 2 | W181: 2 | X181: - | Y181: 4 | Z181: 4 | AA181: 335 | AB181: 1 | AC181: - | AD181: MINISTERIO DE INFRAESTRUCTURA | AE181: LOMAS DE ZAMORA | AF181: REMEDIOS DE ESCALADA Y VILLA CENTENARIO | AG181: - | AH181: - | AI181: - | AJ181: 0 | AK181: 0 | AL181: 0 | AM181: 0 | AN181: 416810 | AO181: - | AP181: - | AQ181: - | AR181: - | AS181: - | AT181: 0 | AU181: 0 | AV181: - | AW181: 0 | AX181: - | AY181: - | AZ181: - | BA181: FINALIZADO | BB181: 1 | BC181: 1 | BD181: -
B182: 188 | C182: 2. PROVINCIA DE BS AS | D182: 10. DESAGÜES PLUVIALES | E182: - | F182: - | G182: - | H182: DESAGUES PLUVIALES | I182: - | J182: DESAGÜES PLUVIALES EN LA CUENCA MACIEL - RIACHUELO - ETAPA I. | K182: 2 | L182: 14. MINISTERIO DE INFRAESTRUCTURA DE LA PROVINCIA DE BUENOS AIRES | M182: - | N182: MINISTERIO DE INFRAESTRUCTURA | O182: 18. ACUMAR - PROGRAMA DE GESTIÓN AMBIENTAL (PGA) | P182: - | Q182: 5506 | R182: - | S182: 2 | T182: 11 | U182: 4 | V182: 2 | W182: 2 | X182: - | Y182: 4 | Z182: 4 | AA182: 335 | AB182: 1 | AC182: - | AD182: MINISTERIO DE INFRAESTRUCTURA | AE182: LOMAS DE ZAMORA | AF182: LOMAS DE ZAMORA | AG182: - | AH182: 2005-04-01 | AI182: 2010-02-15 | AJ182: 9779415.23 | AK182: 2751155.96 | AL182: 0 | AM182: 12530571.19 | AN182: 8883705 | AO182: 654584.38 | AP182: - | AQ182: - | AR182: - | AS182: - | AT182: 0 | AU182: 0 | AV182: - | AW182: 0 | AX182: - | AY182: - | AZ182: - | BA182: FINALIZADO | BB182: 1 | BC182: 1 | BD182: -
B183: 189 | C183: 2. PROVINCIA DE BS AS | D183: 10. DESAGÜES PLUVIALES | E183: - | F183: - | G183: - | H183: DESAGUES PLUVIALES | I183: - | J183: DESAGÜES PLUVIALES EN LA CUENCA MACIEL - RIACHUELO - ETAPA I. | K183: 2 | L183: 14. MINISTERIO DE INFRAESTRUCTURA DE LA PROVINCIA DE BUENOS AIRES | M183: - | N183: MINISTERIO DE INFRAESTRUCTURA | O183: 18. ACUMAR - PROGRAMA DE GESTIÓN AMBIENTAL (PGA) | P183: - | Q183: 5506 | R183: - | S183: 2 | T183: 13 | U183: 4 | V183: 2 | W183: 2 | X183: - | Y183: 4 | Z183: 4 | AA183: 335 | AB183: 1 | AC183: - | AD183: MINISTERIO DE INFRAESTRUCTURA | AE183: LOMAS DE ZAMORA | AF183: LOMAS DE ZAMORA | AG183: - | AH183: - | AI183: - | AJ183: 0 | AK183: 0 | AL183: 0 | AM183: 0 | AN183: 172170 | AO183: - | AP183: - | AQ183: - | AR183: - | AS183: - | AT183: 0 | AU183: 0 | AV183: - | AW183: 0 | AX183: - | AY183: - | AZ183: - | BA183: FINALIZADO | BB183: 1 | BC183: 1 | BD183: -
B184: 190 | C184: 2. PROVINCIA DE BS AS | D184: 10. DESAGÜES PLUVIALES | E184: - | F184: - | G184: - | H184: DESAGUES PLUVIALES | I184: - | J184: DESAGÜES PLUVIALES EN LA CUENCA DEL CANAL UNAMUNO - ETAPA I - ALIVIADOR OESTE. | K184: 2 | L184: 14. MINISTERIO DE INFRAESTRUCTURA DE LA PROVINCIA DE BUENOS AIRES | M184: - | N184: MINISTERIO DE INFRAESTRUCTURA | O184: 18. ACUMAR - PROGRAMA DE GESTIÓN AMBIENTAL (PGA) | P184: - | Q184: 5311 | R184: - | S184: 1 | T184: 11 | U184: 4 | V184: 2 | W184: 2 | X184: - | Y184: 4 | Z184: 4 | AA184: 37 | AB184: 1 | AC184: - | AD184: MINISTERIO DE INFRAESTRUCTURA | AE184: LOMAS DE ZAMORA | AF184: LOMAS DE ZAMORA, ING. BUDGE, VILLA CENTENARIO | AG184: - | AH184: 2004-12-23 | AI184: 2008-08-16 | AJ184: 18954466 | AK184: 0 | AL184: 0 | AM184: 18954466 | AN184: 18954466 | AO184: - | AP184: - | AQ184: - | AR184: - | AS184: - | AT184: 0 | AU184: 0 | AV184: - | AW184: 0 | AX184: - | AY184: - | AZ184: - | BA184: FINALIZADO | BB184: 1 | BC184: 1 | BD184: -
B185: 191 | C185: 2. PROVINCIA DE BS AS | D185: 10. DESAGÜES PLUVIALES | E185: - | F185: - | G185: - | H185: DESAGUES PLUVIALES | I185: - | J185: DESAGUES PLUVIALES EN LA CUENCA DEL Aº DEL REY -ALIVIADOR ESTE -ETAPA II -ACUMAR. | K185: 2 | L185: 14. MINISTERIO DE INFRAESTRUCTURA DE LA PROVINCIA DE BUENOS AIRES | M185: - | N185: MINISTERIO DE INFRAESTRUCTURA | O185: 18. ACUMAR - PROGRAMA DE GESTIÓN AMBIENTAL (PGA) | P185: - | Q185: 5509 | R185: - | S185: 1 | T185: 11 | U185: 4 | V185: 2 | W185: 2 | X185: - | Y185: 4 | Z185: 4 | AA185: 37 | AB185: 1 | AC185: - | AD185: MINISTERIO DE INFRAESTRUCTURA | AE185: LOMAS DE ZAMORA | AF185: LOMAS DE ZAMORA | AG185: - | AH185: 2008-01-16 | AI185: 2009-07-09 | AJ185: 61156483.61 | AK185: 13086491.05 | AL185: 0 | AM185: 74242974.66 | AN185: 33692852 | AO185: 19733968.02 | AP185: 7016776.71 | AQ185: 974170.9 | AR185: 392182.68 | AS185: 816834.82 | AT185: 1030775.81 | AU185: 0 | AV185: - | AW185: 0 | AX185: - | AY185: - | AZ185: - | BA185: FINALIZADO | BB185: 0.9999293597 | BC185: 0.9999293597 | BD185: -
B186: 192 | C186: 2. PROVINCIA DE BS AS | D186: 10. DESAGÜES PLUVIALES | E186: - | F186: - | G186: - | H186: DESAGUES PLUVIALES | I186: - | J186: DESAGUES PLUVIALES EN LA CUENCA DEL Aº DEL REY -ALIVIADOR ESTE -ETAPA I -ACUMAR. | K186: 2 | L186: 14. MINISTERIO DE INFRAESTRUCTURA DE LA PROVINCIA DE BUENOS AIRES | M186: - | N186: MINISTERIO DE INFRAESTRUCTURA | O186: 18. ACUMAR - PROGRAMA DE GESTIÓN AMBIENTAL (PGA) | P186: - | Q186: 5508 | R186: - | S186: 1 | T186: 11 | U186: 4 | V186: 2 | W186: 2 | X186: - | Y186: 4 | Z186: 4 | AA186: 37 | AB186: 1 | AC186: - | AD186: MINISTERIO DE INFRAESTRUCTURA | AE186: LOMAS DE ZAMORA | AF186: LOMAS DE ZAMORA | AG186: - | AH186: 2007-11-29 | AI186: 2008-11-23 | AJ186: 39051844.74 | AK186: 11386313.97 | AL186: 0 | AM186: 50438158.71 | AN186: 13758917 | AO186: 13781043.01 | AP186: 6884927.56 | AQ186: 4788641.38 | AR186: - | AS186: - | AT186: 0 | AU186: 0 | AV186: - | AW186: 0 | AX186: - | AY186: - | AZ186: - | BA186: FINALIZADO | BB186: 0.9987525665 | BC186: 0.9987525665 | BD186: -
B187: 193 | C187: 2. PROVINCIA DE BS AS | D187: 10. DESAGÜES PLUVIALES | E187: - | F187: - | G187: - | H187: DESAGUES PLUVIALES | I187: - | J187: DESAGUES PLUVIALES EN LA CUENCA CAMINO CINTURA - ET. I -CONDUCTO PRINCIPAL -ACUMAR. | K187: 2 | L187: 14. MINISTERIO DE INFRAESTRUCTURA DE LA PROVINCIA DE BUENOS AIRES | M187: - | N187: MINISTERIO DE INFRAESTRUCTURA | O187: 18. ACUMAR - PROGRAMA DE GESTIÓN AMBIENTAL (PGA) | P187: - | Q187: 5507 | R187: - | S187: 1 | T187: 11 | U187: 4 | V187: 2 | W187: 2 | X187: - | Y187: 4 | Z187: 4 | AA187: 325 | AB187: 1 | AC187: - | AD187: MINISTERIO DE INFRAESTRUCTURA | AE187: LA MATANZA | AF187: - | AG187: - | AH187: 2008-02-05 | AI187: 2009-04-30 | AJ187: 71125705.7 | AK187: 16532301.85 | AL187: 0 | AM187: 87658007.55 | AN187: 38413394 | AO187: 3518271.64 | AP187: 22938465.92 | AQ187: 6258882.29 | AR187: 8233.68 | AS187: 1829053.12 | AT187: 0 | AU187: 0 | AV187: - | AW187: 0 | AX187: - | AY187: - | AZ187: - | BA187: FINALIZADO | BB187: 1 | BC187: 1 | BD187: -
B188: 194 | C188: 2. PROVINCIA DE BS AS | D188: 10. DESAGÜES PLUVIALES | E188: - | F188: - | G188: - | H188: DESAGUES PLUVIALES | I188: - | J188: DESAGÜES PLUVIALES EN Bº LAS ACHIRAS - VILLA CELINA. | K188: 2 | L188: 14. MINISTERIO DE INFRAESTRUCTURA DE LA PROVINCIA DE BUENOS AIRES | M188: - | N188: MINISTERIO DE INFRAESTRUCTURA | O188: 18. ACUMAR - PROGRAMA DE GESTIÓN AMBIENTAL (PGA) | P188: - | Q188: 6784 | R188: - | S188: 1 | T188: 11 | U188: 4 | V188: 2 | W188: 2 | X188: - | Y188: 4 | Z188: 4 | AA188: 325 | AB188: 1 | AC188: - | AD188: MINISTERIO DE INFRAESTRUCTURA | AE188: LA MATANZA | AF188: BARRIOS LAS ACHIRAS Y VILLA CELINA | AG188: - | AH188: 2006-06-16 | AI188: 2007-07-16 | AJ188: 1588212 | AK188: 0 | AL188: 0 | AM188: 1588212 | AN188: 1588212 | AO188: - | AP188: - | AQ188: - | AR188: - | AS188: - | AT188: 0 | AU188: 0 | AV188: - | AW188: 0 | AX188: - | AY188: - | AZ188: - | BA188: FINALIZADO | BB188: 1 | BC188: 1 | BD188: -
B189: 195 | C189: 2. PROVINCIA DE BS AS | D189: 06. PLAN SANITARIO DE EMERGENCIA | E189: - | F189: - | G189: - | H189: NUEVO EFECTOR SALUD | I189: - | J189: UNIDAD SANITARIA VILLA MAGDALENA MERLO | K189: 2 | L189: 14. MINISTERIO DE INFRAESTRUCTURA DE LA PROVINCIA DE BUENOS AIRES | M189: - | N189: MINISTERIO DE INFRAESTRUCTURA | O189: 2. COORD. Y CONTROL DE GESTIÓN DE OBRAS Y SS. PÚB. | P189: 1 | Q189: 7809 | R189: - | S189: 1 | T189: 11 | U189: 4 | V189: 2 | W189: 1 | X189: - | Y189: 3 | Z189: 1 | AA189: 41 | AB189: 1 | AC189: - | AD189: MINISTERIO DE INFRAESTRUCTURA | AE189: MERLO | AF189: VILLA MAGDALENA | AG189: - | AH189: 2010-03-08 | AI189: 2010-10-04 | AJ189: 1396961.09 | AK189: 205108.32 | AL189: 0 | AM189: 1602069.41 | AN189: 27181 | AO189: 1154533.63 | AP189: 382447.72 | AQ189: 44285 | AR189: - | AS189: - | AT189: 0 | AU189: 0 | AV189: - | AW189: 0 | AX189: - | AY189: - | AZ189: - | BA189: FINALIZADO | BB189: 1.003981063 | BC189: 0.9983639984 | BD189: -
B190: 196 | C190: 2. PROVINCIA DE BS AS | D190: 06. PLAN SANITARIO DE EMERGENCIA | E190: - | F190: - | G190: - | H190: NUEVO EFECTOR SALUD | I190: - | J190: UNIDAD SANITARIA SANTA ANA SAN VICENTE | K190: 2 | L190: 14. MINISTERIO DE INFRAESTRUCTURA DE LA PROVINCIA DE BUENOS AIRES | M190: - | N190: MINISTERIO DE INFRAESTRUCTURA | O190: 2. COORD. Y CONTROL DE GESTIÓN DE OBRAS Y SS. PÚB. | P190: 1 | Q190: 7791 | R190: - | S190: 1 | T190: 11 | U190: 4 | V190: 2 | W190: 1 | X190: - | Y190: 3 | Z190: 1 | AA190: 595 | AB190: 1 | AC190: - | AD190: MINISTERIO DE INFRAESTRUCTURA | AE190: SAN VICENTE | AF190: B° SANTA ANA | AG190: - | AH190: 2010-02-09 | AI190: 2010-10-07 | AJ190: 1090379.082 | AK190: 123101.49 | AL190: 0 | AM190: 1213480.572 | AN190: 21380 | AO190: 1024764.09 | AP190: 114974.46 | AQ190: 52390 | AR190: - | AS190: - | AT190: 0 | AU190: 0 | AV190: - | AW190: 0 | AX190: - | AY190: - | AZ190: - | BA190: FINALIZADO | BB190: 1.000000995 | BC190: 1 | BD190: -
B191: 197 | C191: 2. PROVINCIA DE BS AS | D191: 06. PLAN SANITARIO DE EMERGENCIA | E191: - | F191: - | G191: - | H191: NUEVO EFECTOR SALUD | I191: - | J191: UNIDAD SANITARIA Nº 15 -ESTEBAN ECHEVERRÍA. | K191: 2 | L191: 14. MINISTERIO DE INFRAESTRUCTURA DE LA PROVINCIA DE BUENOS AIRES | M191: - | N191: MINISTERIO DE INFRAESTRUCTURA | O191: 2. COORD. Y CONTROL DE GESTIÓN DE OBRAS Y SS. PÚB. | P191: 1 | Q191: 7181 | R191: - | S191: 1 | T191: 11 | U191: 4 | V191: 2 | W191: 1 | X191: - | Y191: 3 | Z191: 1 | AA191: 185 | AB191: 1 | AC191: - | AD191: MINISTERIO DE INFRAESTRUCTURA | AE191: ESTEBAN ECHEVERRÍA | AF191: ESTEBAN ECHEVERRÍA | AG191: - | AH191: 2009-12-30 | AI191: 2010-08-27 | AJ191: 1326930.24 | AK191: 208655.94 | AL191: 0 | AM191: 1535586.18 | AN191: 26019 | AO191: 1408549.68 | AP191: 101018.22 | AQ191: - | AR191: - | AS191: - | AT191: 0 | AU191: 0 | AV191: - | AW191: 0 | AX191: - | AY191: - | AZ191: - | BA191: FINALIZADO | BB191: 1.000000491 | BC191: 1 | BD191: -
B192: 198 | C192: 2. PROVINCIA DE BS AS | D192: 06. PLAN SANITARIO DE EMERGENCIA | E192: - | F192: - | G192: - | H192: NUEVO EFECTOR SALUD | I192: - | J192: UNIDAD SANITARIA Nº 13 RAMÓN CARRILLOMERLO | K192: 2 | L192: 14. MINISTERIO DE INFRAESTRUCTURA DE LA PROVINCIA DE BUENOS AIRES | M192: - | N192: MINISTERIO DE INFRAESTRUCTURA | O192: 2. COORD. Y CONTROL DE GESTIÓN DE OBRAS Y SS. PÚB. | P192: 1 | Q192: 7785 | R192: - | S192: 1 | T192: 11 | U192: 4 | V192: 2 | W192: 1 | X192: - | Y192: 3 | Z192: 1 | AA192: 41 | AB192: 1 | AC192: - | AD192: MINISTERIO DE INFRAESTRUCTURA | AE192: MERLO | AF192: RAMÓN CARRILLO | AG192: - | AH192: 2010-04-05 | AI192: 2010-11-01 | AJ192: 1382820.079 | AK192: 269234.6496 | AL192: 0 | AM192: 1652054.729 | AN192: 26175 | AO192: 1050261.64 | AP192: 489330.8 | AQ192: 85531.5 | AR192: - | AS192: - | AT192: 0 | AU192: 0 | AV192: - | AW192: 0 | AX192: - | AY192: - | AZ192: - | BA192: FINALIZADO | BB192: 0.9995425159 | BC192: 1 | BD192: -
B193: 199 | C193: 2. PROVINCIA DE BS AS | D193: 06. PLAN SANITARIO DE EMERGENCIA | E193: - | F193: - | G193: - | H193: NUEVO EFECTOR SALUD | I193: UNIDADES SANITARIAS ALMIRANTE BROWN | J193: UNIDAD SANITARIA LOS ALAMOS ALTE BROWN | K193: 2 | L193: 14. MINISTERIO DE INFRAESTRUCTURA DE LA PROVINCIA DE BUENOS AIRES | M193: - | N193: MINISTERIO DE INFRAESTRUCTURA | O193: 2. COORD. Y CONTROL DE GESTIÓN DE OBRAS Y SS. PÚB. | P193: 1 | Q193: 7779 | R193: - | S193: 1 | T193: 11 | U193: 4 | V193: 2 | W193: 1 | X193: - | Y193: 3 | Z193: 1 | AA193: 2 | AB193: 1 | AC193: - | AD193: MINISTERIO DE INFRAESTRUCTURA | AE193: ALMIRANTE BROWN | AF193: ALMIRANTE BROWN | AG193: - | AH193: 2010-02-16 | AI193: 2010-10-14 | AJ193: 1178890.908 | AK193: 159748.5962 | AL193: 0 | AM193: 1338639.504 | AN193: 23117 | AO193: 1149555.54 | AP193: 53355 | AQ193: 121821.35 | AR193: - | AS193: - | AT193: 0 | AU193: 0 | AV193: - | AW193: 0 | AX193: - | AY193: - | AZ193: - | BA193: FINALIZADO | BB193: 1.000000423 | BC193: 1 | BD193: -
B194: 200 | C194: 2. PROVINCIA DE BS AS | D194: 06. PLAN SANITARIO DE EMERGENCIA | E194: - | F194: - | G194: - | H194: NUEVO EFECTOR SALUD | I194: UNIDADES SANITARIAS ALMIRANTE BROWN | J194: UNIDAD SANITARIA GLEW SUR ALTE.BROWN | K194: 2 | L194: 14. MINISTERIO DE INFRAESTRUCTURA DE LA PROVINCIA DE BUENOS AIRES | M194: - | N194: MINISTERIO DE INFRAESTRUCTURA | O194: 2. COORD. Y CONTROL DE GESTIÓN DE OBRAS Y SS. PÚB. | P194: 1 | Q194: 7783 | R194: - | S194: 1 | T194: 11 | U194: 4 | V194: 2 | W194: 1 | X194: - | Y194: 3 | Z194: 1 | AA194: 2 | AB194: 1 | AC194: - | AD194: MINISTERIO DE INFRAESTRUCTURA | AE194: ALMIRANTE BROWN | AF194: ALMIRANTE BROWN | AG194: - | AH194: 2010-02-09 | AI194: 2010-10-07 | AJ194: 1244417.575 | AK194: 145895.7274 | AL194: 0 | AM194: 1390313.302 | AN194: 24401 | AO194: 1115608.82 | AP194: 196445 | AQ194: 65796 | AR194: 9660.08 | AS194: - | AT194: 0 | AU194: 0 | AV194: - | AW194: 0 | AX194: - | AY194: - | AZ194: - | BA194: FINALIZADO | BB194: 1.000000809 | BC194: 1 | BD194: -
B195: 201 | C195: 2. PROVINCIA DE BS AS | D195: 06. PLAN SANITARIO DE EMERGENCIA | E195: - | F195: - | G195: - | H195: NUEVO EFECTOR SALUD | I195: - | J195: UNIDAD SANITARIA Bº EL PRADO -MARCOS PAZ. | K195: 2 | L195: 14. MINISTERIO DE INFRAESTRUCTURA DE LA PROVINCIA DE BUENOS AIRES | M195: - | N195: MINISTERIO DE INFRAESTRUCTURA | O195: 2. COORD. Y CONTROL DE GESTIÓN DE OBRAS Y SS. PÚB. | P195: 1 | Q195: 7186 | R195: - | S195: 1 | T195: 11 | U195: 4 | V195: 2 | W195: 1 | X195: - | Y195: 3 | Z195: 1 | AA195: 4 | AB195: 1 | AC195: - | AD195: MINISTERIO DE INFRAESTRUCTURA | AE195: MARCOS PAZ | AF195: B° EL PRADO | AG195: - | AH195: 2010-02-16 | AI195: 2010-10-14 | AJ195: 1260780.853 | AK195: 225022.6492 | AL195: 0 | AM195: 1485803.502 | AN195: 24721 | AO195: 1147854.5 | AP195: 281602.27 | AQ195: 43698.75 | AR195: - | AS195: - | AT195: 0 | AU195: 0 | AV195: - | AW195: 0 | AX195: - | AY195: - | AZ195: - | BA195: FINALIZADO | BB195: 0.9999999425 | BC195: 1 | BD195: -
B196: 202 | C196: 2. PROVINCIA DE BS AS | D196: 06. PLAN SANITARIO DE EMERGENCIA | E196: - | F196: - | G196: - | H196: NUEVO EFECTOR SALUD | I196: - | J196: CONSTRUCCION HOSPITAL CIUDAD EVITA -LA MATANZA. | K196: 2 | L196: 14. MINISTERIO DE INFRAESTRUCTURA DE LA PROVINCIA DE BUENOS AIRES | M196: - | N196: MINISTERIO DE INFRAESTRUCTURA | O196: 2. COORD. Y CONTROL DE GESTIÓN DE OBRAS Y SS. PÚB. | P196: 1 | Q196: 7118 | R196: - | S196: 1 | T196: 11 | U196: 4 | V196: 2 | W196: 1 | X196: - | Y196: 3 | Z196: 1 | AA196: 325 | AB196: 1 | AC196: - | AD196: MINISTERIO DE INFRAESTRUCTURA | AE196: LA MATANZA | AF196: CIUDAD EVITA | AG196: - | AH196: 2009-05-15 | AI196: 2010-11-11 | AJ196: 104043550.5 | AK196: 40879975.98 | AL196: 0 | AM196: 144923526.5 | AN196: 17813025 | AO196: 23984002 | AP196: 36938968.01 | AQ196: 22258326.57 | AR196: 24385931.23 | AS196: 5075418.09 | AT196: 14384758.83 | AU196: 0 | AV196: - | AW196: 0 | AX196: - | AY196: - | AZ196: - | BA196: FINALIZADO | BB196: 1.000000001 | BC196: 1 | BD196: -
B197: 203 | C197: 2. PROVINCIA DE BS AS | D197: 06. PLAN SANITARIO DE EMERGENCIA | E197: - | F197: - | G197: - | H197: MEJORA EFECTOR DE SALUD | I197: - | J197: AMPLIACIÓN E INTERNACIÓN PEDIATRÍA HOSPITAL MUNICIPAL DEL NIÑO EN SAN JUSTO-LA MATANZA | K197: 2 | L197: 14. MINISTERIO DE INFRAESTRUCTURA DE LA PROVINCIA DE BUENOS AIRES | M197: - | N197: MINISTERIO DE INFRAESTRUCTURA | O197: 2. COORD. Y CONTROL DE GESTIÓN DE OBRAS Y SS. PÚB. | P197: 1 | Q197: 7956 | R197: - | S197: 1 | T197: 11 | U197: 4 | V197: 2 | W197: 1 | X197: - | Y197: 3 | Z197: 1 | AA197: 325 | AB197: 1 | AC197: - | AD197: MINISTERIO DE INFRAESTRUCTURA | AE197: LA MATANZA | AF197: SAN JUSTO | AG197: - | AH197: 2010-04-05 | AI197: 2011-04-05 | AJ197: 3920230.617 | AK197: 656442.8554 | AL197: 0 | AM197: 4576673.472 | AN197: 40000 | AO197: 1742742.13 | AP197: 1850353.23 | AQ197: 552495.38 | AR197: 358252.45 | AS197: - | AT197: 0 | AU197: 0 | AV197: - | AW197: 0 | AX197: - | AY197: - | AZ197: - | BA197: FINALIZADO | BB197: 0.999999943 | BC197: 1 | BD197: -
B198: 204 | C198: 2. PROVINCIA DE BS AS | D198: 06. PLAN SANITARIO DE EMERGENCIA | E198: - | F198: - | G198: - | H198: NUEVO EFECTOR SALUD | I198: - | J198: UNIDAD SANITARIA EVA PERÓN LANÚS | K198: 2 | L198: 14. MINISTERIO DE INFRAESTRUCTURA DE LA PROVINCIA DE BUENOS AIRES | M198: - | N198: MINISTERIO DE INFRAESTRUCTURA | O198: 2. COORD. Y CONTROL DE GESTIÓN DE OBRAS Y SS. PÚB. | P198: 1 | Q198: 7810 | R198: - | S198: 1 | T198: 11 | U198: 4 | V198: 2 | W198: 1 | X198: - | Y198: 3 | Z198: 1 | AA198: 335 | AB198: 1 | AC198: - | AD198: MINISTERIO DE INFRAESTRUCTURA | AE198: LANÚS | AF198: LANÚS | AG198: - | AH198: 2010-03-01 | AI198: 2010-09-27 | AJ198: 1132169.55 | AK198: 194384.285 | AL198: 0 | AM198: 1326553.835 | AN198: 20208 | AO198: 504067.44 | AP198: 735943.79 | AQ198: 65613.88 | AR198: - | AS198: - | AT198: 0 | AU198: 0 | AV198: - | AW198: 0 | AX198: - | AY198: - | AZ198: - | BA198: FINALIZADO | BB198: 0.9995858792 | BC198: 1 | BD198: -
B199: 205 | C199: 2. PROVINCIA DE BS AS | D199: 04. ORDENAMIENTO TERRITORIAL | E199: - | F199: - | G199: - | H199: NUEVO CENTRO EDUCATIVO | I199: - | J199: CONSTRUCCIÓN JARDÍN DE INFANTES -MONTE GRANDE -ESTEBAN ECHEVERRÍA | K199: 2 | L199: 14. MINISTERIO DE INFRAESTRUCTURA DE LA PROVINCIA DE BUENOS AIRES | M199: - | N199: MINISTERIO DE INFRAESTRUCTURA | O199: 2. COORD. Y CONTROL DE GESTIÓN DE OBRAS Y SS. PÚB. | P199: 6 | Q199: 7136 | R199: - | S199: 1 | T199: 11 | U199: 4 | V199: 2 | W199: 1 | X199: - | Y199: 3 | Z199: 4 | AA199: 185 | AB199: 1 | AC199: - | AD199: MINISTERIO DE INFRAESTRUCTURA | AE199: ESTEBAN ECHEVERRÍA | AF199: MONTE GRANDE | AG199: - | AH199: 2008-11-05 | AI199: 2009-07-03 | AJ199: 1079701.946 | AK199: 198351.8724 | AL199: 0 | AM199: 1278053.819 | AN199: 1083139 | AO199: 194745.8 | AP199: - | AQ199: - | AR199: - | AS199: - | AT199: 0 | AU199: 0 | AV199: - | AW199: 0 | AX199: - | AY199: - | AZ199: - | BA199: FINALIZADO | BB199: 1 | BC199: 1 | BD199: RECEPCIÓN PROVISORIA
B200: 206 | C200: 2. PROVINCIA DE BS AS | D200: 04. ORDENAMIENTO TERRITORIAL | E200: - | F200: - | G200: - | H200: NUEVO CENTRO EDUCATIVO | I200: - | J200: CONSTRUCCIÓN JARDÍN DE INFANTES BARRIO SIGLO XX -ESTEBAN ECHEVERRÍA | K200: 2 | L200: 14. MINISTERIO DE INFRAESTRUCTURA DE LA PROVINCIA DE BUENOS AIRES | M200: - | N200: MINISTERIO DE INFRAESTRUCTURA | O200: 2. COORD. Y CONTROL DE GESTIÓN DE OBRAS Y SS. PÚB. | P200: 6 | Q200: 7137 | R200: - | S200: 1 | T200: 11 | U200: 4 | V200: 2 | W200: 1 | X200: - | Y200: 3 | Z200: 4 | AA200: 185 | AB200: 1 | AC200: - | AD200: MINISTERIO DE INFRAESTRUCTURA | AE200: ESTEBAN ECHEVERRÍA | AF200: BARRIO SIGLO XXI | AG200: - | AH200: 2008-11-05 | AI200: 2009-07-03 | AJ200: 1657257.036 | AK200: 299023.3428 | AL200: 0 | AM200: 1956280.379 | AN200: 1662223 | AO200: 293816.88 | AP200: - | AQ200: - | AR200: - | AS200: - | AT200: 0 | AU200: 0 | AV200: - | AW200: 0 | AX200: - | AY200: - | AZ200: - | BA200: FINALIZADO | BB200: 1 | BC200: 1 | BD200: RECEPCIÓN PROVISORIA
B201: 207 | C201: 2. PROVINCIA DE BS AS | D201: 09. EXPANSIÓN DE LA RED DE AGUA POTABLE Y SANEAMIENTO DE CLOACAS | E201: - | F201: - | G201: - | H201: EXPANSIÓN DE REDES | I201: - | J201: RED DE ALCANTARILLADO CLOACAL. | K201: 2 | L201: 14. MINISTERIO DE INFRAESTRUCTURA DE LA PROVINCIA DE BUENOS AIRES | M201: - | N201: MINISTERIO DE INFRAESTRUCTURA | O201: 3. PROG. DESARROLLO DE INVESTIGACIÓN SUSTENTABLE EN INF. DE LA PCIA. BS. AS. | P201: 1 | Q201: 7125 | R201: - | S201: 2 | T201: 11 | U201: 4 | V201: 2 | W201: 2 | X201: - | Y201: 3 | Z201: 8 | AA201: 49 | AB201: 1 | AC201: - | AD201: MINISTERIO DE INFRAESTRUCTURA | AE201: PTE. PERÓN | AF201: B° GUERNICA CENTRO Y OESTE, SAN PABLO, 25 DE MAYO, SANTA ELENA Y PARTE DE LOS B° PANAMERICANA, SAN MARTÍN, PARQUE AMERICANO Y LA HAYA | AG201: - | AH201: 2008-11-11 | AI201: 2010-05-05 | AJ201: 29506699.94 | AK201: 8373237.37 | AL201: 0 | AM201: 37879937.31 | AN201: 10897481 | AO201: 8034457.64 | AP201: 4211664.85 | AQ201: - | AR201: - | AS201: - | AT201: 0 | AU201: 0 | AV201: - | AW201: 0 | AX201: - | AY201: - | AZ201: - | BA201: FINALIZADO | BB201: 1 | BC201: 1 | BD201: -
B202: 208 | C202: 2. PROVINCIA DE BS AS | D202: 09. EXPANSIÓN DE LA RED DE AGUA POTABLE Y SANEAMIENTO DE CLOACAS | E202: - | F202: - | G202: - | H202: EXPANSIÓN DE REDES | I202: - | J202: RED DE ALCANTARILLADO CLOACAL. | K202: 2 | L202: 14. MINISTERIO DE INFRAESTRUCTURA DE LA PROVINCIA DE BUENOS AIRES | M202: - | N202: MINISTERIO DE INFRAESTRUCTURA | O202: 3. PROG. DESARROLLO DE INVESTIGACIÓN SUSTENTABLE EN INF. DE LA PCIA. BS. AS. | P202: 1 | Q202: 7125 | R202: - | S202: 2 | T202: 13 | U202: 4 | V202: 2 | W202: 2 | X202: - | Y202: 3 | Z202: 8 | AA202: 49 | AB202: 1 | AC202: - | AD202: MINISTERIO DE INFRAESTRUCTURA | AE202: PTE. PERÓN | AF202: B° GUERNICA CENTRO Y OESTE, SAN PABLO, 25 DE MAYO, SANTA ELENA Y PARTE DE LOS B° PANAMERICANA, SAN MARTÍN, PARQUE AMERICANO Y LA HAYA | AG202: - | AH202: 2008-11-11 | AI202: - | AJ202: $ 0 | AK202: $ 0 | AL202: 0 | AM202: 0 | AN202: 3080094 | AO202: 2163283.35 | AP202: 1119556.3 | AQ202: - | AR202: - | AS202: - | AT202: 0 | AU202: 0 | AV202: - | AW202: 0 | AX202: - | AY202: - | AZ202: - | BA202: FINALIZADO | BB202: 1 | BC202: 1 | BD202: -
B203: 209 | C203: 2. PROVINCIA DE BS AS | D203: 09. EXPANSIÓN DE LA RED DE AGUA POTABLE Y SANEAMIENTO DE CLOACAS | E203: - | F203: - | G203: - | H203: EXPANSIÓN DE REDES | I203: - | J203: EXPANSIÓN TENDIDO DE REDES CLOACALES - SAN VICENTE | K203: 2 | L203: 14. MINISTERIO DE INFRAESTRUCTURA DE LA PROVINCIA DE BUENOS AIRES | M203: - | N203: MINISTERIO DE INFRAESTRUCTURA | O203: 3. PROG. DESARROLLO DE INVESTIGACIÓN SUSTENTABLE EN INF. DE LA PCIA. BS. AS. | P203: 1 | Q203: 7866 | R203: - | S203: 2 | T203: 11 | U203: 4 | V203: 2 | W203: 2 | X203: - | Y203: 3 | Z203: 8 | AA203: 595 | AB203: 1 | AC203: - | AD203: MINISTERIO DE INFRAESTRUCTURA | AE203: SAN VICENTE | AF203: SAN VICENTE | AG203: - | AH203: 2009-12-18 | AI203: 2010-10-14 | AJ203: 8939761.64 | AK203: 1494769.21 | AL203: 0 | AM203: 10434530.85 | AN203: 512160 | AO203: 5326278.77 | AP203: 1223972.48 | AQ203: - | AR203: - | AS203: - | AT203: 0 | AU203: 0 | AV203: - | AW203: 0 | AX203: - | AY203: - | AZ203: - | BA203: FINALIZADO | BB203: 1 | BC203: 1 | BD203: -
B204: 210 | C204: 2. PROVINCIA DE BS AS | D204: 09. EXPANSIÓN DE LA RED DE AGUA POTABLE Y SANEAMIENTO DE CLOACAS | E204: - | F204: - | G204: - | H204: EXPANSIÓN DE REDES | I204: - | J204: EXPANSIÓN TENDIDO DE REDES CLOACALES - SAN VICENTE | K204: 2 | L204: 14. MINISTERIO DE INFRAESTRUCTURA DE LA PROVINCIA DE BUENOS AIRES | M204: - | N204: MINISTERIO DE INFRAESTRUCTURA | O204: 3. PROG. DESARROLLO DE INVESTIGACIÓN SUSTENTABLE EN INF. DE LA PCIA. BS. AS. | P204: 1 | Q204: 7866 | R204: - | S204: 2 | T204: 13 | U204: 4 | V204: 2 | W204: 2 | X204: - | Y204: 3 | Z204: 8 | AA204: 595 | AB204: 1 | AC204: - | AD204: MINISTERIO DE INFRAESTRUCTURA | AE204: SAN VICENTE | AF204: SAN VICENTE | AG204: - | AH204: - | AI204: - | AJ204: $ 0 | AK204: $ 0 | AL204: 0 | AM204: 0 | AN204: 189218 | AO204: 1427602.28 | AP204: 325359.77 | AQ204: - | AR204: - | AS204: - | AT204: 0 | AU204: 0 | AV204: - | AW204: 0 | AX204: - | AY204: - | AZ204: - | BA204: NO HAY MEMORIA INSTITUCIONAL DE ESTA OBRA | BB204: - | BC204: - | BD204: -
... 920 more rows

Sheet Hoja1 (hidden)
E3: Obras informadas | F3: Obras quitadas | G3: Obras con ejecución
D4: VIALIDAD | E4: 8 | F4: 0 | G4: 2
D5: ENOHSA | E5: 4 | F5: 0 | G5: 2
D6: UNIDAD C. | E6: 10 | F6: 0 | G6: 4
D7: BIRF 7706 | E7: 17 | F7: 0 | G7: 13
D8: HÍDRICOS | E8: 6 | F8: 0 | G8: 6
D9: VIVIENDA | E9: 111 | F9: 0 | G9: 23
D10: HABITAT | E10: 44 | F10: 0 | G10: 22
D11: AYSA | E11: 185 | F11: 181 | H11: 4 a revisar
D12: CABA | E12: 118 | F12: 117 | H12: 7809
D13: PBA | E13: 113

Sheet CLASIFICACIÓN MANUAL (hidden)
C1: CLASIFICACIÓN
A2: 01. SISTEMA DE INDICADORES | B2: FORTALECIMIENTO DEL SISTEMA DE INDICADORES DE ACUMAR | C2: SERVICIO
A3: 02. SISTEMA DE INFORMACIÓN PÚBLICA | B3: FORTALECIMIENTO DEL SISTEMA DE INFORMACIÓN PÚBLICA DE ACUMAR | C3: SERVICIO
A4: 03. FORTALECIMIENTO INSTITUCIONAL | B4: FORTALECIMIENTO INSTITUCIONAL DE ACUMAR | C4: SERVICIO
A5: 04. ORDENAMIENTO TERRITORIAL | B5: GENERACIÓN DE ESPACIOS VERDES | C5: OBRA
A6: 04. ORDENAMIENTO TERRITORIAL | B6: OBRAS VIALES ESTRATÉGICAS | C6: OBRA
A7: 04. ORDENAMIENTO TERRITORIAL | B7: ACCIONES EN ÁREAS DE ESPECIAL MANEJO | C7: OBRA
A8: 05. EDUCACIÓN AMBIENTAL | B8: CAMPAÑA DE EDUCACIÓN AMBIENTAL | C8: ACTIVIDAD
A9: 05. EDUCACIÓN AMBIENTAL | B9: CAPACITACIÓN EN EDUCACIÓN AMBIENTAL | C9: ACTIVIDAD
A10: 05. EDUCACIÓN AMBIENTAL | B10: NUEVO CENTRO EDUCATIVO | C10: OBRA
A11: 06. PLAN SANITARIO DE EMERGENCIA | B11: NUEVO EFECTOR DE SALUD | C11: OBRA
A12: 06. PLAN SANITARIO DE EMERGENCIA | B12: MEJORA EN EFECTOR DE SALUD | C12: OBRA
A13: 06. PLAN SANITARIO DE EMERGENCIA | B13: EQUIPAMIENTO PARA EFECTOR DE SALUD | C13: ACTIVIDAD
A14: 06. PLAN SANITARIO DE EMERGENCIA | B14: CAMPAÑA DE PREVENCIÓN | C14: ACTIVIDAD
A15: 06. PLAN SANITARIO DE EMERGENCIA | B15: CAMPAÑA DE VACUNACIÓN | C15: ACTIVIDAD
A16: 06. PLAN SANITARIO DE EMERGENCIA | B16: CAPACITACIÓN EN SALUD AMBIENTAL | C16: ACTIVIDAD
A17: 07. MONITOREO DE LA CALIDAD DE AGUA, SEDIMENTOS Y AIRE | B17: MONITOREO DE CALIDAD DE AGUA Y SEDIMENTOS | C17: ACTIVIDAD
A18: 07. MONITOREO DE LA CALIDAD DE AGUA, SEDIMENTOS Y AIRE | B18: MONITOREO DE CALIDAD DE AIRE | C18: ACTIVIDAD
A19: 07. MONITOREO DE LA CALIDAD DE AGUA, SEDIMENTOS Y AIRE | B19: ESTUDIOS Y EVALUACIONES AMBIENTALES | C19: ACTIVIDAD
A20: 08. URBANIZACIÓN DE VILLAS Y ASENTAMIENTOS URBANOS | B20: VIVIENDAS NUEVAS | C20: OBRA
A21: 08. URBANIZACIÓN DE VILLAS Y ASENTAMIENTOS URBANOS | B21: MEJORAMIENTOS DE VIVIENDA EXISTENTE | C21: OBRA
A22: 08. URBANIZACIÓN DE VILLAS Y ASENTAMIENTOS URBANOS | B22: INFRAESTRUCTURA DE SERVICIOS BÁSICOS | C22: OBRA
A23: 08. URBANIZACIÓN DE VILLAS Y ASENTAMIENTOS URBANOS | B23: CONEXIONES INTRADOMICILIARIAS EN VILLAS Y ASENTAMIENTOS | C23: OBRA
A24: 08. URBANIZACIÓN DE VILLAS Y ASENTAMIENTOS URBANOS | B24: CARACTERIZACIÓN Y REMEDIACIÓN DE SUELO | C24: ACTIVIDAD
A25: 08. URBANIZACIÓN DE VILLAS Y ASENTAMIENTOS URBANOS | B25: RED VIAL Y PEATONAL | C25: OBRA
A26: 08. URBANIZACIÓN DE VILLAS Y ASENTAMIENTOS URBANOS | B26: EQUIPAMIENTO COMUNITARIO | C26: OBRA
A27: 08. URBANIZACIÓN DE VILLAS Y ASENTAMIENTOS URBANOS | B27: REGULARIZACIÓN DOMINIAL | C27: ACTIVIDAD
A28: 08. URBANIZACIÓN DE VILLAS Y ASENTAMIENTOS URBANOS | B28: ADQUISICIÓN DE SUELO PARA PROYECTOS DE VIVIENDA Y HÁBITAT | C28: ACTIVIDAD
A29: 08. URBANIZACIÓN DE VILLAS Y ASENTAMIENTOS URBANOS | B29: FINANCIAMIENTO PARA ADQUISICIÓN DE VIVIENDA | C29: SERVICIO
A30: 09. EXPANSIÓN DE LA RED DE AGUA POTABLE Y SANEAMIENTO DE CLOACAS | B30: EXPANSIÓN DE REDES | C30: OBRA
A31: 09. EXPANSIÓN DE LA RED DE AGUA POTABLE Y SANEAMIENTO DE CLOACAS | B31: MEJORA Y MANTENIMIENTO | C31: ACTIVIDAD
A32: 09. EXPANSIÓN DE LA RED DE AGUA POTABLE Y SANEAMIENTO DE CLOACAS | B32: GRANDES OBRAS DE INFRAESTRUCTURA | C32: OBRA
A33: 09. EXPANSIÓN DE LA RED DE AGUA POTABLE Y SANEAMIENTO DE CLOACAS | B33: CONEXIONES INTRADOMICILIARIAS | C33: OBRA
A34: 10. DESAGÜES PLUVIALES | B34: DESAGÜES PLUVIALES | C34: OBRA
A35: 10. DESAGÜES PLUVIALES | B35: CANALIZACIÓN | C35: OBRA
A36: 10. DESAGÜES PLUVIALES | B36: ENTUBAMIENTOS | C36: OBRA
A37: 10. DESAGÜES PLUVIALES | B37: RESERVORIOS | C37: OBRA
A38: 10. DESAGÜES PLUVIALES | B38: DRAGADO | C38: ACTIVIDAD
A39: 10. DESAGÜES PLUVIALES | B39: SUMIDEROS | C39: OBRA
A40: 10. DESAGÜES PLUVIALES | B40: ESTACIONES DE BOMBEO | C40: OBRA
A41: 10. DESAGÜES PLUVIALES | B41: LIMPIEZA Y MANTENIMIENTO DE CANALES Y LAGUNAS | C41: ACTIVIDAD
A42: 11. CONTAMINACIÓN DE ORIGEN INDUSTRIAL | B42: INSPECCIONES | C42: ACTIVIDAD
A43: 11. CONTAMINACIÓN DE ORIGEN INDUSTRIAL | B43: TOMAS DE MUESTRAS | C43: ACTIVIDAD
A44: 11. CONTAMINACIÓN DE ORIGEN INDUSTRIAL | B44: ESTUDIOS Y EVALUACIONES AMBIENTALES | C44: ACTIVIDAD
A45: 11. CONTAMINACIÓN DE ORIGEN INDUSTRIAL | B45: OBRAS ESTRATÉGICAS EN PREDIO ACUBA | C45: OBRA
A46: 12. LIMPIEZA DE MÁRGENES Y CAMINO DE SIRGA | B46: LIMPIEZA DE MÁRGENES Y ARROYOS | C46: ACTIVIDAD
A47: 12. LIMPIEZA DE MÁRGENES Y CAMINO DE SIRGA | B47: DESINFECCIÓN Y DESRATIZACIÓN | C47: ACTIVIDAD
A48: 12. LIMPIEZA DE MÁRGENES Y CAMINO DE SIRGA | B48: RED VIAL | C48: OBRA
A49: 12. LIMPIEZA DE MÁRGENES Y CAMINO DE SIRGA | B49: PARQUIZACIÓN | C49: OBRA
A50: 12. LIMPIEZA DE MÁRGENES Y CAMINO DE SIRGA | B50: ALUMBRADO PÚBLICO | C50: OBRA
A51: 12. LIMPIEZA DE MÁRGENES Y CAMINO DE SIRGA | B51: SEMAFORIZACIÓN | C51: OBRA
A52: 13. SANEAMIENTO DE BASURALES | B52: RECOLECCIÓN DE RESIDUOS | C52: ACTIVIDAD
A53: 13. SANEAMIENTO DE BASURALES | B53: LIMPIEZA DE BASURALES | C53: ACTIVIDAD
A54: 13. SANEAMIENTO DE BASURALES | B54: NUEVA PLANTA DE TRATAMIENTO DE RESIDUOS | C54: OBRA
A55: 13. SANEAMIENTO DE BASURALES | B55: MEJORAMIENTO EN PLANTA DE TRATAMIENTO DE RESIDUOS | C55: OBRA
A56: 13. SANEAMIENTO DE BASURALES | B56: ESTACIONES DE RECICLADO | C56: OBRA
A57: 13. SANEAMIENTO DE BASURALES | B57: DESINFECCIÓN Y DESRATIZACIÓN | C57: ACTIVIDAD
A58: 14. PROGRAMA POLO PETROQUÍMICO DOCK SUD | B58: BALIZAMIENTO | C58: ACTIVIDAD
A59: 14. PROGRAMA POLO PETROQUÍMICO DOCK SUD | B59: DRAGADO | C59: ACTIVIDAD
A60: 14. PROGRAMA POLO PETROQUÍMICO DOCK SUD | B60: RED VIAL EN POLO DOCK SUD | C60: OBRA
A61: 14. PROGRAMA POLO PETROQUÍMICO DOCK SUD | B61: ALUMBRADO PÚBLICO | C61: OBRA
A62: 14. PROGRAMA POLO PETROQUÍMICO DOCK SUD | B62: SANEAMIENTO | C62: OBRA

Sheet Resumen por LA (hidden)
B4: LINEA DE ACCIÓN
B5: 03. FORTALECIMIENTO INSTITUCIONAL
B6: 02. SISTEMA DE INFORMACIÓN
B7: SISTEMA DE INFORMACIÓN PÚBLICA
B8: SISTEMA DE INFORMACIÓN PÚBLICA
B9: SERVICIO DE MONITOREO DE MEDIOS.-
B10: 03. FORTALECIMIENTO INSTITUCIONAL
B11: 04. ORDENAMIENTO TERRITORIAL
B12: 05. EDUCACIÓN AMBIENTAL
B13: 06. PLAN SANITARIO DE EMERGENCIA
B14: 07. MONITOREO DE LA CALIDAD DE AGUA, SEDIMENTOS Y AIRE
B15: 08. URBANIZACIÓN DE VILLAS Y ASENTAMIENTOS URBANOS
B16: 09. EXPANSIÓN DE LA RED DE AGUA POTABLE Y SANEAMIENTO DE CLOACAS
B17: 10. DESAGÜES PLUVIALES
B18: 11. CONTAMINACIÓN DE ORIGEN INDUSTRIAL
B19: 12. LIMPIEZA DE MÁRGENES Y CAMINO DE SIRGA
B20: 13. SANEAMIENTO DE BASURALES
B21: Total general
